{"text_format":"1","workbook":"xlsx","n_sheets":5,"sheets":["Рекомендации","Полномочные","Здание","Этажи","справочники"],"not_rendered":{"charts":0,"images":4,"macros":1,"external_links":0,"defined_names":28,"comments":0,"pivot_tables":0},"unopened":[],"bounds":{"document_bytes":16777216,"sheet_cells":100000,"rows_first":2000,"rows_last":500,"rows_between":2000,"halvings":0,"cell_chars":16384,"cell_head_chars":4096},"cells_cut":0,"cells_raw":0,"read":"whole","date_system":"1900"}

{"sheet":"Рекомендации","index":0,"n_rows":50,"n_cols":1,"rows_kept":50,"cut":false,"hidden":false,"merged":[]}
["Методические рекомендации Главам МАИ и Главам подразделений ИВДИВО для применения Книги подразделения ИВДИВО"]
["Утверждаю КХ 09.09.2016"]
[]
["Редакция Книги 14 октября 2016 г."]
[]
["Данная Книга является инструментом подразделения ИВДИВО и обязательна для применения."]
[]
["Книга содержит программы, при ее открытии Excel может запросить разрешения. Разрешайте, чтобы включить весь функционал этого инструмента вашего Служения. Если что-то не работает, значит вы не включили в Excel содержание Книги при ее открытии или у вас настолько старый Excel, что он не понимает применённый язык программирования."]
[]
["Применение Книги начинается с указания ее базовых параметров на листе \"Полномочные\":"]
["1. В ячейку D2 введите номер Изначальности вашего подразделения."]
["2. Выберите вид состава вашего подразделения."]
["Настройка Книги на этом завершена. Можно вводить данные всех Советов и Составов подразделения и филиалов."]
["Идея в том, что именно в этой Книге должны содержаться данные столпа и контакты Полномочных вашего подразделения. В контактах обязательно указывайте адрес электронной почты и номер телефона в международном формате."]
["Последовательность действий:"]
["1. На листе \"Полномочные\" выбираем один из 14 составов и вводим Основной состав подразделения."]
["2. Вводим филиалы с Домами Отца. Логосов и Аспектов филиала с ДО необходимо ввести до ввода Синтезного состава, т.к. в столпе места этих Служащих филиалов чётко регламентированы и не могут быть заняты Синтезным составом. Для ввода филиалов с Домами Отца используйте кнопку «Добавить Дом Отца филиала». После каждого нажатия кнопки вводите ФИО Служащих филиала."]
["3. Вручную вводим Синтезный состав подразделения, последовательно заполняя вакансии Синтезного состава сверху вниз. Распределение Синтезного состава по Организациям и Домам Отца не регламентировано. Аспекты сами набирают Синтезный состав в свои команды и руководят им."]
["4. Вводим Синтезный состав Домов Отца филиалов, последовательно заполняя вакансии Синтезного состава сверху вниз. Данная операция не автоматизирована, но проста в ручном исполнении: в окончании звания Служащего дописывайте: [филиал <название территории>]"]
["5. Вводим филиалы до трёх Служащих, последовательно заполняя вакансии Синтезного состава сверху вниз. Используйте кнопку «Добавить филиал до 3 Служащих». После каждого нажатия кнопки вводите ФИО Служащих филиала."]
["Данная последовательность действий реализует алгоритм, данный в Регламенте 13."]
[]
["Если вы ошиблись при вводе данных, исходный вид таблицы можно восстановить. Для этого выберите любой другой состав подразделения. А затем выберите свой состав. Эта операция сбрасывает изменения в столбце должностных званий, но не изменяет личные данные Служащих."]
["После ввода всех данных следует создать файл столпа Полномочных подразделения."]
["Для этого на листе \"Полномочные\" есть кнопка \"Столп\". Её нажатие запускает генерацию текстового файла в Word."]
[]
["Программа сканирует столбец D листа \"Полномочные\" по всем введённым данным. В файл столпа входят только те позиции, в который заполнены ФИО Служащих."]
["Последовательность филиалов определяется исторически: в столпе выше тот филиал, который был стяжён ранее. Но сначала идут все филиалы с Домами Отца, за ними филиалы до трёх Служащих."]
[]
["После нажатия кнопок \"Столп\" или \"Контакты\" не вмешивайтесь в процесс генерации файла до его окончания. Не пользуйтесь клавиатурой и не нажимайте кнопки мыши."]
["Лист \"справочники\" редактированию не подлежит. Он нужен для технических целей."]
["Не имеет смысла редактировать файлы столпа и контактов. Все изменения вносите в Книгу, а требуемые файлы вы всегда сможете сгенерировать по мере необходимости."]
["На утверждение в ИВДИВО направляется именно файл столпа, который сгенерирован Книгой. Никакие корректировки в него не вносятся."]
[]
["В МАИ ИВДИВО направляйте:"]
["1. Файл утвержденного столпа подразделения ИВДИВО."]
["2. Файл контактов  подразделения ИВДИВО."]
["Саму Книгу высылать не надо. Контакты в открытом доступе не публикуются. МАИ ИВДИВО использует их только в служебных целях. Контакты необходимы прежде всего для организации горизонтальных взаимодействий между Служащими разных подразделений ИВДИВО."]
["Если вы, заполняя Книгу, совершили ошибочное действие, его можно отменить, нажав Ctrl+Z."]
["Изучение формул и программ Книги приветствуется. Но изменяйте их, лишь имея должную компетенцию и видя смысл своих действий. "]
["Книга обновляется согласно Распоряжениям и Регламентам ИВДИВО. Актуальная редакция всегда доступна на странице "]
["http://документы.ИВДИВО.орг/распоряжения/"]
[]
["Дата редакции Книги указана вверху этого листа."]
["Если вы скачали обновленную редакцию Книги, то:"]
["1. Сделайте в новой Книге базовые установки, как сказано выше."]
["2. Скопируйте в новую Книгу только данные Служащих из ячеек серого цвета. Формулы и программы копировать не надо. Процесс перехода на новую редакцию занимает 1-2-3-… минуты в зависимости от ваших умений и навыков работы в Excel."]
["При возникновении вопросов с филиалами высылайте в мой адрес вашу книгу, перечень ваших филиалов и список Служащих в каждом из них."]
["Глава МАИ ИВДИВО Сергей Кишиневский"]
["64z@mail.ru"]

{"sheet":"Полномочные","index":1,"n_rows":274,"n_cols":18,"rows_kept":274,"cut":false,"hidden":false,"merged":[[8,0,8,2],[1,0,1,2]]}
[9,null,null,"Данные вводятся только в ячейки серого цвета!"]
[{"$f":"\"Книга подразделения ИВДИВО «\"&IFERROR(INDEX(справочники!N2:N15,A1),\"такого подразделения нет\")&\"».\"","v":"Книга подразделения ИВДИВО «9 Состав: 84 Служащих»."},null,null,255]
[null,null,"Наименование подразделения в родительном падеже:",{"$f":"IFERROR(INDEX(Название_подразделения_рп,MATCH(Изначальность,Номер_Изначальности,0)),\"такого подразделения нет\")","v":"Иерархии ИВО ИВДИВО"},{"$f":"IF(OR(Изначальность>256,Изначальность<129),\"такого подразделения нет\",\" Изначальности\")","v":" Изначальности"}]
[null,null,"Управление Синтеза",{"$f":"IFERROR(INDEX(Ипостась_Синтеза_,MATCH(Изначальность,Номер_Изначальности,0)),\"такого подразделения нет\")","v":"Иерархия ИВО"},{"$f":"IFERROR(INDEX(Отделения,MATCH(Изначальность,Номер_Изначальности,0)),\" нет\")","v":"Р"}]
[null,null,"Территория (именительный падеж):",{"$f":"IFERROR(IF(D9=1,INDEX(Территория_,MATCH(Изначальность,Номер_Изначальности,0)),INDEX(Территория_,MATCH(Изначальность,Номер_Изначальности,0))),\" нет\")","v":"Санкт-Петербург"},{"$f":"IF(E4=\"Р\",\"Региональный\",\"Местный\")","v":"Региональный"}]
[null,null,"Территория (родительный падеж):",{"$f":"IFERROR(IF(D9=1,INDEX(Территории_,MATCH(D2,Номер_Изначальности,0)),INDEX(Территории_,MATCH(D2,Номер_Изначальности,0))),\" нет\")","v":"Санкт-Петербурга"},{"$f":"IF(E4=\"Р\",\"Регионального\",\"Местного\")","v":"Регионального"}]
[null,null,"Владыка",{"$f":"IFERROR(INDEX(ИВладыки_родит_падеж,257-Изначальность),\"такого Владыки нет\")","v":"Иосифа"}]
[null,null,"Владычица",{"$f":"IFERROR(INDEX(ИВладыки_родит_падеж,385-Изначальность),\"такого Владыки нет\")","v":"Славии"}]
[{"$f":"\"Мыслеобраз, Цель, Задача, Устремление \"&Наименование_Подразделения&\" \"&Изначальность&\" Изначальности, \"&Территория&\":\"","v":"Мыслеобраз, Цель, Задача, Устремление Иерархии ИВО ИВДИВО 255 Изначальности, Санкт-Петербург:"},null,null,255]
[null,null,null,{"$f":"\"Мыслеобраз \"&Наименование_Подразделения&\" \"&Изначальность&\" Изначальности\"","v":"Мыслеобраз Иерархии ИВО ИВДИВО 255 Изначальности"}]
[null,null,null,{"$f":"\"Цель \"&Наименование_Подразделения&\" \"&Изначальность&\" Изначальности\"","v":"Цель Иерархии ИВО ИВДИВО 255 Изначальности"}]
[null,null,null,{"$f":"\"Задача \"&Наименование_Подразделения&\" \"&Изначальность&\" Изначальности\"","v":"Задача Иерархии ИВО ИВДИВО 255 Изначальности"}]
[null,null,null,{"$f":"\"Устремление \"&Наименование_Подразделения&\" \"&Изначальность&\" Изначальности\"","v":"Устремление Иерархии ИВО ИВДИВО 255 Изначальности"}]
[]
["Совет Изначально Вышестоящего Отца:",null,null,"ФИО","E-mail","Тел.1","Тел.2","WhatsApp","Viber","Город","Служащий Синтеза","Поручения","Личные стяжания","Статус","Мыслеобраз","Цель","Задача","Устремление"]
[null,1,{"$f":"\"Будда, Ипостась Изначально Вышестоящего Отца, Глава \"&Наименование_Подразделения&\" \"&Изначальность&\" Изначальности, Управления Синтеза \"&IFERROR(INDEX(ИВладыки_родит_падеж,B16),\"ошибка\")","v":"Будда, Ипостась Изначально Вышестоящего Отца, Глава Иерархии ИВО ИВДИВО 255 Изначальности, Управления Синтеза Кут Хуми"}]
[null,2,{"$f":"\"Владыка, Ипостась \"&IFERROR(INDEX(Ипостась_Изначального_,257-Изначальность),\"ошибка\")&\", Глава Высшей Школы Синтеза ИДИВО \"&Изначальность&\" Изначальности, Управления Синтеза \"&IFERROR(INDEX(ИВладыки_родит_падеж,B17),\"ошибка\")","v":"Владыка, Ипостась Изначальной Матери, Глава Высшей Школы Синтеза ИДИВО 255 Изначальности, Управления Синтеза Иосифа"}]
[null,3,{"$f":"\"Владычица, Ипостась Основы \"&IFERROR(INDEX(Ипостась_Основы_,257-Изначальность),\"ошибка\")&\", Глава Метагалактической Академии Наук \"&Территории&\", Управления Синтеза \"&IFERROR(INDEX(ИВладыки_родит_падеж,B18),\"ошибка\")","v":"Владычица, Ипостась Основы Изначальной Матери, Глава Метагалактической Академии Наук Санкт-Петербурга, Управления Синтеза Мории"}]
[null,4,{"$f":"\"Учитель, Ипостась Синтеза Кут Хуми, Глава Дома Статусного Синтеза \"&Территории&\", Управления Синтеза \"&IFERROR(INDEX(ИВладыки_родит_падеж,B19),\"ошибка\")","v":"Учитель, Ипостась Синтеза Кут Хуми, Глава Дома Статусного Синтеза Санкт-Петербурга, Управления Синтеза Филиппа"}]
[null,5,{"$f":"\"Учитель, Ипостась Синтеза Фаинь, Глава Дома Посвящений \"&Территории&\", Управления Синтеза \"&IFERROR(INDEX(ИВладыки_родит_падеж,B20),\"ошибка\")","v":"Учитель, Ипостась Синтеза Фаинь, Глава Дома Посвящений Санкт-Петербурга, Управления Синтеза Византия"}]
[null,6,{"$f":"\"Учитель, Ипостась Синтеза \"&Владыка&\", Глава Метагалактической Гражданской Конфедерации \"&Территории&\", Управления Синтеза \"&IFERROR(INDEX(ИВладыки_родит_падеж,B21),\"ошибка\")","v":"Учитель, Ипостась Синтеза Иосифа, Глава Метагалактической Гражданской Конфедерации Санкт-Петербурга, Управления Синтеза Янова"}]
[null,7,{"$f":"\"Учитель, Ипостась Синтеза  \"&Владычица&\", Глава Изначального Центра Ипостаси Синтеза \"&Владыка&\" \"&Владычица&\", Управления Синтеза \"&IFERROR(INDEX(ИВладыки_родит_падеж,B22),\"ошибка\")","v":"Учитель, Ипостась Синтеза  Славии, Глава Изначального Центра Ипостаси Синтеза Иосифа Славии, Управления Синтеза Юлия"}]
[null,8,{"$f":"\"Учитель, Ипостась Синтеза, Глава Метагалактического Агентства Информации \"&Территории&\", Управления Синтеза \"&IFERROR(INDEX(ИВладыки_родит_падеж,B23),\"ошибка\")","v":"Учитель, Ипостась Синтеза, Глава Метагалактического Агентства Информации Санкт-Петербурга, Управления Синтеза Юсефа"}]
["Совет Изначального Дома Изначально Вышестоящего Отца:"]
[null,9,"Логос, Ипостась Изначально Вышестоящей Матери, Глава Дома Отца ИВДИВО Полномочного, Управления Синтеза Владомира"]
[null,10,"Логос, Ипостась Изначально Вышестоящей Матери, Глава Дома Отца Статуса ИВО, Управления Синтеза Саввы"]
[null,11,"Логос, Ипостась Изначально Вышестоящей Матери, Глава Дома Отца Посвящения ИВО, Управления Синтеза Савелия"]
[null,12,"Логос, Ипостась Изначально Вышестоящей Матери, Глава Дома Отца Технологии ИВО, Управления Синтеза Вильгельма"]
[null,13,"Логос, Ипостась Изначально Вышестоящей Матери, Глава Дома Отца Изначальности ИВО, Управления Синтеза Юстаса"]
[null,14,"Логос, Ипостась Изначально Вышестоящей Матери, Глава Дома Отца Присутствия ИВО, Управления Синтеза Александра"]
[null,15,"Логос, Ипостась Изначально Вышестоящей Матери, Глава Дома Отца Мира ИВО, Управления Синтеза Яромира"]
[null,16,"Логос, Ипостась Изначально Вышестоящей Матери, Глава Дома Отца Метагалактики ИВО, Управления Синтеза Сераписа"]
[null,17,"Логос, Ипостась Изначально Вышестоящей Матери, Глава Дома Отца ИВДИВО Неизречённого, Управления Синтеза Эдуарда"]
[null,18,"Логос, Ипостась Изначально Вышестоящей Матери, Глава Дома Отца Предвечного ИВО, Управления Синтеза Фадея"]
[null,19,"Логос, Ипостась Изначально Вышестоящей Матери, Глава Дома Отца Всемогущего ИВО, Управления Синтеза Серафима"]
[null,20,"Логос, Ипостась Изначально Вышестоящей Матери, Глава Дома Отца Творца ИВО, Управления Синтеза Святослава"]
[null,21,"Логос, Ипостась Изначально Вышестоящей Матери, Глава Дома Отца Теурга ИВО, Управления Синтеза Эоана [Глава филиала Сосновый Бор]"]
[null,22,"Логос, Ипостась Изначально Вышестоящей Матери, Глава Дома Отца Ману ИВО, Управления Синтеза Сергея"]
[null,23,"Логос, Ипостась Изначально Вышестоящей Матери, Глава Дома Отца Всевышнего ИВО, Управления Синтеза Сулеймана"]
[null,24,"Логос, Ипостась Изначально Вышестоящей Матери, Глава Дома Отца Предначального ИВО, Управления Синтеза Себастьяна"]
[null,25,"Логос, Ипостась Изначально Вышестоящей Матери, Глава Дома Отца ИВДИВО ИВЧеловека Изначально Вышестоящего Отца, Управления Синтеза Теодора"]
[null,26,"Логос, Ипостась Изначально Вышестоящей Матери, Глава Дома Отца Основности ИВО, Управления Синтеза Антея"]
[null,27,"Логос, Ипостась Изначально Вышестоящей Матери, Глава Дома Отца Истинности ИВО, Управления Синтеза Наума"]
[null,28,"Логос, Ипостась Изначально Вышестоящей Матери, Глава Дома Отца Окскости ИВО, Управления Синтеза Велемира"]
[null,29,"Логос, Ипостась Изначально Вышестоящей Матери, Глава Дома Отца Человека Изначальной Метагалактики ИВО, Управления Синтеза Георга"]
[null,30,"Логос, Ипостась Изначально Вышестоящей Матери, Глава Дома Отца Человека Изначальности ИВО, Управления Синтеза Алексея"]
[null,31,"Логос, Ипостась Изначально Вышестоящей Матери, Глава Дома Отца Человека Метагалактики ИВО, Управления Синтеза Эмиля"]
["Основной Состав:"]
[null,22,"Аспект, Ипостась Синтеза Человека Планеты ИВО, Управления Синтеза Дария, Посвящённый Ипостасного Синтеза ВШС"]
[null,23,"Аспект, Ипостась Синтеза ИВДИВО Основ, Управления Синтеза Валентина, Посвящённый Профессионального Синтеза ВШС"]
[null,24,"Аспект, Ипостась Синтеза Идеи ИВО, Управления Синтеза Савия, Посвящённый Синтеза Изначально Вышестоящего Отца ВШС"]
[null,25,"Аспект, Ипостась Синтеза Сути ИВО, Управления Синтеза Вячеслава, Философский Секретарь ВШС"]
[null,26,"Аспект, Ипостась Синтеза Смысла ИВО, Управления Синтеза Андрея, Член-Посвящённый Сиаматического Совета МАН "]
[null,27,"Аспект, Ипостась Синтеза Мысли ИВО, Управления Синтеза Давида, Член-Посвящённый Философского Совета МАН"]
[null,28,"Аспект, Ипостась Синтеза Чувства ИВО, Управления Синтеза Евгения, Член-Посвящённый Учёного Совета МАН"]
[null,29,"Аспект, Ипостась Синтеза Ощущения ИВО, Управления Синтеза Дмитрия, Академический Секретарь МАН"]
[null,30,"Аспект, Ипостась Синтеза Движения ИВО, Управления Синтеза Есения, Посвящённый Статусного Синтеза"]
[null,31,"Аспект, Ипостась Синтеза ИВДИВО Огня, Управления Синтеза Константина, Посвящённый Синтез-Генезиса"]
[null,32,"Аспект, Ипостась Синтеза Духа ИВО, Управления Синтеза Ростислава, Посвящённый Синтез - Стяжаний"]
[null,33,"Аспект, Ипостась Синтеза Света ИВО, Управления Синтеза Яна, Праздничный Секретарь ДСС"]
[null,34,"Аспект, Ипостась Синтеза Энергии ИВО, Управления Синтеза Василия, Посвящённый Синтеза Посвящений"]
[null,35,"Аспект, Ипостась Синтеза Субъядерности ИВО, Управления Синтеза Арсения, Посвящённый Синтез-Практик"]
[null,36,"Аспект, Ипостась Синтеза Формы ИВО, Управления Синтеза Огюста, Посвящённый Синтез - Инструментов"]
[null,37,"Аспект, Ипостась Синтеза Содержания ИВО, Управления Синтеза Илия, Энергопотенциальный Секретарь ДП"]
[null,38,{"$f":"\"Аспект, Ипостась Синтеза Поля ИВО, Управления Синтеза Геральда, Член-Посвящённый \"&Р_М_Совета&\" Совета МГК\"","v":"Аспект, Ипостась Синтеза Поля ИВО, Управления Синтеза Геральда, Член-Посвящённый Регионального Совета МГК"}]
[null,39,{"$f":"\"Аспект, Ипостась Синтеза ИВДИВО Изначальной Метагалактики, Управления Синтеза Платона, Член-Посвящённый  \"&Р_М_Совета&\" Совета МГК\"","v":"Аспект, Ипостась Синтеза ИВДИВО Изначальной Метагалактики, Управления Синтеза Платона, Член-Посвящённый  Регионального Совета МГК"}]
[null,40,{"$f":"\"Аспект, Ипостась Синтеза Свойства ИВО, Управления Синтеза Николая,  \"&Р_М_Совет&\"  Ревизор-Посвящённый МГК\"","v":"Аспект, Ипостась Синтеза Свойства ИВО, Управления Синтеза Николая,  Региональный  Ревизор-Посвящённый МГК"}]
[null,41,{"$f":"\"Аспект, Ипостась Синтеза Качества ИВО, Управления Синтеза Игоря, \"&Р_М_Совет&\" Секретарь МГК\"","v":"Аспект, Ипостась Синтеза Качества ИВО, Управления Синтеза Игоря, Региональный Секретарь МГК"}]
[null,42,"Аспект, Ипостась Синтеза Функции ИВО, Управления Синтеза Яра, Посвящённый Синтеза Частей"]
[null,43,"Аспект, Ипостась Синтеза Процесса ИВО, Управления Синтеза Вадима, Посвящённый Пламени Изначальных Владык"]
[null,44,"Аспект, Ипостась Синтеза Активности ИВО, Управления Синтеза Огнеслава, Посвященный Синтез-Метагалактичности"]
[null,45,"Аспект, Ипостась Синтеза Заряженности ИВО, Управления Синтеза Марка, Офис-секретарь ИЦИС"]
[null,46,"Аспект, Ипостась Синтеза Мощи ИВО, Управления Синтеза Теона, Посвящённый Синтеза Сайта"]
[null,47,"Аспект, Ипостась Синтеза ИВДИВО Метагалактики, Управления Синтеза Трофима, Посвящённый Синтез - Мышления"]
[null,48,"Аспект, Ипостась Синтеза Планеты ИВО, Управления Синтеза Емельяна, Посвящённый Инфопроектов "]
[null,49,"Аспект, Ипостась Синтеза Буддичности Человека ИВО, Управления Синтеза Ефрема, Пресс-секретарь МАИ"]
[null,50,"Аспект, Ипостась Синтеза Всеединой Супергалактики ИВО, Управления Синтеза Натана, Посвящённый Дома Отца ИВДИВО Полномочного"]
[null,51,"Аспект, Ипостась Синтеза Единой Галактики ИВО, Управления Синтеза Артёма, Посвящённый Дома Отца ИВДИВО Полномочного"]
[null,52,"Аспект, Ипостась Синтеза Универсума Солнца ИВО, Управления Синтеза Игнатия, Посвящённый Дома Отца ИВДИВО Полномочного"]
[null,53,"Аспект, Ипостась Синтеза Звёздной Вселенной ИВО, Управления Синтеза Юлиана, Посвящённый Дома Отца Статуса ИВО "]
[null,54,"Аспект, Ипостась Синтеза Физичности ИВО, Управления Синтеза Аркадия, Посвящённый Дома Отца Статуса ИВО "]
[null,55,"Аспект, Ипостась Синтеза ИВДИВО Отца, Управления Синтеза Никиты, Посвящённый Дома Отца Статуса ИВО "]
[null,56,"Аспект, Ипостась Синтеза Матери ИВО, Управления Синтеза Олега, Посвящённый Дома Отца Посвящения ИВО"]
[null,57,"Аспект, Ипостась Синтеза Сына ИВО, Управления Синтеза Владимира, Посвящённый Дома Отца Посвящения ИВО"]
[null,58,"Аспект, Ипостась Синтеза Дочери ИВО, Управления Синтеза Стефана, Посвящённый Дома Отца Посвящения ИВО"]
[null,59,"Аспект, Ипостась Синтеза Аватара ИВО, Управления Синтеза Горислава, Посвящённый Дома Отца Технологии ИВО "]
[null,60,"Аспект, Ипостась Синтеза Майтрейи ИВО, Управления Синтеза Никона, Посвящённый Дома Отца Технологии ИВО "]
[null,61,"Аспект, Ипостась Синтеза Христа ИВО, Управления Синтеза Эрика, Посвящённый Дома Отца Технологии ИВО "]
[null,62,"Аспект, Ипостась Синтеза Будды ИВО, Управления Синтеза Олафа, Посвящённый Дома Отца Изначальности ИВО"]
[null,63,"Аспект, Ипостась Синтеза ИВДИВО Владыки, Управления Синтеза Вацлава, Посвящённый Дома Отца Изначальности ИВО"]
[null,64,"Аспект, Ипостась Синтеза Учителя ИВО, Управления Синтеза Левия, Посвящённый Дома Отца Изначальности ИВО"]
[null,65,"Аспект, Ипостась Синтеза Логоса ИВО, Управления Синтеза Руслана, Посвящённый Дома Отца Присутствия ИВО"]
[null,66,"Аспект, Ипостась Синтеза Аспекта ИВО, Управления Синтеза Генриха, Посвящённый Дома Отца Присутствия ИВО"]
[null,67,"Аспект, Ипостась Синтеза Ипостаси ИВО, Управления Синтеза Владлена, Посвящённый Дома Отца Присутствия ИВО"]
[null,68,"Аспект, Ипостась Синтеза Служащего ИВО, Управления Синтеза Борислава, Посвящённый Дома Отца Мира ИВО"]
[null,69,"Аспект, Ипостась Синтеза Посвящённого ИВО, Управления Синтеза Нестора, Посвящённый Дома Отца Мира ИВО"]
[null,70,"Аспект, Ипостась Синтеза Праведника ИВО, Управления Синтеза Аристарха, Посвящённый Дома Отца Мира ИВО"]
[null,71,"Аспект, Ипостась Синтеза ИВДИВО Неизречённого, Управления Синтеза Альфреда, Посвящённый Дома Отца Метагалактики ИВО"]
[null,72,"Аспект, Ипостась Синтеза Предвечного ИВО, Управления Синтеза Егора, Посвящённый Дома Отца Метагалактики ИВО"]
[null,73,"Аспект, Ипостась Синтеза Всемогущего ИВО, Управления Синтеза Витольда, Посвящённый Дома Отца Метагалактики ИВО"]
[null,74,"Аспект, Ипостась Синтеза Творца ИВО, Управления Синтеза Стократа, Посвящённый Дома Отца ИВДИВО Неизречённого"]
[null,75,"Аспект, Ипостась Синтеза Теурга ИВО, Управления Синтеза Глеба, Посвящённый Дома Отца ИВДИВО Неизречённого"]
[null,76,"Аспект, Ипостась Синтеза Ману ИВО, Управления Синтеза Клавдия, Посвящённый Дома Отца ИВДИВО Неизречённого"]
[null,77,"Аспект, Ипостась Синтеза Всевышнего ИВО, Управления Синтеза Теониса, Посвящённый Дома Отца Предвечного ИВО"]
[null,78,"Аспект, Ипостась Синтеза Предначального ИВО, Управления Синтеза Донана, Посвящённый Дома Отца Предвечного ИВО"]
[null,79,"Аспект, Ипостась Синтеза ИВДИВО Человека ИВО, Управления Синтеза Альберта, Посвящённый Дома Отца Предвечного ИВО"]
[null,80,"Аспект, Ипостась Синтеза Основного Тела ИВО, Управления Синтеза Степана, Посвящённый Дома Отца Всемогущего ИВО"]
[null,81,"Аспект, Ипостась Синтеза Истины ИВО, Управления Синтеза Арсана, Посвящённый Дома Отца Всемогущего ИВО"]
[null,82,"Аспект, Ипостась Синтеза Ока ИВО, Управления Синтеза Остапа, Посвящённый Дома Отца Всемогущего ИВО"]
[null,83,"Аспект, Ипостась Синтеза Хум ИВО, Управления Синтеза Романа, Посвящённый Дома Отца Творца ИВО"]
[null,84,"Аспект, Ипостась Синтеза Абсолют ИВО, Управления Синтеза Клима, Посвящённый Дома Отца Творца ИВО"]
[null,85,"Аспект, Ипостась Синтеза Омеги ИВО, Управления Синтеза Петра, Посвящённый Дома Отца Творца ИВО"]
[null,86,"Аспект, Ипостась Синтеза Монады ИВО, Управления Синтеза Макея, Посвящённый Дома Отца Теурга ИВО [филиал Сосновый Бор]"]
[null,87,"Аспект, Ипостась Синтеза ИВДИВО Человека Изначальной Метагалактики, Управления Синтеза Аниса, Посвящённый Дома Отца Теурга ИВО [филиал Сосновый Бор]"]
[null,88,"Аспект, Ипостась Синтеза Физического Тела ИВО, Управления Синтеза Ара, Посвящённый Дома Отца Теурга ИВО [филиал Сосновый Бор]"]
[null,99,"Аспект, Ипостась Синтеза Разума ИВО, Управления Синтеза Дорадия, Посвящённый Дома Отца Ману ИВО"]
[null,100,"Аспект, Ипостась Синтеза Сердца ИВО, Управления Синтеза Дора, Посвящённый Дома Отца Ману ИВО"]
[null,101,"Аспект, Ипостась Синтеза Мышления ИВО, Управления Синтеза Понтелея, Посвящённый Дома Отца Ману ИВО"]
[null,102,"Аспект, Ипостась Синтеза Головерсума ИВО, Управления Синтеза Явира, Посвящённый Дома Отца Всевышнего ИВО"]
[null,103,"Аспект, Ипостась Синтеза Восприятия ИВО, Управления Синтеза Триса, Посвящённый Дома Отца Всевышнего ИВО"]
[null,104,"Аспект, Ипостась Синтеза Вечности Отца ИВО, Управления Синтеза Виктора, Посвящённый Дома Отца Всевышнего ИВО"]
[null,105,"Аспект, Ипостась Синтеза ИВДИВО Человека Изначальности, Управления Синтеза Визара, Посвящённый Дома Отца Предначального ИВО"]
[null,106,"Аспект, Ипостась Синтеза Синтезтела ИВО, Управления Синтеза Ерёмы, Посвящённый Дома Отца Предначального ИВО"]
[null,107,"Аспект, Ипостась Синтеза Сообразительности ИВО, Управления Синтеза Ираклия, Посвящённый Дома Отца Предначального ИВО"]
[null,108,"Аспект, Ипостась Синтеза Осмысленности ИВО, Управления Синтеза Елизара, Посвящённый Дома Отца ИВДИВО ИВ Человека ИВО "]
[null,109,"Аспект, Ипостась Синтеза Ума ИВО, Управления Синтеза Градимира, Посвящённый Дома Отца ИВДИВО ИВ Человека ИВО"]
[null,110,"Аспект, Ипостась Синтеза Провидения ИВО, Управления Синтеза Рустама, Посвящённый Дома Отца ИВДИВО ИВ Человека ИВО"]
[null,111,"Аспект, Ипостась Синтеза Огненной Нити ИВО, Управления Синтеза Октана, Посвящённый Дома Отца Основности ИВО"]
[null,112,"Аспект, Ипостась Синтеза Пламени Отца ИВО, Управления Синтеза Силуана, Посвящённый Дома Отца Основности ИВО"]
[null,113,"Аспект, Ипостась Синтеза ИВДИВО Человека Метагалактики, Управления Синтеза Лукьяна, Посвящённый Дома Отца Основности ИВО"]
[null,114,"Аспект, Ипостась Синтеза Трансвизора ИВО, Управления Синтеза Люсьена, Посвящённый Дома Отца Истинности ИВО"]
[null,115,"Аспект, Ипостась Синтеза Интеллекта ИВО, Управления Синтеза Андриана, Посвящённый Дома Отца Истинности ИВО"]
[null,116,"Аспект, Ипостась Синтеза Престола ИВО, Управления Синтеза Прокофия, Посвящённый Дома Отца Истинности ИВО"]
[null,117,"Аспект, Ипостась Синтеза Веры ИВО, Управления Синтеза Зарка, Посвящённый Дома Отца Окскости ИВО"]
[null,118,"Аспект, Ипостась Синтеза Чувствознания ИВО, Управления Синтеза Станиса, Посвящённый Дома Отца Окскости ИВО"]
[null,119,"Аспект, Ипостась Синтеза Потенциала ИВО, Управления Синтеза Панкрата, Посвящённый Дома Отца Окскости ИВО"]
[null,120,"Аспект, Ипостась Синтеза Мощи Отца ИВО, Управления Синтеза Старка, Посвящённый Дома Отца Человека Изначальной Метагалактики ИВО"]
[null,121,"Аспект, Ипостась Синтеза ИВДИВО Человека Планеты, Управления Синтеза Дорофея, Посвящённый Дома Отца Человека Изначальной Мг ИВО"]
[null,122,"Аспект, Ипостась Синтеза Столпа ИВО, Управления Синтеза Якова, Посвящённый Дома Отца Человека Изначальной Метагалактики ИВО"]
[null,123,"Аспект, Ипостась Синтеза Сознания ИВО, Управления Синтеза Ульяна, Посвящённый Дома Отца Человека Изначальности ИВО"]
[null,124,"Аспект, Ипостась Синтеза Грааля ИВО, Управления Синтеза Германа, Посвящённый Дома Отца Человека Изначальности ИВО"]
[null,125,"Аспект, Ипостась Синтеза Синтезобраза ИВО, Управления Синтеза Радомира, Посвящённый Дома Отца Человека Изначальности ИВО"]
[null,126,"Аспект, Ипостась Синтеза Души ИВО, Управления Синтеза Октавия, Посвящённый Дома Отца Человека Метагалактики ИВО"]
[null,127,"Аспект, Ипостась Синтеза Слова Отца ИВО, Управления Синтеза Кима, Посвящённый Дома Отца Человека Метагалактики ИВО"]
[null,128,"Аспект, Ипостась Синтеза Образа Отца ИВО, Управления Синтеза Бонифация, Посвящённый Дома Отца Человека Метагалактики ИВО"]
["Синтезный Состав:"]
[null,89,"Ипостась Синтезтела Изначального Отца Изначально Вышестоящего Отца 383мерного, Управления Синтеза Фаинь"]
[null,90,"Ипостась Синтезтела Изначальной Матери Изначально Вышестоящего Отца 382мерного, Управления Синтеза Славии"]
[null,91,"Ипостась Синтезтела Изначального Сына Изначально Вышестоящего Отца 381мерного, Управления Синтеза Свет"]
[null,92,"Ипостась Синтезтела Изначальной Дочери Изначально Вышестоящего Отца 380мерного, Управления Синтеза Марины"]
[null,93,"Ипостась Синтезтела Изначального Аватара Изначально Вышестоящего Отца 379мерного, Управления Синтеза Альбины"]
[null,94,"Ипостась Синтезтела Изначального Майтрейи Изначально Вышестоящего Отца 378мерного, Управления Синтеза Вероники"]
[null,95,"Ипостась Синтезтела Изначального Христа Изначально Вышестоящего Отца 377мерного, Управления Синтеза Сианы"]
[null,96,"Ипостась Синтезтела Изначального Будды Изначально Вышестоящего Отца 376мерного, Управления Синтеза Оны"]
[null,97,"Ипостась Синтезтела Изначального Владыки Изначально Вышестоящего Отца 375мерного, Управления Синтеза Стефании"]
[null,98,"Ипостась Синтезтела Изначального Учителя Изначально Вышестоящего Отца 374мерного, Управления Синтеза Святы"]
[null,99,"Ипостась Синтезтела Изначального Логоса Изначально Вышестоящего Отца 373мерного, Управления Синтеза Баяны"]
[null,100,"Ипостась Синтезтела Изначального Аспекта Изначально Вышестоящего Отца 372мерного, Управления Синтеза Екатерины"]
[null,101,"Ипостась Синтезтела Изначальной Ипостаси Изначально Вышестоящего Отца 371мерного, Управления Синтеза Сивиллы"]
[null,102,"Ипостась Синтезтела Изначального Служащего Изначально Вышестоящего Отца 370мерного, Управления Синтеза Тамилы"]
[null,103,"Ипостась Синтезтела Изначального Посвящённого Изначально Вышестоящего Отца 369мерного, Управления Синтеза Ники"]
[null,104,"Ипостась Синтезтела Изначального Праведника Изначально Вышестоящего Отца 368мерного, Управления Синтеза Велетте"]
[null,105,"Ипостась Синтезтела Изначального Неизречённого Изначально Вышестоящего Отца 367мерного, Управления Синтеза Эмилии"]
[null,106,"Ипостась Синтезтела Изначального Предвечного Изначально Вышестоящего Отца 366мерного, Управления Синтеза Елены"]
[null,107,"Ипостась Синтезтела Изначального Всемогущего Изначально Вышестоящего Отца 365мерного, Управления Синтеза Валерии"]
[null,108,"Ипостась Синтезтела Изначального Творца Изначально Вышестоящего Отца 364мерного, Управления Синтеза Олеси"]
[null,109,"Ипостась Синтезтела Изначального Теурга Изначально Вышестоящего Отца 363мерного, Управления Синтеза Антуанетты"]
[null,110,"Ипостась Синтезтела Изначального Ману Изначально Вышестоящего Отца 362мерного, Управления Синтеза Юлианы"]
[null,111,"Ипостась Синтезтела Изначального Всевышнего Изначально Вышестоящего Отца 361мерного, Управления Синтеза Синтии"]
[null,112,"Ипостась Синтезтела Изначального Предначального Изначально Вышестоящего Отца 360мерного, Управления Синтеза Виктории"]
[null,113,"Ипостась Синтезтела Изначального Человека Изначально Вышестоящего Отца Изначально Вышестоящего Отца 359мерного, Управления Синтеза Дариды"]
[null,114,"Ипостась Синтезтела Изначального Основного Изначально Вышестоящего Отца 358мерного, Управления Синтеза Алины"]
[null,115,"Ипостась Синтезтела Изначального Истинного Изначально Вышестоящего Отца 357мерного, Управления Синтеза Софьи"]
[null,116,"Ипостась Синтезтела Изначального Окского Изначально Вышестоящего Отца 356мерного, Управления Синтеза Агафьи"]
[null,117,"Ипостась Синтезтела Изначального Человека Изначальной Метагалактики Изначально Вышестоящего Отца 355мерного, Управления Синтеза Дарьи"]
[null,118,"Ипостась Синтезтела Изначального Человека Изначальности Изначально Вышестоящего Отца 354мерного, Управления Синтеза Иланы"]
[null,119,"Ипостась Синтезтела Изначального Человека Метагалактики Изначально Вышестоящего Отца 353мерного, Управления Синтеза Яны"]
[null,120,"Ипостась Синтезтела Изначального Человека Планеты Изначально Вышестоящего Отца 352мерного, Управления Синтеза Давлаты"]
[null,121,"Ипостась Синтезтела ИВДИВО Основ Изначально Вышестоящего Отца 351мерного, Управления Синтеза Ирины"]
[null,122,"Ипостась Синтезтела Идей Изначально Вышестоящего Отца 350мерного, Управления Синтеза Лины"]
[null,123,"Ипостась Синтезтела Сути Изначально Вышестоящего Отца 349мерного, Управления Синтеза Анастасии"]
[null,124,"Ипостась Синтезтела Смыслов Изначально Вышестоящего Отца 348мерного, Управления Синтеза Омы"]
[null,125,"Ипостась Синтезтела Мыслей Изначально Вышестоящего Отца 347мерного, Управления Синтеза Сольвейг"]
[null,126,"Ипостась Синтезтела Чувств Изначально Вышестоящего Отца 346мерного, Управления Синтеза Октавии"]
[null,127,"Ипостась Синтезтела Ощущений Изначально Вышестоящего Отца 345мерного, Управления Синтеза Кристины"]
[null,128,"Ипостась Синтезтела Движений Изначально Вышестоящего Отца 344мерного, Управления Синтеза Версавии"]
[null,129,"Ипостась Синтезтела ИВДИВО Огня Изначально Вышестоящего Отца 343мерного, Управления Синтеза Ксении"]
[null,130,"Ипостась Синтезтела Духа Изначально Вышестоящего Отца 342мерного, Управления Синтеза Эммы"]
[null,131,"Ипостась Синтезтела Света Изначально Вышестоящего Отца 341мерного, Управления Синтеза Стафии"]
[null,132,"Ипостась Синтезтела Энергии Изначально Вышестоящего Отца 340мерного, Управления Синтеза Оксаны"]
[null,133,"Ипостась Синтезтела Субъядерности Изначально Вышестоящего Отца 339мерного, Управления Синтеза Ульяны"]
[null,134,"Ипостась Синтезтела Формы Изначально Вышестоящего Отца 338мерного, Управления Синтеза Беатрисс"]
[null,135,"Ипостась Синтезтела Содержания Изначально Вышестоящего Отца 337мерного, Управления Синтеза Оливии"]
[null,136,"Ипостась Синтезтела Поля Изначально Вышестоящего Отца 336мерного, Управления Синтеза Аллы"]
[null,137,"Ипостась Синтезтела ИВДИВО Изначальной Метагалактики Изначально Вышестоящего Отца 335мерного, Управления Синтеза Натали"]
[null,138,"Ипостась Синтезтела Свойств Изначально Вышестоящего Отца 334мерного, Управления Синтеза Эвы"]
[null,139,"Ипостась Синтезтела Качеств Изначально Вышестоящего Отца 333мерного, Управления Синтеза Ланы"]
[null,140,"Ипостась Синтезтела Функций Изначально Вышестоящего Отца 332мерного, Управления Синтеза Одель"]
[null,141,"Ипостась Синтезтела Процессов Изначально Вышестоящего Отца 331мерного, Управления Синтеза Тамары"]
[null,142,"Ипостась Синтезтела Активностей Изначально Вышестоящего Отца 330мерного, Управления Синтеза Нины"]
[null,143,"Ипостась Синтезтела Заряженностей Изначально Вышестоящего Отца 329мерного, Управления Синтеза Орфеи"]
[null,144,"Ипостась Синтезтела Мощи Изначально Вышестоящего Отца 328мерного, Управления Синтеза Вергилии"]
[null,145,"Ипостась Синтезтела ИВДИВО Метагалактики Изначально Вышестоящего Отца 327мерного, Управления Синтеза Василисы"]
[null,146,"Ипостась Синтезтела Планеты Изначально Вышестоящего Отца 326мерного, Управления Синтеза Варвары"]
[null,147,"Ипостась Синтезтела Буддичности Человека Изначально Вышестоящего Отца 325мерного, Управления Синтеза Арины"]
[null,148,"Ипостась Синтезтела Всеединой Супергалактики Изначально Вышестоящего Отца 324мерного, Управления Синтеза Амалии"]
[null,149,"Ипостась Синтезтела Единой Галактики Изначально Вышестоящего Отца 323мерного, Управления Синтеза Елизаветы"]
[null,150,"Ипостась Синтезтела Универсума Солнца Изначально Вышестоящего Отца 322мерного, Управления Синтеза Веры"]
[null,151,"Ипостась Синтезтела Звёздной Вселенной Изначально Вышестоящего Отца 321мерного, Управления Синтеза Мирославы"]
[null,152,"Ипостась Синтезтела Физичности Изначально Вышестоящего Отца 320мерного, Управления Синтеза Даяны"]
[null,153,"Ипостась Синтезтела ИВДИВО Отца Изначально Вышестоящего Отца 319мерного, Управления Синтеза Стеллы"]
[null,154,"Ипостась Синтезтела Матери Изначально Вышестоящего Отца 318мерного, Управления Синтеза Доры"]
[null,155,"Ипостась Синтезтела Сына Изначально Вышестоящего Отца 317мерного, Управления Синтеза Клавдии"]
[null,196,"Ипостась Синтезтела Дочери Изначально Вышестоящего Отца 316мерного, Управления Синтеза Лады"]
[null,197,"Ипостась Синтезтела Аватара Изначально Вышестоящего Отца 315мерного, Управления Синтеза Ветты"]
[null,198,"Ипостась Синтезтела Майтрейи Изначально Вышестоящего Отца 314мерного, Управления Синтеза Власты"]
[null,199,"Ипостась Синтезтела Христа Изначально Вышестоящего Отца 313мерного, Управления Синтеза Офелии"]
[null,200,"Ипостась Синтезтела Будды Изначально Вышестоящего Отца 312мерного, Управления Синтеза Данаи"]
[null,201,"Ипостась Синтезтела ИВДИВО Владыки Изначально Вышестоящего Отца 311мерного, Управления Синтеза Ханны"]
[null,202,"Ипостась Синтезтела Учителя Изначально Вышестоящего Отца 310мерного, Управления Синтеза Хлои"]
[null,203,"Ипостась Синтезтела Логоса Изначально Вышестоящего Отца 309мерного, Управления Синтеза Надежды"]
[null,204,"Ипостась Синтезтела Аспекта Изначально Вышестоящего Отца 308мерного, Управления Синтеза Оллы"]
[null,205,"Ипостась Синтезтела Ипостаси Изначально Вышестоящего Отца 307мерного, Управления Синтеза Илоны"]
[null,206,"Ипостась Синтезтела Служащего Изначально Вышестоящего Отца 306мерного, Управления Синтеза Генриетты"]
[null,207,"Ипостась Синтезтела Посвящённого Изначально Вышестоящего Отца 305мерного, Управления Синтеза Марии"]
[null,208,"Ипостась Синтезтела Праведника Изначально Вышестоящего Отца 304мерного, Управления Синтеза Глории"]
[null,209,"Ипостась Синтезтела ИВДИВО Неизречённого Изначально Вышестоящего Отца 303мерного, Управления Синтеза Констанции"]
[null,210,"Ипостась Синтезтела Предвечного Изначально Вышестоящего Отца 302мерного, Управления Синтеза Стэвии"]
[null,211,"Ипостась Синтезтела Всемогущего Изначально Вышестоящего Отца 301мерного, Управления Синтеза Полины"]
[null,212,"Ипостась Синтезтела Творца Изначально Вышестоящего Отца 300мерного, Управления Синтеза Виры"]
[null,213,"Ипостась Синтезтела Теурга Изначально Вышестоящего Отца 299мерного, Управления Синтеза Фанны"]
[null,214,"Ипостась Синтезтела Ману Изначально Вышестоящего Отца 298мерного, Управления Синтеза Евгении"]
[null,215,"Ипостась Синтезтела Всевышнего Изначально Вышестоящего Отца 297мерного, Управления Синтеза Элины"]
[null,216,"Ипостась Синтезтела Предначального Изначально Вышестоящего Отца 296мерного, Управления Синтеза Сары"]
[null,217,"Ипостась Синтезтела ИВДИВО Человека Изначально Вышестоящего Отца 295мерного, Управления Синтеза Алевтины"]
[null,218,"Ипостась Синтезтела Основного Тела Изначально Вышестоящего Отца 294мерного, Управления Синтеза Раисы"]
[null,219,"Ипостась Синтезтела Истины Изначально Вышестоящего Отца 293мерного, Управления Синтеза Авроры"]
[null,220,"Ипостась Синтезтела Ока Изначально Вышестоящего Отца 292мерного, Управления Синтеза Диланы"]
[null,221,"Ипостась Синтезтела Хум Изначально Вышестоящего Отца 291мерного, Управления Синтеза Яси"]
[null,222,"Ипостась Синтезтела Абсолют Изначально Вышестоящего Отца 290мерного, Управления Синтеза Фиры"]
[null,223,"Ипостась Синтезтела Омеги Изначально Вышестоящего Отца 289мерного, Управления Синтеза Омелии"]
[null,224,"Ипостась Синтезтела Монады Изначально Вышестоящего Отца 288мерного, Управления Синтеза Мадлен"]
[null,225,"Ипостась Синтезтела ИВДИВО Человека Изначальной Метагалактики Изначально Вышестоящего Отца 287мерного, Управления Синтеза Риммы"]
[null,226,"Ипостась Синтезтела Физического Тела Изначально Вышестоящего Отца 286мерного, Управления Синтеза Беллы"]
[null,227,"Ипостась Синтезтела Разума Изначально Вышестоящего Отца 285мерного, Управления Синтеза Агнии"]
[null,228,"Ипостась Синтезтела Сердца Изначально Вышестоящего Отца 284мерного, Управления Синтеза Фелиции"]
[null,229,"Ипостась Синтезтела Мышления Изначально Вышестоящего Отца 283мерного, Управления Синтеза Виталины"]
[null,230,"Ипостась Синтезтела Головерсума Изначально Вышестоящего Отца 282мерного, Управления Синтеза Ноны"]
[null,231,"Ипостась Синтезтела Восприятия Изначально Вышестоящего Отца 281мерного, Управления Синтеза Клементины"]
[null,232,"Ипостась Синтезтела Вечности Отца Изначально Вышестоящего Отца 280мерного, Управления Синтеза Лиры"]
[null,233,"Ипостась Синтезтела ИВДИВО Человека Изначальности Изначально Вышестоящего Отца 279мерного, Управления Синтеза Ванессы"]
[null,234,"Ипостась Синтезтела Изначально Вышестоящего Отца 278мерного, Управления Синтеза Евдокии"]
[null,235,"Ипостась Синтезтела Сообразительности Изначально Вышестоящего Отца 277мерного, Управления Синтеза Клары"]
[null,236,"Ипостась Синтезтела Осмысленности Изначально Вышестоящего Отца 276мерного, Управления Синтеза Лизы"]
[null,237,"Ипостась Синтезтела Ума Изначально Вышестоящего Отца 275мерного, Управления Синтеза Сюзанны"]
[null,238,"Ипостась Синтезтела Провидения Изначально Вышестоящего Отца 274мерного, Управления Синтеза Сейлы"]
[null,239,"Ипостась Синтезтела Огненной Нити Изначально Вышестоящего Отца 273мерного, Управления Синтеза Русланы"]
[null,240,"Ипостась Синтезтела Пламени Отца Изначально Вышестоящего Отца 272мерного, Управления Синтеза Устины"]
[null,241,"Ипостась Синтезтела ИВДИВО Человека Метагалактики Изначально Вышестоящего Отца 271мерного, Управления Синтеза Марики"]
[null,242,"Ипостась Синтезтела Трансвизора Изначально Вышестоящего Отца 270мерного, Управления Синтеза Франсуазы"]
[null,243,"Ипостась Синтезтела Интеллекта Изначально Вышестоящего Отца 269мерного, Управления Синтеза Христины"]
[null,244,"Ипостась Синтезтела Престола Изначально Вышестоящего Отца 268мерного, Управления Синтеза Иоланы"]
[null,245,"Ипостась Синтезтела Веры Изначально Вышестоящего Отца 267мерного, Управления Синтеза Джесики"]
[null,246,"Ипостась Синтезтела Чувствознания Изначально Вышестоящего Отца 266мерного, Управления Синтеза Сабины"]
[null,247,"Ипостась Синтезтела Потенциала Изначально Вышестоящего Отца 265мерного, Управления Синтеза Нелли"]
[null,248,"Ипостась Синтезтела Мощи Отца Изначально Вышестоящего Отца 264мерного, Управления Синтеза Санты"]
[null,249,"Ипостась Синтезтела ИВДИВО Человека Планеты Изначально Вышестоящего Отца 263мерного, Управления Синтеза Доротеи"]
[null,250,"Ипостась Синтезтела Столпа Изначально Вышестоящего Отца 262мерного, Управления Синтеза Янины"]
[null,251,"Ипостась Синтезтела Сознания Изначально Вышестоящего Отца 261мерного, Управления Синтеза Люции"]
[null,252,"Ипостась Синтезтела Грааля Изначально Вышестоящего Отца 260мерного, Управления Синтеза Ирэн"]
[null,253,"Ипостась Синтезтела Синтезобраза Изначально Вышестоящего Отца 259мерного, Управления Синтеза Сесилии"]
[null,254,"Ипостась Синтезтела Души Изначально Вышестоящего Отца 258мерного, Управления Синтеза Вериславы"]
[null,255,"Ипостась Синтезтела Слова Отца Изначально Вышестоящего Отца 257мерного, Управления Синтеза Станиславы"]
[null,256,"Ипостась Синтезтела Образа Отца Изначально Вышестоящего Отца 256мерного, Управления Синтеза Милославы"]

{"sheet":"Здание","index":2,"n_rows":261,"n_cols":4,"rows_kept":261,"cut":false,"hidden":false,"merged":[[4,2,4,3],[0,2,0,3]]}
[null,null,{"$f":"\"Здание \"&Наименование_Подразделения&\" \"&Изначальность&\" Изначальности, \"&Территория &\"\nна 1 вышестоящем Присутствии \" &Изначальность & \" Изначальности\"","v":"Здание Иерархии ИВО ИВДИВО 255 Изначальности, Санкт-Петербург\nна 1 вышестоящем Присутствии 255 Изначальности"}]
[]
[null,null,"Залы Иерархов ИВДИВО","Залы и кабинеты Полномочных в Здании"]
[]
[null,null,"Зал Изначально Вышестоящего Отца"]
[256,null,{"$f":"\"Зал и кабинет \"&справочники!E2&\" ИВО\nЗал и кабинет Изначального Владыки ИВО \"&справочники!M2","v":"Зал и кабинет Изначального Отца ИВО\nЗал и кабинет Изначального Владыки ИВО Кут Хуми"},{"$f":"IF(Полномочные!D16=\"\",\"\", \"Зал и кабинет \"&Полномочные!C16&\" \"&Полномочные!D16)&\"\nЗал Совета ИВО\nЗал Совета ИВДИВО\"","v":"\nЗал Совета ИВО\nЗал Совета ИВДИВО"}]
[255,null,{"$f":"\"Зал и кабинет \"&справочники!E3&\" ИВО\nЗал и кабинет Изначального Владыки ИВО \"&справочники!M3","v":"Зал и кабинет Изначальной Матери ИВО\nЗал и кабинет Изначального Владыки ИВО Иосифа"},{"$f":"IF(Полномочные!D17=\"\",\"\", \"Зал и кабинет \"&Полномочные!C17&\" \"&Полномочные!D17)","v":""}]
[254,null,{"$f":"\"Зал и кабинет \"&справочники!E4&\" ИВО\nЗал и кабинет Изначального Владыки ИВО \"&справочники!M4","v":"Зал и кабинет Изначального Сына ИВО\nЗал и кабинет Изначального Владыки ИВО Мории"},{"$f":"IF(Полномочные!D18=\"\",\"\", \"Зал и кабинет \"&Полномочные!C18&\" \"&Полномочные!D18)","v":""}]
[253,null,{"$f":"\"Зал и кабинет \"&справочники!E5&\" ИВО\nЗал и кабинет Изначального Владыки ИВО \"&справочники!M5","v":"Зал и кабинет Изначальной Дочери ИВО\nЗал и кабинет Изначального Владыки ИВО Филиппа"},{"$f":"IF(Полномочные!D19=\"\",\"\", \"Зал и кабинет \"&Полномочные!C19&\" \"&Полномочные!D19)","v":""}]
[252,null,{"$f":"\"Зал и кабинет \"&справочники!E6&\" ИВО\nЗал и кабинет Изначального Владыки ИВО \"&справочники!M6","v":"Зал и кабинет Изначального Аватара ИВО\nЗал и кабинет Изначального Владыки ИВО Византия"},{"$f":"IF(Полномочные!D20=\"\",\"\", \"Зал и кабинет \"&Полномочные!C20&\" \"&Полномочные!D20)","v":""}]
[251,null,{"$f":"\"Зал и кабинет \"&справочники!E7&\" ИВО\nЗал и кабинет Изначального Владыки ИВО \"&справочники!M7","v":"Зал и кабинет Изначального Майтрейи ИВО\nЗал и кабинет Изначального Владыки ИВО Янова"},{"$f":"IF(Полномочные!D21=\"\",\"\", \"Зал и кабинет \"&Полномочные!C21&\" \"&Полномочные!D21)","v":""}]
[250,null,{"$f":"\"Зал и кабинет \"&справочники!E8&\" ИВО\nЗал и кабинет Изначального Владыки ИВО \"&справочники!M8","v":"Зал и кабинет Изначального Христа ИВО\nЗал и кабинет Изначального Владыки ИВО Юлия"},{"$f":"IF(Полномочные!D22=\"\",\"\", \"Зал и кабинет \"&Полномочные!C22&\" \"&Полномочные!D22)","v":""}]
[249,null,{"$f":"\"Зал и кабинет \"&справочники!E9&\" ИВО\nЗал и кабинет Изначального Владыки ИВО \"&справочники!M9","v":"Зал и кабинет Изначального Будды ИВО\nЗал и кабинет Изначального Владыки ИВО Юсефа"},{"$f":"IF(Полномочные!D23=\"\",\"\", \"Зал и кабинет \"&Полномочные!C23&\" \"&Полномочные!D23)","v":""}]
[248,null,{"$f":"\"Зал и кабинет \"&справочники!E10&\" ИВО\nЗал и кабинет Изначального Владыки ИВО \"&справочники!M10","v":"Зал и кабинет Изначального Владыки ИВО\nЗал и кабинет Изначального Владыки ИВО Владомира"},{"$f":"IF(Полномочные!D25=\"\",\"\", \"Зал и кабинет \"&Полномочные!C25&\" \"&Полномочные!D25)","v":""}]
[247,null,{"$f":"\"Зал и кабинет \"&справочники!E11&\" ИВО\nЗал и кабинет Изначального Владыки ИВО \"&справочники!M11","v":"Зал и кабинет Изначального Учителя ИВО\nЗал и кабинет Изначального Владыки ИВО Саввы"},{"$f":"IF(Полномочные!D26=\"\",\"\", \"Зал и кабинет \"&Полномочные!C26&\" \"&Полномочные!D26)","v":""}]
[246,null,{"$f":"\"Зал и кабинет \"&справочники!E12&\" ИВО\nЗал и кабинет Изначального Владыки ИВО \"&справочники!M12","v":"Зал и кабинет Изначального Логоса ИВО\nЗал и кабинет Изначального Владыки ИВО Савелия"},{"$f":"IF(Полномочные!D27=\"\",\"\", \"Зал и кабинет \"&Полномочные!C27&\" \"&Полномочные!D27)","v":""}]
[245,null,{"$f":"\"Зал и кабинет \"&справочники!E13&\" ИВО\nЗал и кабинет Изначального Владыки ИВО \"&справочники!M13","v":"Зал и кабинет Изначального Аспекта ИВО\nЗал и кабинет Изначального Владыки ИВО Вильгельма"},{"$f":"IF(Полномочные!D28=\"\",\"\", \"Зал и кабинет \"&Полномочные!C28&\" \"&Полномочные!D28)","v":""}]
[244,null,{"$f":"\"Зал и кабинет \"&справочники!E14&\" ИВО\nЗал и кабинет Изначального Владыки ИВО \"&справочники!M14","v":"Зал и кабинет Изначальной Ипостаси ИВО\nЗал и кабинет Изначального Владыки ИВО Юстаса"},{"$f":"IF(Полномочные!D29=\"\",\"\", \"Зал и кабинет \"&Полномочные!C29&\" \"&Полномочные!D29)","v":""}]
[243,null,{"$f":"\"Зал и кабинет \"&справочники!E15&\" ИВО\nЗал и кабинет Изначального Владыки ИВО \"&справочники!M15","v":"Зал и кабинет Изначального Служащего ИВО\nЗал и кабинет Изначального Владыки ИВО Александра"},{"$f":"IF(Полномочные!D30=\"\",\"\", \"Зал и кабинет \"&Полномочные!C30&\" \"&Полномочные!D30)","v":""}]
[242,null,{"$f":"\"Зал и кабинет \"&справочники!E16&\" ИВО\nЗал и кабинет Изначального Владыки ИВО \"&справочники!M16","v":"Зал и кабинет Изначального Посвящённого ИВО\nЗал и кабинет Изначального Владыки ИВО Яромира"},{"$f":"IF(Полномочные!D31=\"\",\"\", \"Зал и кабинет \"&Полномочные!C31&\" \"&Полномочные!D31)","v":""}]
[241,null,{"$f":"\"Зал и кабинет \"&справочники!E17&\" ИВО\nЗал и кабинет Изначального Владыки ИВО \"&справочники!M17","v":"Зал и кабинет Изначального Праведника ИВО\nЗал и кабинет Изначального Владыки ИВО Сераписа"},{"$f":"IF(Полномочные!D32=\"\",\"\", \"Зал и кабинет \"&Полномочные!C32&\" \"&Полномочные!D32)","v":""}]
[240,null,{"$f":"\"Зал и кабинет \"&справочники!E18&\" ИВО\nЗал и кабинет Изначального Владыки ИВО \"&справочники!M18","v":"Зал и кабинет Изначального Неизречённого ИВО\nЗал и кабинет Изначального Владыки ИВО Эдуарда"},{"$f":"IF(Полномочные!D33=\"\",\"\", \"Зал и кабинет \"&Полномочные!C33&\" \"&Полномочные!D33)","v":""}]
[239,null,{"$f":"\"Зал и кабинет \"&справочники!E19&\" ИВО\nЗал и кабинет Изначального Владыки ИВО \"&справочники!M19","v":"Зал и кабинет Изначального Предвечного ИВО\nЗал и кабинет Изначального Владыки ИВО Фадея"},{"$f":"IF(Полномочные!D34=\"\",\"\", \"Зал и кабинет \"&Полномочные!C34&\" \"&Полномочные!D34)","v":""}]
[238,null,{"$f":"\"Зал и кабинет \"&справочники!E20&\" ИВО\nЗал и кабинет Изначального Владыки ИВО \"&справочники!M20","v":"Зал и кабинет Изначального Всемогущего ИВО\nЗал и кабинет Изначального Владыки ИВО Серафима"},{"$f":"IF(Полномочные!D35=\"\",\"\", \"Зал и кабинет \"&Полномочные!C35&\" \"&Полномочные!D35)","v":""}]
[237,null,{"$f":"\"Зал и кабинет \"&справочники!E21&\" ИВО\nЗал и кабинет Изначального Владыки ИВО \"&справочники!M21","v":"Зал и кабинет Изначального Творца ИВО\nЗал и кабинет Изначального Владыки ИВО Святослава"},{"$f":"IF(Полномочные!D36=\"\",\"\", \"Зал и кабинет \"&Полномочные!C36&\" \"&Полномочные!D36)","v":""}]
[236,null,{"$f":"\"Зал и кабинет \"&справочники!E22&\" ИВО\nЗал и кабинет Изначального Владыки ИВО \"&справочники!M22","v":"Зал и кабинет Изначального Теурга ИВО\nЗал и кабинет Изначального Владыки ИВО Эоана"},{"$f":"IF(Полномочные!D37=\"\",\"\", \"Зал и кабинет \"&Полномочные!C37&\" \"&Полномочные!D37)","v":""}]
[235,null,{"$f":"\"Зал и кабинет \"&справочники!E23&\" ИВО\nЗал и кабинет Изначального Владыки ИВО \"&справочники!M23","v":"Зал и кабинет Изначального Ману ИВО\nЗал и кабинет Изначального Владыки ИВО Сергея"},{"$f":"IF(Полномочные!D38=\"\",\"\", \"Зал и кабинет \"&Полномочные!C38&\" \"&Полномочные!D38)","v":""}]
[234,null,{"$f":"\"Зал и кабинет \"&справочники!E24&\" ИВО\nЗал и кабинет Изначального Владыки ИВО \"&справочники!M24","v":"Зал и кабинет Изначального Всевышнего ИВО\nЗал и кабинет Изначального Владыки ИВО Сулеймана"},{"$f":"IF(Полномочные!D39=\"\",\"\", \"Зал и кабинет \"&Полномочные!C39&\" \"&Полномочные!D39)","v":""}]
[233,null,{"$f":"\"Зал и кабинет \"&справочники!E25&\" ИВО\nЗал и кабинет Изначального Владыки ИВО \"&справочники!M25","v":"Зал и кабинет Изначального Предначального ИВО\nЗал и кабинет Изначального Владыки ИВО Себастьяна"},{"$f":"IF(Полномочные!D40=\"\",\"\", \"Зал и кабинет \"&Полномочные!C40&\" \"&Полномочные!D40)","v":""}]
[232,null,{"$f":"\"Зал и кабинет \"&справочники!E26&\" ИВО\nЗал и кабинет Изначального Владыки ИВО \"&справочники!M26","v":"Зал и кабинет Изначального Человека ИВО\nЗал и кабинет Изначального Владыки ИВО Теодора"},{"$f":"IF(Полномочные!D41=\"\",\"\", \"Зал и кабинет \"&Полномочные!C41&\" \"&Полномочные!D41)","v":""}]
[231,null,{"$f":"\"Зал и кабинет \"&справочники!E27&\" ИВО\nЗал и кабинет Изначального Владыки ИВО \"&справочники!M27","v":"Зал и кабинет Изначального Основного ИВО\nЗал и кабинет Изначального Владыки ИВО Антея"},{"$f":"IF(Полномочные!D42=\"\",\"\", \"Зал и кабинет \"&Полномочные!C42&\" \"&Полномочные!D42)","v":""}]
[230,null,{"$f":"\"Зал и кабинет \"&справочники!E28&\" ИВО\nЗал и кабинет Изначального Владыки ИВО \"&справочники!M28","v":"Зал и кабинет Изначального Истинного ИВО\nЗал и кабинет Изначального Владыки ИВО Наума"},{"$f":"IF(Полномочные!D43=\"\",\"\", \"Зал и кабинет \"&Полномочные!C43&\" \"&Полномочные!D43)","v":""}]
[229,null,{"$f":"\"Зал и кабинет \"&справочники!E29&\" ИВО\nЗал и кабинет Изначального Владыки ИВО \"&справочники!M29","v":"Зал и кабинет Изначального Окского ИВО\nЗал и кабинет Изначального Владыки ИВО Велемира"},{"$f":"IF(Полномочные!D44=\"\",\"\", \"Зал и кабинет \"&Полномочные!C44&\" \"&Полномочные!D44)","v":""}]
[228,null,{"$f":"\"Зал и кабинет \"&справочники!E30&\" ИВО\nЗал и кабинет Изначального Владыки ИВО \"&справочники!M30","v":"Зал и кабинет Изначального Человека Изначальной Мг ИВО\nЗал и кабинет Изначального Владыки ИВО Георга"},{"$f":"IF(Полномочные!D45=\"\",\"\", \"Зал и кабинет \"&Полномочные!C45&\" \"&Полномочные!D45)","v":""}]
[227,null,{"$f":"\"Зал и кабинет \"&справочники!E31&\" ИВО\nЗал и кабинет Изначального Владыки ИВО \"&справочники!M31","v":"Зал и кабинет Изначального Человека Изначальности ИВО\nЗал и кабинет Изначального Владыки ИВО Алексея"},{"$f":"IF(Полномочные!D46=\"\",\"\", \"Зал и кабинет \"&Полномочные!C46&\" \"&Полномочные!D46)","v":""}]
[226,null,{"$f":"\"Зал и кабинет \"&справочники!E32&\" ИВО\nЗал и кабинет Изначального Владыки ИВО \"&справочники!M32","v":"Зал и кабинет Изначального Человека Метагалактики ИВО\nЗал и кабинет Изначального Владыки ИВО Эмиля"},{"$f":"IF(Полномочные!D47=\"\",\"\", \"Зал и кабинет \"&Полномочные!C47&\" \"&Полномочные!D47)","v":""}]
[225,null,{"$f":"\"Зал и кабинет \"&справочники!E33&\" ИВО\nЗал и кабинет Изначального Владыки ИВО \"&справочники!M33","v":"Зал и кабинет Изначального Человека Планеты ИВО\nЗал и кабинет Изначального Владыки ИВО Дария"},{"$f":"IF(Полномочные!D49=\"\",\"\", \"Зал и кабинет \"&Полномочные!C49&\" \"&Полномочные!D49)","v":""}]
[224,null,{"$f":"\"Зал и кабинет \"&справочники!E34&\" ИВО\nЗал и кабинет Изначального Владыки ИВО \"&справочники!M34","v":"Зал и кабинет Изначальной Ипостаси ИВДИВО Основ ИВО ИВО\nЗал и кабинет Изначального Владыки ИВО Валентина"},{"$f":"IF(Полномочные!D50=\"\",\"\", \"Зал и кабинет \"&Полномочные!C50&\" \"&Полномочные!D50)","v":""}]
[223,null,{"$f":"\"Зал и кабинет \"&справочники!E51&\" ИВО\nЗал и кабинет Изначального Владыки ИВО \"&справочники!M35","v":"Зал и кабинет Изначальной Ипостаси Свойств ИВО\nЗал и кабинет Изначального Владыки ИВО Савия"},{"$f":"IF(Полномочные!D51=\"\",\"\", \"Зал и кабинет \"&Полномочные!C51&\" \"&Полномочные!D51)","v":""}]
[222,null,{"$f":"\"Зал и кабинет \"&справочники!E52&\" ИВО\nЗал и кабинет Изначального Владыки ИВО \"&справочники!M36","v":"Зал и кабинет Изначальной Ипостаси Качеств ИВО\nЗал и кабинет Изначального Владыки ИВО Вячеслава"},{"$f":"IF(Полномочные!D52=\"\",\"\", \"Зал и кабинет \"&Полномочные!C52&\" \"&Полномочные!D52)","v":""}]
[221,null,{"$f":"\"Зал и кабинет \"&справочники!E53&\" ИВО\nЗал и кабинет Изначального Владыки ИВО \"&справочники!M37","v":"Зал и кабинет Изначальной Ипостаси Функций ИВО\nЗал и кабинет Изначального Владыки ИВО Андрея"},{"$f":"IF(Полномочные!D53=\"\",\"\", \"Зал и кабинет \"&Полномочные!C53&\" \"&Полномочные!D53)","v":""}]
[220,null,{"$f":"\"Зал и кабинет \"&справочники!E54&\" ИВО\nЗал и кабинет Изначального Владыки ИВО \"&справочники!M38","v":"Зал и кабинет Изначальной Ипостаси Процессов ИВО\nЗал и кабинет Изначального Владыки ИВО Давида"},{"$f":"IF(Полномочные!D54=\"\",\"\", \"Зал и кабинет \"&Полномочные!C54&\" \"&Полномочные!D54)","v":""}]
[219,null,{"$f":"\"Зал и кабинет \"&справочники!E55&\" ИВО\nЗал и кабинет Изначального Владыки ИВО \"&справочники!M39","v":"Зал и кабинет Изначальной Ипостаси Активностей ИВО\nЗал и кабинет Изначального Владыки ИВО Евгения"},{"$f":"IF(Полномочные!D55=\"\",\"\", \"Зал и кабинет \"&Полномочные!C55&\" \"&Полномочные!D55)","v":""}]
[218,null,{"$f":"\"Зал и кабинет \"&справочники!E56&\" ИВО\nЗал и кабинет Изначального Владыки ИВО \"&справочники!M40","v":"Зал и кабинет Изначальной Ипостаси Заряженностей ИВО\nЗал и кабинет Изначального Владыки ИВО Дмитрия"},{"$f":"IF(Полномочные!D56=\"\",\"\", \"Зал и кабинет \"&Полномочные!C56&\" \"&Полномочные!D56)","v":""}]
[217,null,{"$f":"\"Зал и кабинет \"&справочники!E57&\" ИВО\nЗал и кабинет Изначального Владыки ИВО \"&справочники!M41","v":"Зал и кабинет Изначальной Ипостаси Мощи ИВО\nЗал и кабинет Изначального Владыки ИВО Есения"},{"$f":"IF(Полномочные!D57=\"\",\"\", \"Зал и кабинет \"&Полномочные!C57&\" \"&Полномочные!D57)","v":""}]
[216,null,{"$f":"\"Зал и кабинет \"&справочники!#REF!&\" ИВО\nЗал и кабинет Изначального Владыки ИВО \"&справочники!M42","v":{"$error":"#REF!"}},{"$f":"IF(Полномочные!D58=\"\",\"\", \"Зал и кабинет \"&Полномочные!C58&\" \"&Полномочные!D58)","v":""}]
[215,null,{"$f":"\"Зал и кабинет \"&справочники!E35&\" ИВО\nЗал и кабинет Изначального Владыки ИВО \"&справочники!M43","v":"Зал и кабинет Изначальной Ипостаси Идей ИВО\nЗал и кабинет Изначального Владыки ИВО Ростислава"},{"$f":"IF(Полномочные!D59=\"\",\"\", \"Зал и кабинет \"&Полномочные!C59&\" \"&Полномочные!D59)","v":""}]
[214,null,{"$f":"\"Зал и кабинет \"&справочники!E36&\" ИВО\nЗал и кабинет Изначального Владыки ИВО \"&справочники!M44","v":"Зал и кабинет Изначальной Ипостаси Сути ИВО\nЗал и кабинет Изначального Владыки ИВО Яна"},{"$f":"IF(Полномочные!D60=\"\",\"\", \"Зал и кабинет \"&Полномочные!C60&\" \"&Полномочные!D60)","v":""}]
[213,null,{"$f":"\"Зал и кабинет \"&справочники!E37&\" ИВО\nЗал и кабинет Изначального Владыки ИВО \"&справочники!M45","v":"Зал и кабинет Изначальной Ипостаси Смыслов ИВО\nЗал и кабинет Изначального Владыки ИВО Василия"},{"$f":"IF(Полномочные!D61=\"\",\"\", \"Зал и кабинет \"&Полномочные!C61&\" \"&Полномочные!D61)","v":""}]
[212,null,{"$f":"\"Зал и кабинет \"&справочники!E38&\" ИВО\nЗал и кабинет Изначального Владыки ИВО \"&справочники!M46","v":"Зал и кабинет Изначальной Ипостаси Мыслей ИВО\nЗал и кабинет Изначального Владыки ИВО Арсения"},{"$f":"IF(Полномочные!D62=\"\",\"\", \"Зал и кабинет \"&Полномочные!C62&\" \"&Полномочные!D62)","v":""}]
[211,null,{"$f":"\"Зал и кабинет \"&справочники!E39&\" ИВО\nЗал и кабинет Изначального Владыки ИВО \"&справочники!M47","v":"Зал и кабинет Изначальной Ипостаси Чувств ИВО\nЗал и кабинет Изначального Владыки ИВО Огюста"},{"$f":"IF(Полномочные!D63=\"\",\"\", \"Зал и кабинет \"&Полномочные!C63&\" \"&Полномочные!D63)","v":""}]
[210,null,{"$f":"\"Зал и кабинет \"&справочники!E40&\" ИВО\nЗал и кабинет Изначального Владыки ИВО \"&справочники!M48","v":"Зал и кабинет Изначальной Ипостаси Ощущений ИВО\nЗал и кабинет Изначального Владыки ИВО Илия"},{"$f":"IF(Полномочные!D64=\"\",\"\", \"Зал и кабинет \"&Полномочные!C64&\" \"&Полномочные!D64)","v":""}]
[209,null,{"$f":"\"Зал и кабинет \"&справочники!E41&\" ИВО\nЗал и кабинет Изначального Владыки ИВО \"&справочники!M49","v":"Зал и кабинет Изначальной Ипостаси Движений ИВО\nЗал и кабинет Изначального Владыки ИВО Геральда"},{"$f":"IF(Полномочные!D65=\"\",\"\", \"Зал и кабинет \"&Полномочные!C65&\" \"&Полномочные!D65)","v":""}]
[208,null,{"$f":"\"Зал и кабинет \"&справочники!E42&\" ИВО\nЗал и кабинет Изначального Владыки ИВО \"&справочники!M50","v":"Зал и кабинет Изначальной Ипостаси ИВДИВО Огня ИВО\nЗал и кабинет Изначального Владыки ИВО Платона"},{"$f":"IF(Полномочные!D66=\"\",\"\", \"Зал и кабинет \"&Полномочные!C66&\" \"&Полномочные!D66)","v":""}]
[207,null,{"$f":"\"Зал и кабинет \"&справочники!E43&\" ИВО\nЗал и кабинет Изначального Владыки ИВО \"&справочники!M51","v":"Зал и кабинет Изначальной Ипостаси Духа ИВО\nЗал и кабинет Изначального Владыки ИВО Николая"},{"$f":"IF(Полномочные!D67=\"\",\"\", \"Зал и кабинет \"&Полномочные!C67&\" \"&Полномочные!D67)","v":""}]
[206,null,{"$f":"\"Зал и кабинет \"&справочники!E44&\" ИВО\nЗал и кабинет Изначального Владыки ИВО \"&справочники!M52","v":"Зал и кабинет Изначальной Ипостаси Света ИВО\nЗал и кабинет Изначального Владыки ИВО Игоря"},{"$f":"IF(Полномочные!D68=\"\",\"\", \"Зал и кабинет \"&Полномочные!C68&\" \"&Полномочные!D68)","v":""}]
[205,null,{"$f":"\"Зал и кабинет \"&справочники!E45&\" ИВО\nЗал и кабинет Изначального Владыки ИВО \"&справочники!M53","v":"Зал и кабинет Изначальной Ипостаси Энергии ИВО\nЗал и кабинет Изначального Владыки ИВО Яра"},{"$f":"IF(Полномочные!D69=\"\",\"\", \"Зал и кабинет \"&Полномочные!C69&\" \"&Полномочные!D69)","v":""}]
[204,null,{"$f":"\"Зал и кабинет \"&справочники!E46&\" ИВО\nЗал и кабинет Изначального Владыки ИВО \"&справочники!M54","v":"Зал и кабинет Изначальной Ипостаси Субъядерности ИВО\nЗал и кабинет Изначального Владыки ИВО Вадима"},{"$f":"IF(Полномочные!D70=\"\",\"\", \"Зал и кабинет \"&Полномочные!C70&\" \"&Полномочные!D70)","v":""}]
[203,null,{"$f":"\"Зал и кабинет \"&справочники!E47&\" ИВО\nЗал и кабинет Изначального Владыки ИВО \"&справочники!M55","v":"Зал и кабинет Изначальной Ипостаси Формы ИВО\nЗал и кабинет Изначального Владыки ИВО Огнеслава"},{"$f":"IF(Полномочные!D71=\"\",\"\", \"Зал и кабинет \"&Полномочные!C71&\" \"&Полномочные!D71)","v":""}]
[202,null,{"$f":"\"Зал и кабинет \"&справочники!E48&\" ИВО\nЗал и кабинет Изначального Владыки ИВО \"&справочники!M56","v":"Зал и кабинет Изначальной Ипостаси Содержания ИВО\nЗал и кабинет Изначального Владыки ИВО Марка"},{"$f":"IF(Полномочные!D72=\"\",\"\", \"Зал и кабинет \"&Полномочные!C72&\" \"&Полномочные!D72)","v":""}]
[201,null,{"$f":"\"Зал и кабинет \"&справочники!E49&\" ИВО\nЗал и кабинет Изначального Владыки ИВО \"&справочники!M57","v":"Зал и кабинет Изначальной Ипостаси Поля ИВО\nЗал и кабинет Изначального Владыки ИВО Теона"},{"$f":"IF(Полномочные!D73=\"\",\"\", \"Зал и кабинет \"&Полномочные!C73&\" \"&Полномочные!D73)","v":""}]
[200,null,{"$f":"\"Зал и кабинет \"&справочники!E50&\" ИВО\nЗал и кабинет Изначального Владыки ИВО \"&справочники!M58","v":"Зал и кабинет Изначальной Ипостаси ИВДИВО Изначальной Метагалактики ИВО\nЗал и кабинет Изначального Владыки ИВО Трофима"},{"$f":"IF(Полномочные!D74=\"\",\"\", \"Зал и кабинет \"&Полномочные!C74&\" \"&Полномочные!D74)","v":""}]
[199,null,{"$f":"\"Зал и кабинет \"&справочники!E58&\" ИВО\nЗал и кабинет Изначального Владыки ИВО \"&справочники!M59","v":"Зал и кабинет Изначальной Ипостаси ИВДИВО Метагалактики ИВО\nЗал и кабинет Изначального Владыки ИВО Емельяна"},{"$f":"IF(Полномочные!D75=\"\",\"\", \"Зал и кабинет \"&Полномочные!C75&\" \"&Полномочные!D75)","v":""}]
[198,null,{"$f":"\"Зал и кабинет \"&справочники!E60&\" ИВО\nЗал и кабинет Изначального Владыки ИВО \"&справочники!M60","v":"Зал и кабинет Изначальной Ипостаси Буддичности Человека ИВО\nЗал и кабинет Изначального Владыки ИВО Ефрема"},{"$f":"IF(Полномочные!D76=\"\",\"\", \"Зал и кабинет \"&Полномочные!C76&\" \"&Полномочные!D76)","v":""}]
[197,null,{"$f":"\"Зал и кабинет \"&справочники!E61&\" ИВО\nЗал и кабинет Изначального Владыки ИВО \"&справочники!M61","v":"Зал и кабинет Изначальной Ипостаси Всеединства Супергалактики ИВО\nЗал и кабинет Изначального Владыки ИВО Натана"},{"$f":"IF(Полномочные!D77=\"\",\"\", \"Зал и кабинет \"&Полномочные!C77&\" \"&Полномочные!D77)","v":""}]
[196,null,{"$f":"\"Зал и кабинет \"&справочники!E62&\" ИВО\nЗал и кабинет Изначального Владыки ИВО \"&справочники!M62","v":"Зал и кабинет Изначальной Ипостаси Единства Галактики ИВО\nЗал и кабинет Изначального Владыки ИВО Артёма"},{"$f":"IF(Полномочные!D78=\"\",\"\", \"Зал и кабинет \"&Полномочные!C78&\" \"&Полномочные!D78)","v":""}]
[195,null,{"$f":"\"Зал и кабинет \"&справочники!E63&\" ИВО\nЗал и кабинет Изначального Владыки ИВО \"&справочники!M63","v":"Зал и кабинет Изначальной Ипостаси Универсума Солнца ИВО\nЗал и кабинет Изначального Владыки ИВО Игнатия"},{"$f":"IF(Полномочные!D79=\"\",\"\", \"Зал и кабинет \"&Полномочные!C79&\" \"&Полномочные!D79)","v":""}]
[194,null,{"$f":"\"Зал и кабинет \"&справочники!E64&\" ИВО\nЗал и кабинет Изначального Владыки ИВО \"&справочники!M64","v":"Зал и кабинет Изначальной Ипостаси Звёздной Вселенной ИВО\nЗал и кабинет Изначального Владыки ИВО Юлиана"},{"$f":"IF(Полномочные!D80=\"\",\"\", \"Зал и кабинет \"&Полномочные!C80&\" \"&Полномочные!D80)","v":""}]
[193,null,{"$f":"\"Зал и кабинет \"&справочники!E65&\" ИВО\nЗал и кабинет Изначального Владыки ИВО \"&справочники!M65","v":"Зал и кабинет Изначальной Ипостаси Физичности ИВО\nЗал и кабинет Изначального Владыки ИВО Аркадия"},{"$f":"IF(Полномочные!D81=\"\",\"\", \"Зал и кабинет \"&Полномочные!C81&\" \"&Полномочные!D81)","v":""}]
[192,null,{"$f":"\"Зал и кабинет \"&справочники!E66&\" ИВО\nЗал и кабинет Изначального Владыки ИВО \"&справочники!M66","v":"Зал и кабинет Изначальной Ипостаси ИВДИВО Отца ИВО\nЗал и кабинет Изначального Владыки ИВО Никиты"},{"$f":"IF(Полномочные!D82=\"\",\"\", \"Зал и кабинет \"&Полномочные!C82&\" \"&Полномочные!D82)","v":""}]
[191,null,{"$f":"\"Зал и кабинет \"&справочники!E67&\" ИВО\nЗал и кабинет Изначального Владыки ИВО \"&справочники!M67","v":"Зал и кабинет Изначальной Ипостаси Матери ИВО\nЗал и кабинет Изначального Владыки ИВО Олега"},{"$f":"IF(Полномочные!D83=\"\",\"\", \"Зал и кабинет \"&Полномочные!C83&\" \"&Полномочные!D83)","v":""}]
[190,null,{"$f":"\"Зал и кабинет \"&справочники!E68&\" ИВО\nЗал и кабинет Изначального Владыки ИВО \"&справочники!M68","v":"Зал и кабинет Изначальной Ипостаси Сына ИВО\nЗал и кабинет Изначального Владыки ИВО Владимира"},{"$f":"IF(Полномочные!D84=\"\",\"\", \"Зал и кабинет \"&Полномочные!C84&\" \"&Полномочные!D84)","v":""}]
[189,null,{"$f":"\"Зал и кабинет \"&справочники!E69&\" ИВО\nЗал и кабинет Изначального Владыки ИВО \"&справочники!M69","v":"Зал и кабинет Изначальной Ипостаси Дочери ИВО\nЗал и кабинет Изначального Владыки ИВО Стефана"},{"$f":"IF(Полномочные!D85=\"\",\"\", \"Зал и кабинет \"&Полномочные!C85&\" \"&Полномочные!D85)","v":""}]
[188,null,{"$f":"\"Зал и кабинет \"&справочники!E70&\" ИВО\nЗал и кабинет Изначального Владыки ИВО \"&справочники!M70","v":"Зал и кабинет Изначальной Ипостаси Аватара ИВО\nЗал и кабинет Изначального Владыки ИВО Горислава"},{"$f":"IF(Полномочные!D86=\"\",\"\", \"Зал и кабинет \"&Полномочные!C86&\" \"&Полномочные!D86)","v":""}]
[187,null,{"$f":"\"Зал и кабинет \"&справочники!E71&\" ИВО\nЗал и кабинет Изначального Владыки ИВО \"&справочники!M71","v":"Зал и кабинет Изначальной Ипостаси Майтрейи ИВО\nЗал и кабинет Изначального Владыки ИВО Никона"},{"$f":"IF(Полномочные!D87=\"\",\"\", \"Зал и кабинет \"&Полномочные!C87&\" \"&Полномочные!D87)","v":""}]
[186,null,{"$f":"\"Зал и кабинет \"&справочники!E72&\" ИВО\nЗал и кабинет Изначального Владыки ИВО \"&справочники!M72","v":"Зал и кабинет Изначальной Ипостаси Христа ИВО\nЗал и кабинет Изначального Владыки ИВО Эрика"},{"$f":"IF(Полномочные!D88=\"\",\"\", \"Зал и кабинет \"&Полномочные!C88&\" \"&Полномочные!D88)","v":""}]
[185,null,{"$f":"\"Зал и кабинет \"&справочники!E73&\" ИВО\nЗал и кабинет Изначального Владыки ИВО \"&справочники!M73","v":"Зал и кабинет Изначальной Ипостаси Будды ИВО\nЗал и кабинет Изначального Владыки ИВО Олафа"},{"$f":"IF(Полномочные!D89=\"\",\"\", \"Зал и кабинет \"&Полномочные!C89&\" \"&Полномочные!D89)","v":""}]
[184,null,{"$f":"\"Зал и кабинет \"&справочники!E74&\" ИВО\nЗал и кабинет Изначального Владыки ИВО \"&справочники!M74","v":"Зал и кабинет Изначальной Ипостаси ИВДИВО Владыки ИВО\nЗал и кабинет Изначального Владыки ИВО Вацлава"},{"$f":"IF(Полномочные!D90=\"\",\"\", \"Зал и кабинет \"&Полномочные!C90&\" \"&Полномочные!D90)","v":""}]
[183,null,{"$f":"\"Зал и кабинет \"&справочники!E75&\" ИВО\nЗал и кабинет Изначального Владыки ИВО \"&справочники!M75","v":"Зал и кабинет Изначальной Ипостаси Учителя ИВО\nЗал и кабинет Изначального Владыки ИВО Левия"},{"$f":"IF(Полномочные!D91=\"\",\"\", \"Зал и кабинет \"&Полномочные!C91&\" \"&Полномочные!D91)","v":""}]
[182,null,{"$f":"\"Зал и кабинет \"&справочники!E76&\" ИВО\nЗал и кабинет Изначального Владыки ИВО \"&справочники!M76","v":"Зал и кабинет Изначальной Ипостаси Логоса ИВО\nЗал и кабинет Изначального Владыки ИВО Руслана"},{"$f":"IF(Полномочные!D92=\"\",\"\", \"Зал и кабинет \"&Полномочные!C92&\" \"&Полномочные!D92)","v":""}]
[181,null,{"$f":"\"Зал и кабинет \"&справочники!E77&\" ИВО\nЗал и кабинет Изначального Владыки ИВО \"&справочники!M77","v":"Зал и кабинет Изначальной Ипостаси Аспекта ИВО\nЗал и кабинет Изначального Владыки ИВО Генриха"},{"$f":"IF(Полномочные!D93=\"\",\"\", \"Зал и кабинет \"&Полномочные!C93&\" \"&Полномочные!D93)","v":""}]
[180,null,{"$f":"\"Зал и кабинет \"&справочники!E78&\" ИВО\nЗал и кабинет Изначального Владыки ИВО \"&справочники!M78","v":"Зал и кабинет Изначальной Ипостаси Ипостаси ИВО\nЗал и кабинет Изначального Владыки ИВО Владлена"},{"$f":"IF(Полномочные!D94=\"\",\"\", \"Зал и кабинет \"&Полномочные!C94&\" \"&Полномочные!D94)","v":""}]
[179,null,{"$f":"\"Зал и кабинет \"&справочники!E79&\" ИВО\nЗал и кабинет Изначального Владыки ИВО \"&справочники!M79","v":"Зал и кабинет Изначальной Ипостаси Служащего ИВО\nЗал и кабинет Изначального Владыки ИВО Борислава"},{"$f":"IF(Полномочные!D95=\"\",\"\", \"Зал и кабинет \"&Полномочные!C95&\" \"&Полномочные!D95)","v":""}]
[178,null,{"$f":"\"Зал и кабинет \"&справочники!E80&\" ИВО\nЗал и кабинет Изначального Владыки ИВО \"&справочники!M80","v":"Зал и кабинет Изначальной Ипостаси Посвящённого ИВО\nЗал и кабинет Изначального Владыки ИВО Нестора"},{"$f":"IF(Полномочные!D96=\"\",\"\", \"Зал и кабинет \"&Полномочные!C96&\" \"&Полномочные!D96)","v":""}]
[177,null,{"$f":"\"Зал и кабинет \"&справочники!E81&\" ИВО\nЗал и кабинет Изначального Владыки ИВО \"&справочники!M81","v":"Зал и кабинет Изначальной Ипостаси Праведника ИВО\nЗал и кабинет Изначального Владыки ИВО Аристарха"},{"$f":"IF(Полномочные!D97=\"\",\"\", \"Зал и кабинет \"&Полномочные!C97&\" \"&Полномочные!D97)","v":""}]
[176,null,{"$f":"\"Зал и кабинет \"&справочники!E82&\" ИВО\nЗал и кабинет Изначального Владыки ИВО \"&справочники!M82","v":"Зал и кабинет Изначальной Ипостаси ИВДИВО Неизречённого ИВО\nЗал и кабинет Изначального Владыки ИВО Альфреда"},{"$f":"IF(Полномочные!D98=\"\",\"\", \"Зал и кабинет \"&Полномочные!C98&\" \"&Полномочные!D98)","v":""}]
[175,null,{"$f":"\"Зал и кабинет \"&справочники!E83&\" ИВО\nЗал и кабинет Изначального Владыки ИВО \"&справочники!M83","v":"Зал и кабинет Изначальной Ипостаси Предвечного ИВО\nЗал и кабинет Изначального Владыки ИВО Егора"},{"$f":"IF(Полномочные!D99=\"\",\"\", \"Зал и кабинет \"&Полномочные!C99&\" \"&Полномочные!D99)","v":""}]
[174,null,{"$f":"\"Зал и кабинет \"&справочники!E84&\" ИВО\nЗал и кабинет Изначального Владыки ИВО \"&справочники!M84","v":"Зал и кабинет Изначальной Ипостаси Всемогущего ИВО\nЗал и кабинет Изначального Владыки ИВО Витольда"},{"$f":"IF(Полномочные!D100=\"\",\"\", \"Зал и кабинет \"&Полномочные!C100&\" \"&Полномочные!D100)","v":""}]
[173,null,{"$f":"\"Зал и кабинет \"&справочники!E85&\" ИВО\nЗал и кабинет Изначального Владыки ИВО \"&справочники!M85","v":"Зал и кабинет Изначальной Ипостаси Творца ИВО\nЗал и кабинет Изначального Владыки ИВО Стократа"},{"$f":"IF(Полномочные!D101=\"\",\"\", \"Зал и кабинет \"&Полномочные!C101&\" \"&Полномочные!D101)","v":""}]
[172,null,{"$f":"\"Зал и кабинет \"&справочники!E86&\" ИВО\nЗал и кабинет Изначального Владыки ИВО \"&справочники!M86","v":"Зал и кабинет Изначальной Ипостаси Теурга ИВО\nЗал и кабинет Изначального Владыки ИВО Глеба"},{"$f":"IF(Полномочные!D102=\"\",\"\", \"Зал и кабинет \"&Полномочные!C102&\" \"&Полномочные!D102)","v":""}]
[171,null,{"$f":"\"Зал и кабинет \"&справочники!E87&\" ИВО\nЗал и кабинет Изначального Владыки ИВО \"&справочники!M87","v":"Зал и кабинет Изначальной Ипостаси Ману ИВО\nЗал и кабинет Изначального Владыки ИВО Клавдия"},{"$f":"IF(Полномочные!D103=\"\",\"\", \"Зал и кабинет \"&Полномочные!C103&\" \"&Полномочные!D103)","v":""}]
[170,null,{"$f":"\"Зал и кабинет \"&справочники!E88&\" ИВО\nЗал и кабинет Изначального Владыки ИВО \"&справочники!M88","v":"Зал и кабинет Изначальной Ипостаси Всевышнего ИВО\nЗал и кабинет Изначального Владыки ИВО Теониса"},{"$f":"IF(Полномочные!D104=\"\",\"\", \"Зал и кабинет \"&Полномочные!C104&\" \"&Полномочные!D104)","v":""}]
[169,null,{"$f":"\"Зал и кабинет \"&справочники!E89&\" ИВО\nЗал и кабинет Изначального Владыки ИВО \"&справочники!M89","v":"Зал и кабинет Изначальной Ипостаси Предначального ИВО\nЗал и кабинет Изначального Владыки ИВО Донана"},{"$f":"IF(Полномочные!D105=\"\",\"\", \"Зал и кабинет \"&Полномочные!C105&\" \"&Полномочные!D105)","v":""}]
[168,null,{"$f":"\"Зал и кабинет \"&справочники!E90&\" ИВО\nЗал и кабинет Изначального Владыки ИВО \"&справочники!M90","v":"Зал и кабинет Изначальной Ипостаси ИВДИВО Человека ИВО\nЗал и кабинет Изначального Владыки ИВО Альберта"},{"$f":"IF(Полномочные!D106=\"\",\"\", \"Зал и кабинет \"&Полномочные!C106&\" \"&Полномочные!D106)","v":""}]
[167,null,{"$f":"\"Зал и кабинет \"&справочники!E91&\" ИВО\nЗал и кабинет Изначального Владыки ИВО \"&справочники!M91","v":"Зал и кабинет Изначальной Ипостаси Основного Тело ИВО\nЗал и кабинет Изначального Владыки ИВО Степана"},{"$f":"IF(Полномочные!D107=\"\",\"\", \"Зал и кабинет \"&Полномочные!C107&\" \"&Полномочные!D107)","v":""}]
[166,null,{"$f":"\"Зал и кабинет \"&справочники!E92&\" ИВО\nЗал и кабинет Изначального Владыки ИВО \"&справочники!M92","v":"Зал и кабинет Изначальной Ипостаси Истины ИВО\nЗал и кабинет Изначального Владыки ИВО Арсана"},{"$f":"IF(Полномочные!D108=\"\",\"\", \"Зал и кабинет \"&Полномочные!C108&\" \"&Полномочные!D108)","v":""}]
[165,null,{"$f":"\"Зал и кабинет \"&справочники!E93&\" ИВО\nЗал и кабинет Изначального Владыки ИВО \"&справочники!M93","v":"Зал и кабинет Изначальной Ипостаси Ока ИВО\nЗал и кабинет Изначального Владыки ИВО Остапа"},{"$f":"IF(Полномочные!D109=\"\",\"\", \"Зал и кабинет \"&Полномочные!C109&\" \"&Полномочные!D109)","v":""}]
[164,null,{"$f":"\"Зал и кабинет \"&справочники!E94&\" ИВО\nЗал и кабинет Изначального Владыки ИВО \"&справочники!M94","v":"Зал и кабинет Изначальной Ипостаси Хум ИВО\nЗал и кабинет Изначального Владыки ИВО Романа"},{"$f":"IF(Полномочные!D110=\"\",\"\", \"Зал и кабинет \"&Полномочные!C110&\" \"&Полномочные!D110)","v":""}]
[163,null,{"$f":"\"Зал и кабинет \"&справочники!E95&\" ИВО\nЗал и кабинет Изначального Владыки ИВО \"&справочники!M95","v":"Зал и кабинет Изначальной Ипостаси Абсолюта ИВО\nЗал и кабинет Изначального Владыки ИВО Клима"},{"$f":"IF(Полномочные!D111=\"\",\"\", \"Зал и кабинет \"&Полномочные!C111&\" \"&Полномочные!D111)","v":""}]
[162,null,{"$f":"\"Зал и кабинет \"&справочники!E96&\" ИВО\nЗал и кабинет Изначального Владыки ИВО \"&справочники!M96","v":"Зал и кабинет Изначальной Ипостаси Омеги ИВО\nЗал и кабинет Изначального Владыки ИВО Петра"},{"$f":"IF(Полномочные!D112=\"\",\"\", \"Зал и кабинет \"&Полномочные!C112&\" \"&Полномочные!D112)","v":""}]
[161,null,{"$f":"\"Зал и кабинет \"&справочники!E97&\" ИВО\nЗал и кабинет Изначального Владыки ИВО \"&справочники!M97","v":"Зал и кабинет Изначальной Ипостаси Монады ИВО\nЗал и кабинет Изначального Владыки ИВО Макея"},{"$f":"IF(Полномочные!D113=\"\",\"\", \"Зал и кабинет \"&Полномочные!C113&\" \"&Полномочные!D113)","v":""}]
[160,null,{"$f":"\"Зал и кабинет \"&справочники!E98&\" ИВО\nЗал и кабинет Изначального Владыки ИВО \"&справочники!M98","v":"Зал и кабинет Изначальной Ипостаси ИВДИВО Человека Изн.Мг ИВО\nЗал и кабинет Изначального Владыки ИВО Аниса"},{"$f":"IF(Полномочные!D114=\"\",\"\", \"Зал и кабинет \"&Полномочные!C114&\" \"&Полномочные!D114)","v":""}]
[159,null,{"$f":"\"Зал и кабинет \"&справочники!E99&\" ИВО\nЗал и кабинет Изначального Владыки ИВО \"&справочники!M99","v":"Зал и кабинет Изначальной Ипостаси Физического Тела ИВО\nЗал и кабинет Изначального Владыки ИВО Ара"},{"$f":"IF(Полномочные!D115=\"\",\"\", \"Зал и кабинет \"&Полномочные!C115&\" \"&Полномочные!D115)","v":""}]
[158,null,{"$f":"\"Зал и кабинет \"&справочники!E100&\" ИВО\nЗал и кабинет Изначального Владыки ИВО \"&справочники!M100","v":"Зал и кабинет Изначальной Ипостаси Разума ИВО\nЗал и кабинет Изначального Владыки ИВО Дорадия"},{"$f":"IF(Полномочные!D116=\"\",\"\", \"Зал и кабинет \"&Полномочные!C116&\" \"&Полномочные!D116)","v":""}]
[157,null,{"$f":"\"Зал и кабинет \"&справочники!E101&\" ИВО\nЗал и кабинет Изначального Владыки ИВО \"&справочники!M101","v":"Зал и кабинет Изначальной Ипостаси Сердца ИВО\nЗал и кабинет Изначального Владыки ИВО Дор"},{"$f":"IF(Полномочные!D117=\"\",\"\", \"Зал и кабинет \"&Полномочные!C117&\" \"&Полномочные!D117)","v":""}]
[156,null,{"$f":"\"Зал и кабинет \"&справочники!E102&\" ИВО\nЗал и кабинет Изначального Владыки ИВО \"&справочники!M102","v":"Зал и кабинет Изначальной Ипостаси Мышления ИВО\nЗал и кабинет Изначального Владыки ИВО Понтелея"},{"$f":"IF(Полномочные!D118=\"\",\"\", \"Зал и кабинет \"&Полномочные!C118&\" \"&Полномочные!D118)","v":""}]
[155,null,{"$f":"\"Зал и кабинет \"&справочники!E103&\" ИВО\nЗал и кабинет Изначального Владыки ИВО \"&справочники!M103","v":"Зал и кабинет Изначальной Ипостаси Головерсума ИВО\nЗал и кабинет Изначального Владыки ИВО Явира"},{"$f":"IF(Полномочные!D119=\"\",\"\", \"Зал и кабинет \"&Полномочные!C119&\" \"&Полномочные!D119)","v":""}]
[154,null,{"$f":"\"Зал и кабинет \"&справочники!E104&\" ИВО\nЗал и кабинет Изначального Владыки ИВО \"&справочники!M104","v":"Зал и кабинет Изначальной Ипостаси Восприятия ИВО\nЗал и кабинет Изначального Владыки ИВО Триса"},{"$f":"IF(Полномочные!D120=\"\",\"\", \"Зал и кабинет \"&Полномочные!C120&\" \"&Полномочные!D120)","v":""}]
[153,null,{"$f":"\"Зал и кабинет \"&справочники!E105&\" ИВО\nЗал и кабинет Изначального Владыки ИВО \"&справочники!M105","v":"Зал и кабинет Изначальной Ипостаси Вечности Отца ИВО\nЗал и кабинет Изначального Владыки ИВО Виктора"},{"$f":"IF(Полномочные!D121=\"\",\"\", \"Зал и кабинет \"&Полномочные!C121&\" \"&Полномочные!D121)","v":""}]
[152,null,{"$f":"\"Зал и кабинет \"&справочники!E106&\" ИВО\nЗал и кабинет Изначального Владыки ИВО \"&справочники!M106","v":"Зал и кабинет Изначальной Ипостаси ИВДИВО Человека Изн-ти ИВО\nЗал и кабинет Изначального Владыки ИВО Визара"},{"$f":"IF(Полномочные!D122=\"\",\"\", \"Зал и кабинет \"&Полномочные!C122&\" \"&Полномочные!D122)","v":""}]
[151,null,{"$f":"\"Зал и кабинет \"&справочники!E107&\" ИВО\nЗал и кабинет Изначального Владыки ИВО \"&справочники!M107","v":"Зал и кабинет Изначальной Ипостаси Синтезтела ИВО\nЗал и кабинет Изначального Владыки ИВО Ерёмы"},{"$f":"IF(Полномочные!D123=\"\",\"\", \"Зал и кабинет \"&Полномочные!C123&\" \"&Полномочные!D123)","v":""}]
[150,null,{"$f":"\"Зал и кабинет \"&справочники!E108&\" ИВО\nЗал и кабинет Изначального Владыки ИВО \"&справочники!M108","v":"Зал и кабинет Изначальной Ипостаси Сообразительности ИВО\nЗал и кабинет Изначального Владыки ИВО Ираклия"},{"$f":"IF(Полномочные!D124=\"\",\"\", \"Зал и кабинет \"&Полномочные!C124&\" \"&Полномочные!D124)","v":""}]
[149,null,{"$f":"\"Зал и кабинет \"&справочники!E109&\" ИВО\nЗал и кабинет Изначального Владыки ИВО \"&справочники!M109","v":"Зал и кабинет Изначальной Ипостаси Осмысленности ИВО\nЗал и кабинет Изначального Владыки ИВО Елизара"},{"$f":"IF(Полномочные!D125=\"\",\"\", \"Зал и кабинет \"&Полномочные!C125&\" \"&Полномочные!D125)","v":""}]
[148,null,{"$f":"\"Зал и кабинет \"&справочники!E110&\" ИВО\nЗал и кабинет Изначального Владыки ИВО \"&справочники!M110","v":"Зал и кабинет Изначальной Ипостаси Ума ИВО\nЗал и кабинет Изначального Владыки ИВО Градимира"},{"$f":"IF(Полномочные!D126=\"\",\"\", \"Зал и кабинет \"&Полномочные!C126&\" \"&Полномочные!D126)","v":""}]
[147,null,{"$f":"\"Зал и кабинет \"&справочники!E111&\" ИВО\nЗал и кабинет Изначального Владыки ИВО \"&справочники!M111","v":"Зал и кабинет Изначальной Ипостаси Провидения ИВО\nЗал и кабинет Изначального Владыки ИВО Рустама"},{"$f":"IF(Полномочные!D127=\"\",\"\", \"Зал и кабинет \"&Полномочные!C127&\" \"&Полномочные!D127)","v":""}]
[146,null,{"$f":"\"Зал и кабинет \"&справочники!E112&\" ИВО\nЗал и кабинет Изначального Владыки ИВО \"&справочники!M112","v":"Зал и кабинет Изначальной Ипостаси Огненной Нити ИВО\nЗал и кабинет Изначального Владыки ИВО Октана"},{"$f":"IF(Полномочные!D128=\"\",\"\", \"Зал и кабинет \"&Полномочные!C128&\" \"&Полномочные!D128)","v":""}]
[145,null,{"$f":"\"Зал и кабинет \"&справочники!E113&\" ИВО\nЗал и кабинет Изначального Владыки ИВО \"&справочники!M113","v":"Зал и кабинет Изначальной Ипостаси Пламени Отца ИВО\nЗал и кабинет Изначального Владыки ИВО Силуана"},{"$f":"IF(Полномочные!D129=\"\",\"\", \"Зал и кабинет \"&Полномочные!C129&\" \"&Полномочные!D129)","v":""}]
[144,null,{"$f":"\"Зал и кабинет \"&справочники!E114&\" ИВО\nЗал и кабинет Изначального Владыки ИВО \"&справочники!M114","v":"Зал и кабинет Изначальной Ипостаси ИВДИВО Человека Мг ИВО\nЗал и кабинет Изначального Владыки ИВО Лукьяна"},{"$f":"IF(Полномочные!D130=\"\",\"\", \"Зал и кабинет \"&Полномочные!C130&\" \"&Полномочные!D130)","v":""}]
[143,null,{"$f":"\"Зал и кабинет \"&справочники!E115&\" ИВО\nЗал и кабинет Изначального Владыки ИВО \"&справочники!M115","v":"Зал и кабинет Изначальной Ипостаси Трансвизора ИВО\nЗал и кабинет Изначального Владыки ИВО Люсьена"},{"$f":"IF(Полномочные!D131=\"\",\"\", \"Зал и кабинет \"&Полномочные!C131&\" \"&Полномочные!D131)","v":""}]
[142,null,{"$f":"\"Зал и кабинет \"&справочники!E116&\" ИВО\nЗал и кабинет Изначального Владыки ИВО \"&справочники!M116","v":"Зал и кабинет Изначальной Ипостаси Интеллекта ИВО\nЗал и кабинет Изначального Владыки ИВО Андриана"},{"$f":"IF(Полномочные!D132=\"\",\"\", \"Зал и кабинет \"&Полномочные!C132&\" \"&Полномочные!D132)","v":""}]
[141,null,{"$f":"\"Зал и кабинет \"&справочники!E117&\" ИВО\nЗал и кабинет Изначального Владыки ИВО \"&справочники!M117","v":"Зал и кабинет Изначальной Ипостаси Престола ИВО\nЗал и кабинет Изначального Владыки ИВО Прокофия"},{"$f":"IF(Полномочные!D133=\"\",\"\", \"Зал и кабинет \"&Полномочные!C133&\" \"&Полномочные!D133)","v":""}]
[140,null,{"$f":"\"Зал и кабинет \"&справочники!E118&\" ИВО\nЗал и кабинет Изначального Владыки ИВО \"&справочники!M118","v":"Зал и кабинет Изначальной Ипостаси Веры ИВО\nЗал и кабинет Изначального Владыки ИВО Зарка"},{"$f":"IF(Полномочные!D134=\"\",\"\", \"Зал и кабинет \"&Полномочные!C134&\" \"&Полномочные!D134)","v":""}]
[139,null,{"$f":"\"Зал и кабинет \"&справочники!E119&\" ИВО\nЗал и кабинет Изначального Владыки ИВО \"&справочники!M119","v":"Зал и кабинет Изначальной Ипостаси Чувствознания ИВО\nЗал и кабинет Изначального Владыки ИВО Станиса"},{"$f":"IF(Полномочные!D135=\"\",\"\", \"Зал и кабинет \"&Полномочные!C135&\" \"&Полномочные!D135)","v":""}]
[138,null,{"$f":"\"Зал и кабинет \"&справочники!E120&\" ИВО\nЗал и кабинет Изначального Владыки ИВО \"&справочники!M120","v":"Зал и кабинет Изначальной Ипостаси Потенциала ИВО\nЗал и кабинет Изначального Владыки ИВО Панкрата"},{"$f":"IF(Полномочные!D136=\"\",\"\", \"Зал и кабинет \"&Полномочные!C136&\" \"&Полномочные!D136)","v":""}]
[137,null,{"$f":"\"Зал и кабинет \"&справочники!E121&\" ИВО\nЗал и кабинет Изначального Владыки ИВО \"&справочники!M121","v":"Зал и кабинет Изначальной Ипостаси Мощи Отца ИВО\nЗал и кабинет Изначального Владыки ИВО Старка"},{"$f":"IF(Полномочные!D137=\"\",\"\", \"Зал и кабинет \"&Полномочные!C137&\" \"&Полномочные!D137)","v":""}]
[136,null,{"$f":"\"Зал и кабинет \"&справочники!E122&\" ИВО\nЗал и кабинет Изначального Владыки ИВО \"&справочники!M122","v":"Зал и кабинет Изначальной Ипостаси ИВДИВО Человеа Планеты ИВО\nЗал и кабинет Изначального Владыки ИВО Дорофея"},{"$f":"IF(Полномочные!D138=\"\",\"\", \"Зал и кабинет \"&Полномочные!C138&\" \"&Полномочные!D138)","v":""}]
[135,null,{"$f":"\"Зал и кабинет \"&справочники!E123&\" ИВО\nЗал и кабинет Изначального Владыки ИВО \"&справочники!M123","v":"Зал и кабинет Изначальной Ипостаси Столпа ИВО\nЗал и кабинет Изначального Владыки ИВО Якова"},{"$f":"IF(Полномочные!D139=\"\",\"\", \"Зал и кабинет \"&Полномочные!C139&\" \"&Полномочные!D139)","v":""}]
[134,null,{"$f":"\"Зал и кабинет \"&справочники!E124&\" ИВО\nЗал и кабинет Изначального Владыки ИВО \"&справочники!M124","v":"Зал и кабинет Изначальной Ипостаси Сознания ИВО\nЗал и кабинет Изначального Владыки ИВО Ульяна"},{"$f":"IF(Полномочные!D140=\"\",\"\", \"Зал и кабинет \"&Полномочные!C140&\" \"&Полномочные!D140)","v":""}]
[133,null,{"$f":"\"Зал и кабинет \"&справочники!E125&\" ИВО\nЗал и кабинет Изначального Владыки ИВО \"&справочники!M125","v":"Зал и кабинет Изначальной Ипостаси Грааля ИВО\nЗал и кабинет Изначального Владыки ИВО Германа"},{"$f":"IF(Полномочные!D141=\"\",\"\", \"Зал и кабинет \"&Полномочные!C141&\" \"&Полномочные!D141)","v":""}]
[132,null,{"$f":"\"Зал и кабинет \"&справочники!E126&\" ИВО\nЗал и кабинет Изначального Владыки ИВО \"&справочники!M126","v":"Зал и кабинет Изначальной Ипостаси Синтезобраза ИВО\nЗал и кабинет Изначального Владыки ИВО Радомира"},{"$f":"IF(Полномочные!D142=\"\",\"\", \"Зал и кабинет \"&Полномочные!C142&\" \"&Полномочные!D142)","v":""}]
[131,null,{"$f":"\"Зал и кабинет \"&справочники!E127&\" ИВО\nЗал и кабинет Изначального Владыки ИВО \"&справочники!M127","v":"Зал и кабинет Изначальной Ипостаси Души ИВО\nЗал и кабинет Изначального Владыки ИВО Октавия"},{"$f":"IF(Полномочные!D143=\"\",\"\", \"Зал и кабинет \"&Полномочные!C143&\" \"&Полномочные!D143)","v":""}]
[130,null,{"$f":"\"Зал и кабинет \"&справочники!E128&\" ИВО\nЗал и кабинет Изначального Владыки ИВО \"&справочники!M128","v":"Зал и кабинет Изначальной Ипостаси Слова Отца ИВО\nЗал и кабинет Изначального Владыки ИВО Кима"},{"$f":"IF(Полномочные!D144=\"\",\"\", \"Зал и кабинет \"&Полномочные!C144&\" \"&Полномочные!D144)","v":""}]
[129,null,{"$f":"\"Зал и кабинет \"&справочники!E129&\" ИВО\nЗал и кабинет Изначального Владыки ИВО \"&справочники!M129","v":"Зал и кабинет Изначальной Ипостаси Образа Отца ИВО\nЗал и кабинет Изначального Владыки ИВО Бонифация"},{"$f":"IF(Полномочные!D145=\"\",\"\", \"Зал и кабинет \"&Полномочные!C145&\" \"&Полномочные!D145)","v":""}]
[128,null,{"$f":"\"Зал и кабинет Изначальной Ипостаси Основ \"&справочники!F2&\" ИВО\nЗал и кабинет Изначальной Владычицы ИВО \"&справочники!M130","v":"Зал и кабинет Изначальной Ипостаси Основ Изначального Отца ИВО\nЗал и кабинет Изначальной Владычицы ИВО Фаинь"},{"$f":"IF(Полномочные!D147=\"\",\"\", \"Зал и кабинет \"&Полномочные!C147&\" \"&Полномочные!D147)","v":""}]
[127,null,{"$f":"\"Зал и кабинет Изначальной Ипостаси Основ \"&справочники!F3&\" ИВО\nЗал и кабинет Изначальной Владычицы ИВО \"&справочники!M131","v":"Зал и кабинет Изначальной Ипостаси Основ Изначальной Матери ИВО\nЗал и кабинет Изначальной Владычицы ИВО Славии"},{"$f":"IF(Полномочные!D148=\"\",\"\", \"Зал и кабинет \"&Полномочные!C148&\" \"&Полномочные!D148)","v":""}]
[126,null,{"$f":"\"Зал и кабинет Изначальной Ипостаси Основ \"&справочники!F4&\" ИВО\nЗал и кабинет Изначальной Владычицы ИВО \"&справочники!M132","v":"Зал и кабинет Изначальной Ипостаси Основ Изначального Сына ИВО\nЗал и кабинет Изначальной Владычицы ИВО Свет"},{"$f":"IF(Полномочные!D149=\"\",\"\", \"Зал и кабинет \"&Полномочные!C149&\" \"&Полномочные!D149)","v":""}]
[125,null,{"$f":"\"Зал и кабинет Изначальной Ипостаси Основ \"&справочники!F5&\" ИВО\nЗал и кабинет Изначальной Владычицы ИВО \"&справочники!M133","v":"Зал и кабинет Изначальной Ипостаси Основ Изначальной Дочери ИВО\nЗал и кабинет Изначальной Владычицы ИВО Марины"},{"$f":"IF(Полномочные!D150=\"\",\"\", \"Зал и кабинет \"&Полномочные!C150&\" \"&Полномочные!D150)","v":""}]
[124,null,{"$f":"\"Зал и кабинет Изначальной Ипостаси Основ \"&справочники!F6&\" ИВО\nЗал и кабинет Изначальной Владычицы ИВО \"&справочники!M134","v":"Зал и кабинет Изначальной Ипостаси Основ Изначального Аватара ИВО\nЗал и кабинет Изначальной Владычицы ИВО Альбины"},{"$f":"IF(Полномочные!D151=\"\",\"\", \"Зал и кабинет \"&Полномочные!C151&\" \"&Полномочные!D151)","v":""}]
[123,null,{"$f":"\"Зал и кабинет Изначальной Ипостаси Основ \"&справочники!F7&\" ИВО\nЗал и кабинет Изначальной Владычицы ИВО \"&справочники!M135","v":"Зал и кабинет Изначальной Ипостаси Основ Изначального Майтрейи ИВО\nЗал и кабинет Изначальной Владычицы ИВО Вероники"},{"$f":"IF(Полномочные!D152=\"\",\"\", \"Зал и кабинет \"&Полномочные!C152&\" \"&Полномочные!D152)","v":""}]
[122,null,{"$f":"\"Зал и кабинет Изначальной Ипостаси Основ \"&справочники!F8&\" ИВО\nЗал и кабинет Изначальной Владычицы ИВО \"&справочники!M136","v":"Зал и кабинет Изначальной Ипостаси Основ Изначального Христа ИВО\nЗал и кабинет Изначальной Владычицы ИВО Сианы"},{"$f":"IF(Полномочные!D153=\"\",\"\", \"Зал и кабинет \"&Полномочные!C153&\" \"&Полномочные!D153)","v":""}]
[121,null,{"$f":"\"Зал и кабинет Изначальной Ипостаси Основ \"&справочники!F9&\" ИВО\nЗал и кабинет Изначальной Владычицы ИВО \"&справочники!M137","v":"Зал и кабинет Изначальной Ипостаси Основ Изначального Будды ИВО\nЗал и кабинет Изначальной Владычицы ИВО Оны"},{"$f":"IF(Полномочные!D154=\"\",\"\", \"Зал и кабинет \"&Полномочные!C154&\" \"&Полномочные!D154)","v":""}]
[120,null,{"$f":"\"Зал и кабинет Изначальной Ипостаси Основ \"&справочники!F10&\" ИВО\nЗал и кабинет Изначальной Владычицы ИВО \"&справочники!M138","v":"Зал и кабинет Изначальной Ипостаси Основ Изначального Владыки ИВО\nЗал и кабинет Изначальной Владычицы ИВО Стефании"},{"$f":"IF(Полномочные!D155=\"\",\"\", \"Зал и кабинет \"&Полномочные!C155&\" \"&Полномочные!D155)","v":""}]
[119,null,{"$f":"\"Зал и кабинет Изначальной Ипостаси Основ \"&справочники!F11&\" ИВО\nЗал и кабинет Изначальной Владычицы ИВО \"&справочники!M139","v":"Зал и кабинет Изначальной Ипостаси Основ Изначального Учителя ИВО\nЗал и кабинет Изначальной Владычицы ИВО Святы"},{"$f":"IF(Полномочные!D156=\"\",\"\", \"Зал и кабинет \"&Полномочные!C156&\" \"&Полномочные!D156)","v":""}]
[118,null,{"$f":"\"Зал и кабинет Изначальной Ипостаси Основ \"&справочники!F12&\" ИВО\nЗал и кабинет Изначальной Владычицы ИВО \"&справочники!M140","v":"Зал и кабинет Изначальной Ипостаси Основ Изначального Логоса ИВО\nЗал и кабинет Изначальной Владычицы ИВО Баяны"},{"$f":"IF(Полномочные!D157=\"\",\"\", \"Зал и кабинет \"&Полномочные!C157&\" \"&Полномочные!D157)","v":""}]
[117,null,{"$f":"\"Зал и кабинет Изначальной Ипостаси Основ \"&справочники!F13&\" ИВО\nЗал и кабинет Изначальной Владычицы ИВО \"&справочники!M141","v":"Зал и кабинет Изначальной Ипостаси Основ Изначального Аспекта ИВО\nЗал и кабинет Изначальной Владычицы ИВО Екатерины"},{"$f":"IF(Полномочные!D158=\"\",\"\", \"Зал и кабинет \"&Полномочные!C158&\" \"&Полномочные!D158)","v":""}]
[116,null,{"$f":"\"Зал и кабинет Изначальной Ипостаси Основ \"&справочники!F14&\" ИВО\nЗал и кабинет Изначальной Владычицы ИВО \"&справочники!M142","v":"Зал и кабинет Изначальной Ипостаси Основ Изначальной Ипостаси ИВО\nЗал и кабинет Изначальной Владычицы ИВО Сивиллы"},{"$f":"IF(Полномочные!D159=\"\",\"\", \"Зал и кабинет \"&Полномочные!C159&\" \"&Полномочные!D159)","v":""}]
[115,null,{"$f":"\"Зал и кабинет Изначальной Ипостаси Основ \"&справочники!F15&\" ИВО\nЗал и кабинет Изначальной Владычицы ИВО \"&справочники!M143","v":"Зал и кабинет Изначальной Ипостаси Основ Изначального Служащего ИВО\nЗал и кабинет Изначальной Владычицы ИВО Тамилы"},{"$f":"IF(Полномочные!D160=\"\",\"\", \"Зал и кабинет \"&Полномочные!C160&\" \"&Полномочные!D160)","v":""}]
[114,null,{"$f":"\"Зал и кабинет Изначальной Ипостаси Основ \"&справочники!F16&\" ИВО\nЗал и кабинет Изначальной Владычицы ИВО \"&справочники!M144","v":"Зал и кабинет Изначальной Ипостаси Основ Изначального Посвящённого ИВО\nЗал и кабинет Изначальной Владычицы ИВО Ники"},{"$f":"IF(Полномочные!D161=\"\",\"\", \"Зал и кабинет \"&Полномочные!C161&\" \"&Полномочные!D161)","v":""}]
[113,null,{"$f":"\"Зал и кабинет Изначальной Ипостаси Основ \"&справочники!F17&\" ИВО\nЗал и кабинет Изначальной Владычицы ИВО \"&справочники!M145","v":"Зал и кабинет Изначальной Ипостаси Основ Изначального Праведника ИВО\nЗал и кабинет Изначальной Владычицы ИВО Велетте"},{"$f":"IF(Полномочные!D162=\"\",\"\", \"Зал и кабинет \"&Полномочные!C162&\" \"&Полномочные!D162)","v":""}]
[112,null,{"$f":"\"Зал и кабинет Изначальной Ипостаси Основ \"&справочники!F18&\" ИВО\nЗал и кабинет Изначальной Владычицы ИВО \"&справочники!M146","v":"Зал и кабинет Изначальной Ипостаси Основ Изначального Неизречённого ИВО\nЗал и кабинет Изначальной Владычицы ИВО Эмилии"},{"$f":"IF(Полномочные!D163=\"\",\"\", \"Зал и кабинет \"&Полномочные!C163&\" \"&Полномочные!D163)","v":""}]
[111,null,{"$f":"\"Зал и кабинет Изначальной Ипостаси Основ \"&справочники!F19&\" ИВО\nЗал и кабинет Изначальной Владычицы ИВО \"&справочники!M147","v":"Зал и кабинет Изначальной Ипостаси Основ Изначального Предвечного ИВО\nЗал и кабинет Изначальной Владычицы ИВО Елены"},{"$f":"IF(Полномочные!D164=\"\",\"\", \"Зал и кабинет \"&Полномочные!C164&\" \"&Полномочные!D164)","v":""}]
[110,null,{"$f":"\"Зал и кабинет Изначальной Ипостаси Основ \"&справочники!F20&\" ИВО\nЗал и кабинет Изначальной Владычицы ИВО \"&справочники!M148","v":"Зал и кабинет Изначальной Ипостаси Основ Изначального Всемогущего ИВО\nЗал и кабинет Изначальной Владычицы ИВО Валерии"},{"$f":"IF(Полномочные!D165=\"\",\"\", \"Зал и кабинет \"&Полномочные!C165&\" \"&Полномочные!D165)","v":""}]
[109,null,{"$f":"\"Зал и кабинет Изначальной Ипостаси Основ \"&справочники!F21&\" ИВО\nЗал и кабинет Изначальной Владычицы ИВО \"&справочники!M149","v":"Зал и кабинет Изначальной Ипостаси Основ Изначального Творца ИВО\nЗал и кабинет Изначальной Владычицы ИВО Олеси"},{"$f":"IF(Полномочные!D166=\"\",\"\", \"Зал и кабинет \"&Полномочные!C166&\" \"&Полномочные!D166)","v":""}]
[108,null,{"$f":"\"Зал и кабинет Изначальной Ипостаси Основ \"&справочники!F22&\" ИВО\nЗал и кабинет Изначальной Владычицы ИВО \"&справочники!M150","v":"Зал и кабинет Изначальной Ипостаси Основ Изначального Теурга ИВО\nЗал и кабинет Изначальной Владычицы ИВО Антуанэтты"},{"$f":"IF(Полномочные!D167=\"\",\"\", \"Зал и кабинет \"&Полномочные!C167&\" \"&Полномочные!D167)","v":""}]
[107,null,{"$f":"\"Зал и кабинет Изначальной Ипостаси Основ \"&справочники!F23&\" ИВО\nЗал и кабинет Изначальной Владычицы ИВО \"&справочники!M151","v":"Зал и кабинет Изначальной Ипостаси Основ Изначального Ману ИВО\nЗал и кабинет Изначальной Владычицы ИВО Юлианы"},{"$f":"IF(Полномочные!D168=\"\",\"\", \"Зал и кабинет \"&Полномочные!C168&\" \"&Полномочные!D168)","v":""}]
[106,null,{"$f":"\"Зал и кабинет Изначальной Ипостаси Основ \"&справочники!F24&\" ИВО\nЗал и кабинет Изначальной Владычицы ИВО \"&справочники!M152","v":"Зал и кабинет Изначальной Ипостаси Основ Изначального Всевышнего ИВО\nЗал и кабинет Изначальной Владычицы ИВО Синтии"},{"$f":"IF(Полномочные!D169=\"\",\"\", \"Зал и кабинет \"&Полномочные!C169&\" \"&Полномочные!D169)","v":""}]
[105,null,{"$f":"\"Зал и кабинет Изначальной Ипостаси Основ \"&справочники!F25&\" ИВО\nЗал и кабинет Изначальной Владычицы ИВО \"&справочники!M153","v":"Зал и кабинет Изначальной Ипостаси Основ Изначального Предначального ИВО\nЗал и кабинет Изначальной Владычицы ИВО Виктории"},{"$f":"IF(Полномочные!D170=\"\",\"\", \"Зал и кабинет \"&Полномочные!C170&\" \"&Полномочные!D170)","v":""}]
[104,null,{"$f":"\"Зал и кабинет Изначальной Ипостаси Основ \"&справочники!F26&\" ИВО\nЗал и кабинет Изначальной Владычицы ИВО \"&справочники!M154","v":"Зал и кабинет Изначальной Ипостаси Основ Изначального Человека ИВО\nЗал и кабинет Изначальной Владычицы ИВО Дариды"},{"$f":"IF(Полномочные!D171=\"\",\"\", \"Зал и кабинет \"&Полномочные!C171&\" \"&Полномочные!D171)","v":""}]
[103,null,{"$f":"\"Зал и кабинет Изначальной Ипостаси Основ \"&справочники!F27&\" ИВО\nЗал и кабинет Изначальной Владычицы ИВО \"&справочники!M155","v":"Зал и кабинет Изначальной Ипостаси Основ Изначального Основного ИВО\nЗал и кабинет Изначальной Владычицы ИВО Алины"},{"$f":"IF(Полномочные!D172=\"\",\"\", \"Зал и кабинет \"&Полномочные!C172&\" \"&Полномочные!D172)","v":""}]
[102,null,{"$f":"\"Зал и кабинет Изначальной Ипостаси Основ \"&справочники!F28&\" ИВО\nЗал и кабинет Изначальной Владычицы ИВО \"&справочники!M156","v":"Зал и кабинет Изначальной Ипостаси Основ Изначального Истинного ИВО\nЗал и кабинет Изначальной Владычицы ИВО Софьи"},{"$f":"IF(Полномочные!D173=\"\",\"\", \"Зал и кабинет \"&Полномочные!C173&\" \"&Полномочные!D173)","v":""}]
[101,null,{"$f":"\"Зал и кабинет Изначальной Ипостаси Основ \"&справочники!F29&\" ИВО\nЗал и кабинет Изначальной Владычицы ИВО \"&справочники!M157","v":"Зал и кабинет Изначальной Ипостаси Основ Изначального Окского ИВО\nЗал и кабинет Изначальной Владычицы ИВО Агафьи"},{"$f":"IF(Полномочные!D174=\"\",\"\", \"Зал и кабинет \"&Полномочные!C174&\" \"&Полномочные!D174)","v":""}]
[100,null,{"$f":"\"Зал и кабинет Изначальной Ипостаси Основ \"&справочники!F30&\" ИВО\nЗал и кабинет Изначальной Владычицы ИВО \"&справочники!M158","v":"Зал и кабинет Изначальной Ипостаси Основ Изначального Человека Изначальной Мг ИВО\nЗал и кабинет Изначальной Владычицы ИВО Дарьи"},{"$f":"IF(Полномочные!D175=\"\",\"\", \"Зал и кабинет \"&Полномочные!C175&\" \"&Полномочные!D175)","v":""}]
[99,null,{"$f":"\"Зал и кабинет Изначальной Ипостаси Основ \"&справочники!F31&\" ИВО\nЗал и кабинет Изначальной Владычицы ИВО \"&справочники!M159","v":"Зал и кабинет Изначальной Ипостаси Основ Изначального Человека Изначальности ИВО\nЗал и кабинет Изначальной Владычицы ИВО Иланы"},{"$f":"IF(Полномочные!D176=\"\",\"\", \"Зал и кабинет \"&Полномочные!C176&\" \"&Полномочные!D176)","v":""}]
[98,null,{"$f":"\"Зал и кабинет Изначальной Ипостаси Основ \"&справочники!F32&\" ИВО\nЗал и кабинет Изначальной Владычицы ИВО \"&справочники!M160","v":"Зал и кабинет Изначальной Ипостаси Основ Изначального Человека Метагалактики ИВО\nЗал и кабинет Изначальной Владычицы ИВО Яны"},{"$f":"IF(Полномочные!D177=\"\",\"\", \"Зал и кабинет \"&Полномочные!C177&\" \"&Полномочные!D177)","v":""}]
[97,null,{"$f":"\"Зал и кабинет Изначальной Ипостаси Основ \"&справочники!F33&\" ИВО\nЗал и кабинет Изначальной Владычицы ИВО \"&справочники!M161","v":"Зал и кабинет Изначальной Ипостаси Основ Изначального Человека Планеты ИВО\nЗал и кабинет Изначальной Владычицы ИВО Давлаты"},{"$f":"IF(Полномочные!D178=\"\",\"\", \"Зал и кабинет \"&Полномочные!C178&\" \"&Полномочные!D178)","v":""}]
[96,null,{"$f":"\"Зал и кабинет Изначальной Ипостаси Основ \"&справочники!F50&\" ИВО\nЗал и кабинет Изначальной Владычицы ИВО \"&справочники!M162","v":"Зал и кабинет Изначальной Ипостаси Основ ИВДИВО Изначальной Метагалактики ИВО\nЗал и кабинет Изначальной Владычицы ИВО Ирины"},{"$f":"IF(Полномочные!D179=\"\",\"\", \"Зал и кабинет \"&Полномочные!C179&\" \"&Полномочные!D179)","v":""}]
[95,null,{"$f":"\"Зал и кабинет Изначальной Ипостаси Основ \"&справочники!F51&\" ИВО\nЗал и кабинет Изначальной Владычицы ИВО \"&справочники!M163","v":"Зал и кабинет Изначальной Ипостаси Основ Свойств ИВО\nЗал и кабинет Изначальной Владычицы ИВО Лины"},{"$f":"IF(Полномочные!D180=\"\",\"\", \"Зал и кабинет \"&Полномочные!C180&\" \"&Полномочные!D180)","v":""}]
[94,null,{"$f":"\"Зал и кабинет Изначальной Ипостаси Основ \"&справочники!F52&\" ИВО\nЗал и кабинет Изначальной Владычицы ИВО \"&справочники!M164","v":"Зал и кабинет Изначальной Ипостаси Основ Качеств ИВО\nЗал и кабинет Изначальной Владычицы ИВО Анастасии"},{"$f":"IF(Полномочные!D181=\"\",\"\", \"Зал и кабинет \"&Полномочные!C181&\" \"&Полномочные!D181)","v":""}]
[93,null,{"$f":"\"Зал и кабинет Изначальной Ипостаси Основ \"&справочники!F53&\" ИВО\nЗал и кабинет Изначальной Владычицы ИВО \"&справочники!M165","v":"Зал и кабинет Изначальной Ипостаси Основ Функций ИВО\nЗал и кабинет Изначальной Владычицы ИВО Омы"},{"$f":"IF(Полномочные!D182=\"\",\"\", \"Зал и кабинет \"&Полномочные!C182&\" \"&Полномочные!D182)","v":""}]
[92,null,{"$f":"\"Зал и кабинет Изначальной Ипостаси Основ \"&справочники!F54&\" ИВО\nЗал и кабинет Изначальной Владычицы ИВО \"&справочники!M166","v":"Зал и кабинет Изначальной Ипостаси Основ Процессов ИВО\nЗал и кабинет Изначальной Владычицы ИВО Сольвейг"},{"$f":"IF(Полномочные!D183=\"\",\"\", \"Зал и кабинет \"&Полномочные!C183&\" \"&Полномочные!D183)","v":""}]
[91,null,{"$f":"\"Зал и кабинет Изначальной Ипостаси Основ \"&справочники!F55&\" ИВО\nЗал и кабинет Изначальной Владычицы ИВО \"&справочники!M167","v":"Зал и кабинет Изначальной Ипостаси Основ Активностей ИВО\nЗал и кабинет Изначальной Владычицы ИВО Октавии"},{"$f":"IF(Полномочные!D184=\"\",\"\", \"Зал и кабинет \"&Полномочные!C184&\" \"&Полномочные!D184)","v":""}]
[90,null,{"$f":"\"Зал и кабинет Изначальной Ипостаси Основ \"&справочники!F56&\" ИВО\nЗал и кабинет Изначальной Владычицы ИВО \"&справочники!M168","v":"Зал и кабинет Изначальной Ипостаси Основ Заряженностей ИВО\nЗал и кабинет Изначальной Владычицы ИВО Кристины"},{"$f":"IF(Полномочные!D185=\"\",\"\", \"Зал и кабинет \"&Полномочные!C185&\" \"&Полномочные!D185)","v":""}]
[89,null,{"$f":"\"Зал и кабинет Изначальной Ипостаси Основ \"&справочники!F57&\" ИВО\nЗал и кабинет Изначальной Владычицы ИВО \"&справочники!M169","v":"Зал и кабинет Изначальной Ипостаси Основ Мощи ИВО\nЗал и кабинет Изначальной Владычицы ИВО Версавии"},{"$f":"IF(Полномочные!D186=\"\",\"\", \"Зал и кабинет \"&Полномочные!C186&\" \"&Полномочные!D186)","v":""}]
[88,null,{"$f":"\"Зал и кабинет Изначальной Ипостаси Основ \"&справочники!F34&\" ИВО\nЗал и кабинет Изначальной Владычицы ИВО \"&справочники!M170","v":"Зал и кабинет Изначальной Ипостаси Основ ИВДИВО Основ ИВО\nЗал и кабинет Изначальной Владычицы ИВО Ксении"},{"$f":"IF(Полномочные!D187=\"\",\"\", \"Зал и кабинет \"&Полномочные!C187&\" \"&Полномочные!D187)","v":""}]
[87,null,{"$f":"\"Зал и кабинет Изначальной Ипостаси Основ \"&справочники!F35&\" ИВО\nЗал и кабинет Изначальной Владычицы ИВО \"&справочники!M171","v":"Зал и кабинет Изначальной Ипостаси Основ Идей ИВО\nЗал и кабинет Изначальной Владычицы ИВО Эммы"},{"$f":"IF(Полномочные!D188=\"\",\"\", \"Зал и кабинет \"&Полномочные!C188&\" \"&Полномочные!D188)","v":""}]
[86,null,{"$f":"\"Зал и кабинет Изначальной Ипостаси Основ \"&справочники!F36&\" ИВО\nЗал и кабинет Изначальной Владычицы ИВО \"&справочники!M172","v":"Зал и кабинет Изначальной Ипостаси Основ Сути ИВО\nЗал и кабинет Изначальной Владычицы ИВО Стафии"},{"$f":"IF(Полномочные!D189=\"\",\"\", \"Зал и кабинет \"&Полномочные!C189&\" \"&Полномочные!D189)","v":""}]
[85,null,{"$f":"\"Зал и кабинет Изначальной Ипостаси Основ \"&справочники!F37&\" ИВО\nЗал и кабинет Изначальной Владычицы ИВО \"&справочники!M173","v":"Зал и кабинет Изначальной Ипостаси Основ Смыслов ИВО\nЗал и кабинет Изначальной Владычицы ИВО Оксаны"},{"$f":"IF(Полномочные!D190=\"\",\"\", \"Зал и кабинет \"&Полномочные!C190&\" \"&Полномочные!D190)","v":""}]
[84,null,{"$f":"\"Зал и кабинет Изначальной Ипостаси Основ \"&справочники!F38&\" ИВО\nЗал и кабинет Изначальной Владычицы ИВО \"&справочники!M174","v":"Зал и кабинет Изначальной Ипостаси Основ Мыслей ИВО\nЗал и кабинет Изначальной Владычицы ИВО Ульяны"},{"$f":"IF(Полномочные!D191=\"\",\"\", \"Зал и кабинет \"&Полномочные!C191&\" \"&Полномочные!D191)","v":""}]
[83,null,{"$f":"\"Зал и кабинет Изначальной Ипостаси Основ \"&справочники!F39&\" ИВО\nЗал и кабинет Изначальной Владычицы ИВО \"&справочники!M175","v":"Зал и кабинет Изначальной Ипостаси Основ Чувств ИВО\nЗал и кабинет Изначальной Владычицы ИВО Беатрисс"},{"$f":"IF(Полномочные!D192=\"\",\"\", \"Зал и кабинет \"&Полномочные!C192&\" \"&Полномочные!D192)","v":""}]
[82,null,{"$f":"\"Зал и кабинет Изначальной Ипостаси Основ \"&справочники!F40&\" ИВО\nЗал и кабинет Изначальной Владычицы ИВО \"&справочники!M176","v":"Зал и кабинет Изначальной Ипостаси Основ Ощущений ИВО\nЗал и кабинет Изначальной Владычицы ИВО Оливии"},{"$f":"IF(Полномочные!D193=\"\",\"\", \"Зал и кабинет \"&Полномочные!C193&\" \"&Полномочные!D193)","v":""}]
[81,null,{"$f":"\"Зал и кабинет Изначальной Ипостаси Основ \"&справочники!F41&\" ИВО\nЗал и кабинет Изначальной Владычицы ИВО \"&справочники!M177","v":"Зал и кабинет Изначальной Ипостаси Основ Движений ИВО\nЗал и кабинет Изначальной Владычицы ИВО Аллы"},{"$f":"IF(Полномочные!D194=\"\",\"\", \"Зал и кабинет \"&Полномочные!C194&\" \"&Полномочные!D194)","v":""}]
[80,null,{"$f":"\"Зал и кабинет Изначальной Ипостаси Основ \"&справочники!F42&\" ИВО\nЗал и кабинет Изначальной Владычицы ИВО \"&справочники!M178","v":"Зал и кабинет Изначальной Ипостаси Основ Огня ИВО\nЗал и кабинет Изначальной Владычицы ИВО Натали"},{"$f":"IF(Полномочные!D195=\"\",\"\", \"Зал и кабинет \"&Полномочные!C195&\" \"&Полномочные!D195)","v":""}]
[79,null,{"$f":"\"Зал и кабинет Изначальной Ипостаси Основ \"&справочники!F43&\" ИВО\nЗал и кабинет Изначальной Владычицы ИВО \"&справочники!M179","v":"Зал и кабинет Изначальной Ипостаси Основ Духа ИВО\nЗал и кабинет Изначальной Владычицы ИВО Эвы"},{"$f":"IF(Полномочные!D196=\"\",\"\", \"Зал и кабинет \"&Полномочные!C196&\" \"&Полномочные!D196)","v":""}]
[78,null,{"$f":"\"Зал и кабинет Изначальной Ипостаси Основ \"&справочники!F44&\" ИВО\nЗал и кабинет Изначальной Владычицы ИВО \"&справочники!M180","v":"Зал и кабинет Изначальной Ипостаси Основ Света ИВО\nЗал и кабинет Изначальной Владычицы ИВО Ланы"},{"$f":"IF(Полномочные!D197=\"\",\"\", \"Зал и кабинет \"&Полномочные!C197&\" \"&Полномочные!D197)","v":""}]
[77,null,{"$f":"\"Зал и кабинет Изначальной Ипостаси Основ \"&справочники!F45&\" ИВО\nЗал и кабинет Изначальной Владычицы ИВО \"&справочники!M181","v":"Зал и кабинет Изначальной Ипостаси Основ Энергии ИВО\nЗал и кабинет Изначальной Владычицы ИВО Одель"},{"$f":"IF(Полномочные!D198=\"\",\"\", \"Зал и кабинет \"&Полномочные!C198&\" \"&Полномочные!D198)","v":""}]
[76,null,{"$f":"\"Зал и кабинет Изначальной Ипостаси Основ \"&справочники!F46&\" ИВО\nЗал и кабинет Изначальной Владычицы ИВО \"&справочники!M182","v":"Зал и кабинет Изначальной Ипостаси Основ Субъядерности ИВО\nЗал и кабинет Изначальной Владычицы ИВО Тамары"},{"$f":"IF(Полномочные!D199=\"\",\"\", \"Зал и кабинет \"&Полномочные!C199&\" \"&Полномочные!D199)","v":""}]
[75,null,{"$f":"\"Зал и кабинет Изначальной Ипостаси Основ \"&справочники!F47&\" ИВО\nЗал и кабинет Изначальной Владычицы ИВО \"&справочники!M183","v":"Зал и кабинет Изначальной Ипостаси Основ Формы ИВО\nЗал и кабинет Изначальной Владычицы ИВО Нины"},{"$f":"IF(Полномочные!D200=\"\",\"\", \"Зал и кабинет \"&Полномочные!C200&\" \"&Полномочные!D200)","v":""}]
[74,null,{"$f":"\"Зал и кабинет Изначальной Ипостаси Основ \"&справочники!F48&\" ИВО\nЗал и кабинет Изначальной Владычицы ИВО \"&справочники!M184","v":"Зал и кабинет Изначальной Ипостаси Основ Содержания ИВО\nЗал и кабинет Изначальной Владычицы ИВО Орфеи"},{"$f":"IF(Полномочные!D201=\"\",\"\", \"Зал и кабинет \"&Полномочные!C201&\" \"&Полномочные!D201)","v":""}]
[73,null,{"$f":"\"Зал и кабинет Изначальной Ипостаси Основ \"&справочники!F49&\" ИВО\nЗал и кабинет Изначальной Владычицы ИВО \"&справочники!M185","v":"Зал и кабинет Изначальной Ипостаси Основ Поля ИВО\nЗал и кабинет Изначальной Владычицы ИВО Вергилии"},{"$f":"IF(Полномочные!D202=\"\",\"\", \"Зал и кабинет \"&Полномочные!C202&\" \"&Полномочные!D202)","v":""}]
[72,null,{"$f":"\"Зал и кабинет Изначальной Ипостаси Основ \"&справочники!F58&\" ИВО\nЗал и кабинет Изначальной Владычицы ИВО \"&справочники!M186","v":"Зал и кабинет Изначальной Ипостаси Основ ИВДИВО Метагалактики ИВО\nЗал и кабинет Изначальной Владычицы ИВО Василисы"},{"$f":"IF(Полномочные!D203=\"\",\"\", \"Зал и кабинет \"&Полномочные!C203&\" \"&Полномочные!D203)","v":""}]
[71,null,{"$f":"\"Зал и кабинет Изначальной Ипостаси Основ \"&справочники!F59&\" ИВО\nЗал и кабинет Изначальной Владычицы ИВО \"&справочники!M187","v":"Зал и кабинет Изначальной Ипостаси Основ Планеты ИВО\nЗал и кабинет Изначальной Владычицы ИВО Варвары"},{"$f":"IF(Полномочные!D204=\"\",\"\", \"Зал и кабинет \"&Полномочные!C204&\" \"&Полномочные!D204)","v":""}]
[70,null,{"$f":"\"Зал и кабинет Изначальной Ипостаси Основ \"&справочники!F60&\" ИВО\nЗал и кабинет Изначальной Владычицы ИВО \"&справочники!M188","v":"Зал и кабинет Изначальной Ипостаси Основ Буддичности Человека ИВО\nЗал и кабинет Изначальной Владычицы ИВО Арины"},{"$f":"IF(Полномочные!D205=\"\",\"\", \"Зал и кабинет \"&Полномочные!C205&\" \"&Полномочные!D205)","v":""}]
[69,null,{"$f":"\"Зал и кабинет Изначальной Ипостаси Основ \"&справочники!F61&\" ИВО\nЗал и кабинет Изначальной Владычицы ИВО \"&справочники!M189","v":"Зал и кабинет Изначальной Ипостаси Основ Всеединства Супергалактики ИВО\nЗал и кабинет Изначальной Владычицы ИВО Амалии"},{"$f":"IF(Полномочные!D206=\"\",\"\", \"Зал и кабинет \"&Полномочные!C206&\" \"&Полномочные!D206)","v":""}]
[68,null,{"$f":"\"Зал и кабинет Изначальной Ипостаси Основ \"&справочники!F62&\" ИВО\nЗал и кабинет Изначальной Владычицы ИВО \"&справочники!M190","v":"Зал и кабинет Изначальной Ипостаси Основ Единства Галактики ИВО\nЗал и кабинет Изначальной Владычицы ИВО Елизаветы"},{"$f":"IF(Полномочные!D207=\"\",\"\", \"Зал и кабинет \"&Полномочные!C207&\" \"&Полномочные!D207)","v":""}]
[67,null,{"$f":"\"Зал и кабинет Изначальной Ипостаси Основ \"&справочники!F63&\" ИВО\nЗал и кабинет Изначальной Владычицы ИВО \"&справочники!M191","v":"Зал и кабинет Изначальной Ипостаси Основ Универсума Солнца ИВО\nЗал и кабинет Изначальной Владычицы ИВО Веры"},{"$f":"IF(Полномочные!D208=\"\",\"\", \"Зал и кабинет \"&Полномочные!C208&\" \"&Полномочные!D208)","v":""}]
[66,null,{"$f":"\"Зал и кабинет Изначальной Ипостаси Основ \"&справочники!F64&\" ИВО\nЗал и кабинет Изначальной Владычицы ИВО \"&справочники!M192","v":"Зал и кабинет Изначальной Ипостаси Основ Звёздной Вселенной ИВО\nЗал и кабинет Изначальной Владычицы ИВО Мирославы"},{"$f":"IF(Полномочные!D209=\"\",\"\", \"Зал и кабинет \"&Полномочные!C209&\" \"&Полномочные!D209)","v":""}]
[65,null,{"$f":"\"Зал и кабинет Изначальной Ипостаси Основ \"&справочники!F65&\" ИВО\nЗал и кабинет Изначальной Владычицы ИВО \"&справочники!M193","v":"Зал и кабинет Изначальной Ипостаси Основ Физичности ИВО\nЗал и кабинет Изначальной Владычицы ИВО Даяны"},{"$f":"IF(Полномочные!D210=\"\",\"\", \"Зал и кабинет \"&Полномочные!C210&\" \"&Полномочные!D210)","v":""}]
[64,null,{"$f":"\"Зал и кабинет Изначальной Ипостаси Основ \"&справочники!F66&\" ИВО\nЗал и кабинет Изначальной Владычицы ИВО \"&справочники!M194","v":"Зал и кабинет Изначальной Ипостаси Основ ИВДИВО Отца ИВО\nЗал и кабинет Изначальной Владычицы ИВО Стеллы"},{"$f":"IF(Полномочные!D211=\"\",\"\", \"Зал и кабинет \"&Полномочные!C211&\" \"&Полномочные!D211)","v":""}]
[63,null,{"$f":"\"Зал и кабинет Изначальной Ипостаси Основ \"&справочники!F67&\" ИВО\nЗал и кабинет Изначальной Владычицы ИВО \"&справочники!M195","v":"Зал и кабинет Изначальной Ипостаси Основ Матери ИВО\nЗал и кабинет Изначальной Владычицы ИВО Доры"},{"$f":"IF(Полномочные!D212=\"\",\"\", \"Зал и кабинет \"&Полномочные!C212&\" \"&Полномочные!D212)","v":""}]
[62,null,{"$f":"\"Зал и кабинет Изначальной Ипостаси Основ \"&справочники!F68&\" ИВО\nЗал и кабинет Изначальной Владычицы ИВО \"&справочники!M196","v":"Зал и кабинет Изначальной Ипостаси Основ Сына ИВО\nЗал и кабинет Изначальной Владычицы ИВО Клавдии"},{"$f":"IF(Полномочные!D213=\"\",\"\", \"Зал и кабинет \"&Полномочные!C213&\" \"&Полномочные!D213)","v":""}]
[61,null,{"$f":"\"Зал и кабинет Изначальной Ипостаси Основ \"&справочники!F69&\" ИВО\nЗал и кабинет Изначальной Владычицы ИВО \"&справочники!M197","v":"Зал и кабинет Изначальной Ипостаси Основ Дочери ИВО\nЗал и кабинет Изначальной Владычицы ИВО Лады"},{"$f":"IF(Полномочные!D214=\"\",\"\", \"Зал и кабинет \"&Полномочные!C214&\" \"&Полномочные!D214)","v":""}]
[60,null,{"$f":"\"Зал и кабинет Изначальной Ипостаси Основ \"&справочники!F70&\" ИВО\nЗал и кабинет Изначальной Владычицы ИВО \"&справочники!M198","v":"Зал и кабинет Изначальной Ипостаси Основ Аватара ИВО\nЗал и кабинет Изначальной Владычицы ИВО Ветты"},{"$f":"IF(Полномочные!D215=\"\",\"\", \"Зал и кабинет \"&Полномочные!C215&\" \"&Полномочные!D215)","v":""}]
[59,null,{"$f":"\"Зал и кабинет Изначальной Ипостаси Основ \"&справочники!F71&\" ИВО\nЗал и кабинет Изначальной Владычицы ИВО \"&справочники!M199","v":"Зал и кабинет Изначальной Ипостаси Основ Майтрейи ИВО\nЗал и кабинет Изначальной Владычицы ИВО Власты"},{"$f":"IF(Полномочные!D216=\"\",\"\", \"Зал и кабинет \"&Полномочные!C216&\" \"&Полномочные!D216)","v":""}]
[58,null,{"$f":"\"Зал и кабинет Изначальной Ипостаси Основ \"&справочники!F72&\" ИВО\nЗал и кабинет Изначальной Владычицы ИВО \"&справочники!M200","v":"Зал и кабинет Изначальной Ипостаси Основ Христа ИВО\nЗал и кабинет Изначальной Владычицы ИВО Офелии"},{"$f":"IF(Полномочные!D217=\"\",\"\", \"Зал и кабинет \"&Полномочные!C217&\" \"&Полномочные!D217)","v":""}]
[57,null,{"$f":"\"Зал и кабинет Изначальной Ипостаси Основ \"&справочники!F73&\" ИВО\nЗал и кабинет Изначальной Владычицы ИВО \"&справочники!M201","v":"Зал и кабинет Изначальной Ипостаси Основ Будды ИВО\nЗал и кабинет Изначальной Владычицы ИВО Данаи"},{"$f":"IF(Полномочные!D218=\"\",\"\", \"Зал и кабинет \"&Полномочные!C218&\" \"&Полномочные!D218)","v":""}]
[56,null,{"$f":"\"Зал и кабинет Изначальной Ипостаси Основ \"&справочники!F74&\" ИВО\nЗал и кабинет Изначальной Владычицы ИВО \"&справочники!M202","v":"Зал и кабинет Изначальной Ипостаси Основ ИВДИВО Владыки ИВО\nЗал и кабинет Изначальной Владычицы ИВО Ханны"},{"$f":"IF(Полномочные!D219=\"\",\"\", \"Зал и кабинет \"&Полномочные!C219&\" \"&Полномочные!D219)","v":""}]
[55,null,{"$f":"\"Зал и кабинет Изначальной Ипостаси Основ \"&справочники!F75&\" ИВО\nЗал и кабинет Изначальной Владычицы ИВО \"&справочники!M203","v":"Зал и кабинет Изначальной Ипостаси Основ Учителя ИВО\nЗал и кабинет Изначальной Владычицы ИВО Хлои"},{"$f":"IF(Полномочные!D220=\"\",\"\", \"Зал и кабинет \"&Полномочные!C220&\" \"&Полномочные!D220)","v":""}]
[54,null,{"$f":"\"Зал и кабинет Изначальной Ипостаси Основ \"&справочники!F76&\" ИВО\nЗал и кабинет Изначальной Владычицы ИВО \"&справочники!M204","v":"Зал и кабинет Изначальной Ипостаси Основ Логоса ИВО\nЗал и кабинет Изначальной Владычицы ИВО Надежды"},{"$f":"IF(Полномочные!D221=\"\",\"\", \"Зал и кабинет \"&Полномочные!C221&\" \"&Полномочные!D221)","v":""}]
[53,null,{"$f":"\"Зал и кабинет Изначальной Ипостаси Основ \"&справочники!F77&\" ИВО\nЗал и кабинет Изначальной Владычицы ИВО \"&справочники!M205","v":"Зал и кабинет Изначальной Ипостаси Основ Аспекта ИВО\nЗал и кабинет Изначальной Владычицы ИВО Оллы"},{"$f":"IF(Полномочные!D222=\"\",\"\", \"Зал и кабинет \"&Полномочные!C222&\" \"&Полномочные!D222)","v":""}]
[52,null,{"$f":"\"Зал и кабинет Изначальной Ипостаси Основ \"&справочники!F78&\" ИВО\nЗал и кабинет Изначальной Владычицы ИВО \"&справочники!M206","v":"Зал и кабинет Изначальной Ипостаси Основ Ипостаси ИВО\nЗал и кабинет Изначальной Владычицы ИВО Илоны"},{"$f":"IF(Полномочные!D223=\"\",\"\", \"Зал и кабинет \"&Полномочные!C223&\" \"&Полномочные!D223)","v":""}]
[51,null,{"$f":"\"Зал и кабинет Изначальной Ипостаси Основ \"&справочники!F79&\" ИВО\nЗал и кабинет Изначальной Владычицы ИВО \"&справочники!M207","v":"Зал и кабинет Изначальной Ипостаси Основ Служащего ИВО\nЗал и кабинет Изначальной Владычицы ИВО Генриетты"},{"$f":"IF(Полномочные!D224=\"\",\"\", \"Зал и кабинет \"&Полномочные!C224&\" \"&Полномочные!D224)","v":""}]
[50,null,{"$f":"\"Зал и кабинет Изначальной Ипостаси Основ \"&справочники!F80&\" ИВО\nЗал и кабинет Изначальной Владычицы ИВО \"&справочники!M208","v":"Зал и кабинет Изначальной Ипостаси Основ Посвящённого ИВО\nЗал и кабинет Изначальной Владычицы ИВО Марии"},{"$f":"IF(Полномочные!D225=\"\",\"\", \"Зал и кабинет \"&Полномочные!C225&\" \"&Полномочные!D225)","v":""}]
[49,null,{"$f":"\"Зал и кабинет Изначальной Ипостаси Основ \"&справочники!F81&\" ИВО\nЗал и кабинет Изначальной Владычицы ИВО \"&справочники!M209","v":"Зал и кабинет Изначальной Ипостаси Основ Праведника ИВО\nЗал и кабинет Изначальной Владычицы ИВО Глории"},{"$f":"IF(Полномочные!D226=\"\",\"\", \"Зал и кабинет \"&Полномочные!C226&\" \"&Полномочные!D226)","v":""}]
[48,null,{"$f":"\"Зал и кабинет Изначальной Ипостаси Основ \"&справочники!F82&\" ИВО\nЗал и кабинет Изначальной Владычицы ИВО \"&справочники!M210","v":"Зал и кабинет Изначальной Ипостаси Основ ИВДИВО Неизречённого ИВО\nЗал и кабинет Изначальной Владычицы ИВО Констанции"},{"$f":"IF(Полномочные!D227=\"\",\"\", \"Зал и кабинет \"&Полномочные!C227&\" \"&Полномочные!D227)","v":""}]
[47,null,{"$f":"\"Зал и кабинет Изначальной Ипостаси Основ \"&справочники!F83&\" ИВО\nЗал и кабинет Изначальной Владычицы ИВО \"&справочники!M211","v":"Зал и кабинет Изначальной Ипостаси Основ Предвечного ИВО\nЗал и кабинет Изначальной Владычицы ИВО Стэвии"},{"$f":"IF(Полномочные!D228=\"\",\"\", \"Зал и кабинет \"&Полномочные!C228&\" \"&Полномочные!D228)","v":""}]
[46,null,{"$f":"\"Зал и кабинет Изначальной Ипостаси Основ \"&справочники!F84&\" ИВО\nЗал и кабинет Изначальной Владычицы ИВО \"&справочники!M212","v":"Зал и кабинет Изначальной Ипостаси Основ Всемогущего ИВО\nЗал и кабинет Изначальной Владычицы ИВО Полины"},{"$f":"IF(Полномочные!D229=\"\",\"\", \"Зал и кабинет \"&Полномочные!C229&\" \"&Полномочные!D229)","v":""}]
[45,null,{"$f":"\"Зал и кабинет Изначальной Ипостаси Основ \"&справочники!F85&\" ИВО\nЗал и кабинет Изначальной Владычицы ИВО \"&справочники!M213","v":"Зал и кабинет Изначальной Ипостаси Основ Творца ИВО\nЗал и кабинет Изначальной Владычицы ИВО Виру"},{"$f":"IF(Полномочные!D230=\"\",\"\", \"Зал и кабинет \"&Полномочные!C230&\" \"&Полномочные!D230)","v":""}]
[44,null,{"$f":"\"Зал и кабинет Изначальной Ипостаси Основ \"&справочники!F86&\" ИВО\nЗал и кабинет Изначальной Владычицы ИВО \"&справочники!M214","v":"Зал и кабинет Изначальной Ипостаси Основ Теурга ИВО\nЗал и кабинет Изначальной Владычицы ИВО Фанны"},{"$f":"IF(Полномочные!D231=\"\",\"\", \"Зал и кабинет \"&Полномочные!C231&\" \"&Полномочные!D231)","v":""}]
[43,null,{"$f":"\"Зал и кабинет Изначальной Ипостаси Основ \"&справочники!F87&\" ИВО\nЗал и кабинет Изначальной Владычицы ИВО \"&справочники!M215","v":"Зал и кабинет Изначальной Ипостаси Основ Ману ИВО\nЗал и кабинет Изначальной Владычицы ИВО Евгении"},{"$f":"IF(Полномочные!D232=\"\",\"\", \"Зал и кабинет \"&Полномочные!C232&\" \"&Полномочные!D232)","v":""}]
[42,null,{"$f":"\"Зал и кабинет Изначальной Ипостаси Основ \"&справочники!F88&\" ИВО\nЗал и кабинет Изначальной Владычицы ИВО \"&справочники!M216","v":"Зал и кабинет Изначальной Ипостаси Основ Всевышнего ИВО\nЗал и кабинет Изначальной Владычицы ИВО Элины"},{"$f":"IF(Полномочные!D233=\"\",\"\", \"Зал и кабинет \"&Полномочные!C233&\" \"&Полномочные!D233)","v":""}]
[41,null,{"$f":"\"Зал и кабинет Изначальной Ипостаси Основ \"&справочники!F89&\" ИВО\nЗал и кабинет Изначальной Владычицы ИВО \"&справочники!M217","v":"Зал и кабинет Изначальной Ипостаси Основ Предначального ИВО\nЗал и кабинет Изначальной Владычицы ИВО Сары"},{"$f":"IF(Полномочные!D234=\"\",\"\", \"Зал и кабинет \"&Полномочные!C234&\" \"&Полномочные!D234)","v":""}]
[40,null,{"$f":"\"Зал и кабинет Изначальной Ипостаси Основ \"&справочники!F90&\" ИВО\nЗал и кабинет Изначальной Владычицы ИВО \"&справочники!M218","v":"Зал и кабинет Изначальной Ипостаси Основ ИВДИВО Человека ИВО\nЗал и кабинет Изначальной Владычицы ИВО Алевтины"},{"$f":"IF(Полномочные!D235=\"\",\"\", \"Зал и кабинет \"&Полномочные!C235&\" \"&Полномочные!D235)","v":""}]
[39,null,{"$f":"\"Зал и кабинет Изначальной Ипостаси Основ \"&справочники!F91&\" ИВО\nЗал и кабинет Изначальной Владычицы ИВО \"&справочники!M219","v":"Зал и кабинет Изначальной Ипостаси Основ Основного Тело ИВО\nЗал и кабинет Изначальной Владычицы ИВО Раисы"},{"$f":"IF(Полномочные!D236=\"\",\"\", \"Зал и кабинет \"&Полномочные!C236&\" \"&Полномочные!D236)","v":""}]
[38,null,{"$f":"\"Зал и кабинет Изначальной Ипостаси Основ \"&справочники!F92&\" ИВО\nЗал и кабинет Изначальной Владычицы ИВО \"&справочники!M220","v":"Зал и кабинет Изначальной Ипостаси Основ Истины ИВО\nЗал и кабинет Изначальной Владычицы ИВО Авроры"},{"$f":"IF(Полномочные!D237=\"\",\"\", \"Зал и кабинет \"&Полномочные!C237&\" \"&Полномочные!D237)","v":""}]
[37,null,{"$f":"\"Зал и кабинет Изначальной Ипостаси Основ \"&справочники!F93&\" ИВО\nЗал и кабинет Изначальной Владычицы ИВО \"&справочники!M221","v":"Зал и кабинет Изначальной Ипостаси Основ Ока ИВО\nЗал и кабинет Изначальной Владычицы ИВО Диланы"},{"$f":"IF(Полномочные!D238=\"\",\"\", \"Зал и кабинет \"&Полномочные!C238&\" \"&Полномочные!D238)","v":""}]
[36,null,{"$f":"\"Зал и кабинет Изначальной Ипостаси Основ \"&справочники!F94&\" ИВО\nЗал и кабинет Изначальной Владычицы ИВО \"&справочники!M222","v":"Зал и кабинет Изначальной Ипостаси Основ Хум ИВО\nЗал и кабинет Изначальной Владычицы ИВО Яси"},{"$f":"IF(Полномочные!D239=\"\",\"\", \"Зал и кабинет \"&Полномочные!C239&\" \"&Полномочные!D239)","v":""}]
[35,null,{"$f":"\"Зал и кабинет Изначальной Ипостаси Основ \"&справочники!F95&\" ИВО\nЗал и кабинет Изначальной Владычицы ИВО \"&справочники!M223","v":"Зал и кабинет Изначальной Ипостаси Основ Абсолюта ИВО\nЗал и кабинет Изначальной Владычицы ИВО Фиры"},{"$f":"IF(Полномочные!D240=\"\",\"\", \"Зал и кабинет \"&Полномочные!C240&\" \"&Полномочные!D240)","v":""}]
[34,null,{"$f":"\"Зал и кабинет Изначальной Ипостаси Основ \"&справочники!F96&\" ИВО\nЗал и кабинет Изначальной Владычицы ИВО \"&справочники!M224","v":"Зал и кабинет Изначальной Ипостаси Основ Омеги ИВО\nЗал и кабинет Изначальной Владычицы ИВО Омелии"},{"$f":"IF(Полномочные!D241=\"\",\"\", \"Зал и кабинет \"&Полномочные!C241&\" \"&Полномочные!D241)","v":""}]
[33,null,{"$f":"\"Зал и кабинет Изначальной Ипостаси Основ \"&справочники!F97&\" ИВО\nЗал и кабинет Изначальной Владычицы ИВО \"&справочники!M225","v":"Зал и кабинет Изначальной Ипостаси Основ Монады ИВО\nЗал и кабинет Изначальной Владычицы ИВО Мадлен"},{"$f":"IF(Полномочные!D242=\"\",\"\", \"Зал и кабинет \"&Полномочные!C242&\" \"&Полномочные!D242)","v":""}]
[32,null,{"$f":"\"Зал и кабинет Изначальной Ипостаси Основ \"&справочники!F98&\" ИВО\nЗал и кабинет Изначальной Владычицы ИВО \"&справочники!M226","v":"Зал и кабинет Изначальной Ипостаси Основ ИВДИВО Человека Изн-ной Мг ИВО\nЗал и кабинет Изначальной Владычицы ИВО Риммы"},{"$f":"IF(Полномочные!D243=\"\",\"\", \"Зал и кабинет \"&Полномочные!C243&\" \"&Полномочные!D243)","v":""}]
[31,null,{"$f":"\"Зал и кабинет Изначальной Ипостаси Основ \"&справочники!F99&\" ИВО\nЗал и кабинет Изначальной Владычицы ИВО \"&справочники!M227","v":"Зал и кабинет Изначальной Ипостаси Основ Физического Тела ИВО\nЗал и кабинет Изначальной Владычицы ИВО Беллы"},{"$f":"IF(Полномочные!D244=\"\",\"\", \"Зал и кабинет \"&Полномочные!C244&\" \"&Полномочные!D244)","v":""}]
[30,null,{"$f":"\"Зал и кабинет Изначальной Ипостаси Основ \"&справочники!F100&\" ИВО\nЗал и кабинет Изначальной Владычицы ИВО \"&справочники!M228","v":"Зал и кабинет Изначальной Ипостаси Основ Разума ИВО\nЗал и кабинет Изначальной Владычицы ИВО Агнии"},{"$f":"IF(Полномочные!D245=\"\",\"\", \"Зал и кабинет \"&Полномочные!C245&\" \"&Полномочные!D245)","v":""}]
[29,null,{"$f":"\"Зал и кабинет Изначальной Ипостаси Основ \"&справочники!F101&\" ИВО\nЗал и кабинет Изначальной Владычицы ИВО \"&справочники!M229","v":"Зал и кабинет Изначальной Ипостаси Основ Сердца ИВО\nЗал и кабинет Изначальной Владычицы ИВО Фелиции"},{"$f":"IF(Полномочные!D246=\"\",\"\", \"Зал и кабинет \"&Полномочные!C246&\" \"&Полномочные!D246)","v":""}]
[28,null,{"$f":"\"Зал и кабинет Изначальной Ипостаси Основ \"&справочники!F102&\" ИВО\nЗал и кабинет Изначальной Владычицы ИВО \"&справочники!M230","v":"Зал и кабинет Изначальной Ипостаси Основ Мышления ИВО\nЗал и кабинет Изначальной Владычицы ИВО Виталины"},{"$f":"IF(Полномочные!D247=\"\",\"\", \"Зал и кабинет \"&Полномочные!C247&\" \"&Полномочные!D247)","v":""}]
[27,null,{"$f":"\"Зал и кабинет Изначальной Ипостаси Основ \"&справочники!F103&\" ИВО\nЗал и кабинет Изначальной Владычицы ИВО \"&справочники!M231","v":"Зал и кабинет Изначальной Ипостаси Основ Головерсума ИВО\nЗал и кабинет Изначальной Владычицы ИВО Ноны"},{"$f":"IF(Полномочные!D248=\"\",\"\", \"Зал и кабинет \"&Полномочные!C248&\" \"&Полномочные!D248)","v":""}]
[26,null,{"$f":"\"Зал и кабинет Изначальной Ипостаси Основ \"&справочники!F104&\" ИВО\nЗал и кабинет Изначальной Владычицы ИВО \"&справочники!M232","v":"Зал и кабинет Изначальной Ипостаси Основ Восприятия ИВО\nЗал и кабинет Изначальной Владычицы ИВО Клементины"},{"$f":"IF(Полномочные!D249=\"\",\"\", \"Зал и кабинет \"&Полномочные!C249&\" \"&Полномочные!D249)","v":""}]
[25,null,{"$f":"\"Зал и кабинет Изначальной Ипостаси Основ \"&справочники!F105&\" ИВО\nЗал и кабинет Изначальной Владычицы ИВО \"&справочники!M233","v":"Зал и кабинет Изначальной Ипостаси Основ Вечности Отца ИВО\nЗал и кабинет Изначальной Владычицы ИВО Лиры"},{"$f":"IF(Полномочные!D250=\"\",\"\", \"Зал и кабинет \"&Полномочные!C250&\" \"&Полномочные!D250)","v":""}]
[24,null,{"$f":"\"Зал и кабинет Изначальной Ипостаси Основ \"&справочники!F106&\" ИВО\nЗал и кабинет Изначальной Владычицы ИВО \"&справочники!M234","v":"Зал и кабинет Изначальной Ипостаси Основ ИВДИВО Человека Изн-ти ИВО\nЗал и кабинет Изначальной Владычицы ИВО Ванессы"},{"$f":"IF(Полномочные!D251=\"\",\"\", \"Зал и кабинет \"&Полномочные!C251&\" \"&Полномочные!D251)","v":""}]
[23,null,{"$f":"\"Зал и кабинет Изначальной Ипостаси Основ \"&справочники!F107&\" ИВО\nЗал и кабинет Изначальной Владычицы ИВО \"&справочники!M235","v":"Зал и кабинет Изначальной Ипостаси Основ Синтезтела ИВО\nЗал и кабинет Изначальной Владычицы ИВО Евдокии"},{"$f":"IF(Полномочные!D252=\"\",\"\", \"Зал и кабинет \"&Полномочные!C252&\" \"&Полномочные!D252)","v":""}]
[22,null,{"$f":"\"Зал и кабинет Изначальной Ипостаси Основ \"&справочники!F108&\" ИВО\nЗал и кабинет Изначальной Владычицы ИВО \"&справочники!M236","v":"Зал и кабинет Изначальной Ипостаси Основ Сообразительности ИВО\nЗал и кабинет Изначальной Владычицы ИВО Клары"},{"$f":"IF(Полномочные!D253=\"\",\"\", \"Зал и кабинет \"&Полномочные!C253&\" \"&Полномочные!D253)","v":""}]
[21,null,{"$f":"\"Зал и кабинет Изначальной Ипостаси Основ \"&справочники!F109&\" ИВО\nЗал и кабинет Изначальной Владычицы ИВО \"&справочники!M237","v":"Зал и кабинет Изначальной Ипостаси Основ Осмысленности ИВО\nЗал и кабинет Изначальной Владычицы ИВО Лизы"},{"$f":"IF(Полномочные!D254=\"\",\"\", \"Зал и кабинет \"&Полномочные!C254&\" \"&Полномочные!D254)","v":""}]
[20,null,{"$f":"\"Зал и кабинет Изначальной Ипостаси Основ \"&справочники!F110&\" ИВО\nЗал и кабинет Изначальной Владычицы ИВО \"&справочники!M238","v":"Зал и кабинет Изначальной Ипостаси Основ Ума ИВО\nЗал и кабинет Изначальной Владычицы ИВО Сюзанны"},{"$f":"IF(Полномочные!D255=\"\",\"\", \"Зал и кабинет \"&Полномочные!C255&\" \"&Полномочные!D255)","v":""}]
[19,null,{"$f":"\"Зал и кабинет Изначальной Ипостаси Основ \"&справочники!F111&\" ИВО\nЗал и кабинет Изначальной Владычицы ИВО \"&справочники!M239","v":"Зал и кабинет Изначальной Ипостаси Основ Провидения ИВО\nЗал и кабинет Изначальной Владычицы ИВО Сейлы"},{"$f":"IF(Полномочные!D256=\"\",\"\", \"Зал и кабинет \"&Полномочные!C256&\" \"&Полномочные!D256)","v":""}]
[18,null,{"$f":"\"Зал и кабинет Изначальной Ипостаси Основ \"&справочники!F112&\" ИВО\nЗал и кабинет Изначальной Владычицы ИВО \"&справочники!M240","v":"Зал и кабинет Изначальной Ипостаси Основ Огненной Нити ИВО\nЗал и кабинет Изначальной Владычицы ИВО Русланы"},{"$f":"IF(Полномочные!D257=\"\",\"\", \"Зал и кабинет \"&Полномочные!C257&\" \"&Полномочные!D257)","v":""}]
[17,null,{"$f":"\"Зал и кабинет Изначальной Ипостаси Основ \"&справочники!F113&\" ИВО\nЗал и кабинет Изначальной Владычицы ИВО \"&справочники!M241","v":"Зал и кабинет Изначальной Ипостаси Основ Пламени Отца ИВО\nЗал и кабинет Изначальной Владычицы ИВО Устины"},{"$f":"IF(Полномочные!D258=\"\",\"\", \"Зал и кабинет \"&Полномочные!C258&\" \"&Полномочные!D258)","v":""}]
[16,null,{"$f":"\"Зал и кабинет Изначальной Ипостаси Основ \"&справочники!F114&\" ИВО\nЗал и кабинет Изначальной Владычицы ИВО \"&справочники!M242","v":"Зал и кабинет Изначальной Ипостаси Основ ИВДИВО Человека Мг ИВО\nЗал и кабинет Изначальной Владычицы ИВО Марики"},{"$f":"IF(Полномочные!D259=\"\",\"\", \"Зал и кабинет \"&Полномочные!C259&\" \"&Полномочные!D259)","v":""}]
[15,null,{"$f":"\"Зал и кабинет Изначальной Ипостаси Основ \"&справочники!F115&\" ИВО\nЗал и кабинет Изначальной Владычицы ИВО \"&справочники!M243","v":"Зал и кабинет Изначальной Ипостаси Основ Трансвизора ИВО\nЗал и кабинет Изначальной Владычицы ИВО Франсуазы"},{"$f":"IF(Полномочные!D260=\"\",\"\", \"Зал и кабинет \"&Полномочные!C260&\" \"&Полномочные!D260)","v":""}]
[14,null,{"$f":"\"Зал и кабинет Изначальной Ипостаси Основ \"&справочники!F116&\" ИВО\nЗал и кабинет Изначальной Владычицы ИВО \"&справочники!M244","v":"Зал и кабинет Изначальной Ипостаси Основ Интеллекта ИВО\nЗал и кабинет Изначальной Владычицы ИВО Христины"},{"$f":"IF(Полномочные!D261=\"\",\"\", \"Зал и кабинет \"&Полномочные!C261&\" \"&Полномочные!D261)","v":""}]
[13,null,{"$f":"\"Зал и кабинет Изначальной Ипостаси Основ \"&справочники!F117&\" ИВО\nЗал и кабинет Изначальной Владычицы ИВО \"&справочники!M245","v":"Зал и кабинет Изначальной Ипостаси Основ Престола ИВО\nЗал и кабинет Изначальной Владычицы ИВО Иоланы"},{"$f":"IF(Полномочные!D262=\"\",\"\", \"Зал и кабинет \"&Полномочные!C262&\" \"&Полномочные!D262)","v":""}]
[12,null,{"$f":"\"Зал и кабинет Изначальной Ипостаси Основ \"&справочники!F118&\" ИВО\nЗал и кабинет Изначальной Владычицы ИВО \"&справочники!M246","v":"Зал и кабинет Изначальной Ипостаси Основ Веры ИВО\nЗал и кабинет Изначальной Владычицы ИВО Джесики"},{"$f":"IF(Полномочные!D263=\"\",\"\", \"Зал и кабинет \"&Полномочные!C263&\" \"&Полномочные!D263)","v":""}]
[11,null,{"$f":"\"Зал и кабинет Изначальной Ипостаси Основ \"&справочники!F119&\" ИВО\nЗал и кабинет Изначальной Владычицы ИВО \"&справочники!M247","v":"Зал и кабинет Изначальной Ипостаси Основ Чувствознания ИВО\nЗал и кабинет Изначальной Владычицы ИВО Сабины"},{"$f":"IF(Полномочные!D264=\"\",\"\", \"Зал и кабинет \"&Полномочные!C264&\" \"&Полномочные!D264)","v":""}]
[10,null,{"$f":"\"Зал и кабинет Изначальной Ипостаси Основ \"&справочники!F120&\" ИВО\nЗал и кабинет Изначальной Владычицы ИВО \"&справочники!M248","v":"Зал и кабинет Изначальной Ипостаси Основ Потенциала ИВО\nЗал и кабинет Изначальной Владычицы ИВО Нелли"},{"$f":"IF(Полномочные!D265=\"\",\"\", \"Зал и кабинет \"&Полномочные!C265&\" \"&Полномочные!D265)","v":""}]
[9,null,{"$f":"\"Зал и кабинет Изначальной Ипостаси Основ \"&справочники!F121&\" ИВО\nЗал и кабинет Изначальной Владычицы ИВО \"&справочники!M249","v":"Зал и кабинет Изначальной Ипостаси Основ Мощи Отца ИВО\nЗал и кабинет Изначальной Владычицы ИВО Санты"},{"$f":"IF(Полномочные!D266=\"\",\"\", \"Зал и кабинет \"&Полномочные!C266&\" \"&Полномочные!D266)","v":""}]
[8,null,{"$f":"\"Зал и кабинет Изначальной Ипостаси Основ \"&справочники!F122&\" ИВО\nЗал и кабинет Изначальной Владычицы ИВО \"&справочники!M250","v":"Зал и кабинет Изначальной Ипостаси Основ ИВДИВО Человеа Планеты ИВО\nЗал и кабинет Изначальной Владычицы ИВО Доротеи"},{"$f":"IF(Полномочные!D267=\"\",\"\", \"Зал и кабинет \"&Полномочные!C267&\" \"&Полномочные!D267)","v":""}]
[7,null,{"$f":"\"Зал и кабинет Изначальной Ипостаси Основ \"&справочники!F123&\" ИВО\nЗал и кабинет Изначальной Владычицы ИВО \"&справочники!M251","v":"Зал и кабинет Изначальной Ипостаси Основ Столпа ИВО\nЗал и кабинет Изначальной Владычицы ИВО Янины"},{"$f":"IF(Полномочные!D268=\"\",\"\", \"Зал и кабинет \"&Полномочные!C268&\" \"&Полномочные!D268)","v":""}]
[6,null,{"$f":"\"Зал и кабинет Изначальной Ипостаси Основ \"&справочники!F124&\" ИВО\nЗал и кабинет Изначальной Владычицы ИВО \"&справочники!M252","v":"Зал и кабинет Изначальной Ипостаси Основ Сознания ИВО\nЗал и кабинет Изначальной Владычицы ИВО Люции"},{"$f":"IF(Полномочные!D269=\"\",\"\", \"Зал и кабинет \"&Полномочные!C269&\" \"&Полномочные!D269)","v":""}]
[5,null,{"$f":"\"Зал и кабинет Изначальной Ипостаси Основ \"&справочники!F125&\" ИВО\nЗал и кабинет Изначальной Владычицы ИВО \"&справочники!M253","v":"Зал и кабинет Изначальной Ипостаси Основ Грааля ИВО\nЗал и кабинет Изначальной Владычицы ИВО Ирэн"},{"$f":"IF(Полномочные!D270=\"\",\"\", \"Зал и кабинет \"&Полномочные!C270&\" \"&Полномочные!D270)","v":""}]
[4,null,{"$f":"\"Зал и кабинет Изначальной Ипостаси Основ \"&справочники!F126&\" ИВО\nЗал и кабинет Изначальной Владычицы ИВО \"&справочники!M254","v":"Зал и кабинет Изначальной Ипостаси Основ Синтезобраза ИВО\nЗал и кабинет Изначальной Владычицы ИВО Сесилии"},{"$f":"IF(Полномочные!D271=\"\",\"\", \"Зал и кабинет \"&Полномочные!C271&\" \"&Полномочные!D271)","v":""}]
[3,null,{"$f":"\"Зал и кабинет Изначальной Ипостаси Основ \"&справочники!F127&\" ИВО\nЗал и кабинет Изначальной Владычицы ИВО \"&справочники!M255","v":"Зал и кабинет Изначальной Ипостаси Основ Души ИВО\nЗал и кабинет Изначальной Владычицы ИВО Вериславы"},{"$f":"IF(Полномочные!D272=\"\",\"\", \"Зал и кабинет \"&Полномочные!C272&\" \"&Полномочные!D272)","v":""}]
[2,null,{"$f":"\"Зал и кабинет Изначальной Ипостаси Основ \"&справочники!F128&\" ИВО\nЗал и кабинет Изначальной Владычицы ИВО \"&справочники!M256","v":"Зал и кабинет Изначальной Ипостаси Основ Слова Отца ИВО\nЗал и кабинет Изначальной Владычицы ИВО Станиславы"},{"$f":"IF(Полномочные!D273=\"\",\"\", \"Зал и кабинет \"&Полномочные!C273&\" \"&Полномочные!D273)","v":""}]
[1,null,{"$f":"\"Зал и кабинет Изначальной Ипостаси Основ \"&справочники!F129&\" ИВО\nЗал и кабинет Изначальной Владычицы ИВО \"&справочники!M257","v":"Зал и кабинет Изначальной Ипостаси Основ Образа Отца ИВО\nЗал и кабинет Изначальной Владычицы ИВО Милославы"},{"$f":"IF(Полномочные!D274=\"\",\"\", \"Зал и кабинет \"&Полномочные!C274&\" \"&Полномочные!D274)","v":""}]

{"sheet":"Этажи","index":3,"n_rows":4,"n_cols":2,"rows_kept":4,"cut":false,"hidden":false,"merged":[[0,0,0,1],[1,0,1,1],[18,0,18,1]]}
[{"$f":"\"План здания \"&Наименование_Подразделения&\" \"&Изначальность&\" Изначальности, \"&Территория","v":"План здания Иерархии ИВО ИВДИВО 255 Изначальности, Санкт-Петербург"}]
["В плане здания распределены только Полномочные ИВДИВО. Сотрудники, Посвящённые и Праведники приписаны к Полномочным и составляют их группы явления в Залах."]
[]
["План 256-129 этажей:","План 128-1 этажей:"]

{"sheet":"справочники","index":4,"n_rows":274,"n_cols":16,"rows_kept":274,"cut":false,"hidden":false,"merged":[]}
["№ Изн","территория","территории","Отделения","Ипостась Изначального…(кто)","Ипостась Основы …(кто)","ИС","ИС","ИС","Название подразделения","Название подразделения в родительном падеже","ИВладыки","ИВладыки","Вид подразделения",{"$f":"\"Контакты Полномочных подразделения \"&Наименование_Подразделения&\" \"&Изначальность&\" Изначальности\"&\", \"&Территория","v":"Контакты Полномочных подразделения Иерархии ИВО ИВДИВО 255 Изначальности, Санкт-Петербург"}]
[256,"Москва","Москвы","Р","Изначального Отца","Изначального Отца","ИВДИВО",null,null,"ИВДИВО","ИВДИВО","Кут Хуми   ","Кут Хуми","1 Состав: 16 Служащих",0]
[255,"Санкт-Петербург","Санкт-Петербурга","Р","Изначальной Матери","Изначальной Матери","Иерархия ИВО",null,null,"Иерархия ИВО ИВДИВО","Иерархии ИВО ИВДИВО","Иосиф","Иосифа","2 Состав: 27 Служащих",null,"Наименование подразделения в родительном падеже:"]
[254,"Новосибирск","Новосибирска","Р","Изначального Сына","Изначального Сына","Цивилизация ИВО",null,null,"Цивилизация ИВО ИВДИВО","Цивилизации ИВО ИВДИВО","Мория","Мории","3 Состав: 33 Служащих",null,"Управление Синтеза"]
[253,"Крым","Крыма","Р","Изначальной Дочери","Изначальной Дочери","Психодинамика ИВО",null,null,"Психодинамика ИВО ИВДИВО","Психодинамики ИВО ИВДИВО","Филипп","Филиппа","4 Состав: 40 Служащих",null,"Территория (именительный падеж):"]
[252,"Краснодар","Краснодара","Р","Изначального Аватара","Изначального Аватара","Человек ИВО",null,null,"Человек ИВО ИВДИВО","Человека ИВО ИВДИВО","Византий","Византия","5 Состав: 50 Служащих",null,"Территория (родительный падеж):"]
[251,"Красноярск","Красноярска","Р","Изначального Майтрейи","Изначального Майтрейи","Конфедерация ИВО",null,null,"Конфедерация ИВО ИВДИВО","Конфедерации ИВО ИВДИВО","Янов","Янова","6 Состав: 60 Служащих",null,"Владыка"]
[250,"Екатеринбург","Екатеринбурга","Р","Изначального Христа","Изначального Христа","Теофа ИВО",null,null,"Теофа ИВО ИВДИВО","Теофы ИВО ИВДИВО","Юлий","Юлия","7 Состав: 68 Служащих",null,"Владычица"]
[249,"Московия","Московии","Р","Изначального Будды","Изначального Будды","Изначальная Метагалактика ИВО",null,null,"Изначальная Метагалактика ИВО ИВДИВО","Изначальний Метагалактики ИВО ИВДИВО","Юсеф ","Юсефа","8 Состав: 76 Служащих"]
[248,"Иркутск","Иркутска","Р","Изначального Владыки","Изначального Владыки","ИВДИВО Полномочного",null,null,"ИВДИВО Полномочного","ИВДИВО Полномочного","Владомир  ","Владомира","9 Состав: 84 Служащих"]
[247,"Сочи","Сочи","Р","Изначального Учителя","Изначального Учителя","Статусы ИВО ИВДИВО",null,null,"Статусы ИВО ИВДИВО","Статусов ИВО ИВДИВО","Савва         ","Саввы","10 Состав: 92 Служащих"]
[246,"Ставрополь","Ставрополя","Р","Изначального Логоса","Изначального Логоса","Посвящения ИВО",null,null,"Посвящения ИВО ИВДИВО","Посвящений ИВО ИВДИВО","Савелий     ","Савелия","11 Состав: 100 Служащих"]
[245,"Самара","Самары","Р","Изначального Аспекта","Изначального Аспекта","Технологии ИВО",null,null,"Технологии ИВО ИВДИВО","Технологий ИВО ИВДИВО","Вильгельм ","Вильгельма","12 Состав: 108 Служащих"]
[244,"Ростов-на-Дону","Ростова-на-Дону","Р","Изначальной Ипостаси","Изначальной Ипостаси","Изначальности ИВО",null,null,"Изначальности ИВО ИВДИВО","Изначальностей ИВО ИВДИВО","Юстас        ","Юстаса","13 Состав: 116 Служащих"]
[243,"Челны","Челнов","Р","Изначального Служащего","Изначального Служащего","Присутствия ИВО",null,null,"Присутствия ИВО ИВДИВО","Присутствий ИВО ИВДИВО","Александр ","Александра","14 Состав: 128 Служащих"]
[242,"Кавминводы","Кавминвод","Р","Изначального Посвящённого","Изначального Посвящённого","Миры ИВО",null,null,"Миры ИВО ИВДИВО","Миров ИВО ИВДИВО","Яромир       ","Яромира",null,null,{"$f":"\"Будда, Ипостась Изначально Вышестоящего Отца, Глава \"&Наименование_Подразделения&\" \"&Изначальность&\" Изначальности, Управления Синтеза \"&IFERROR(INDEX(ИВладыки_родит_падеж,O16),\"ошибка\")","v":"Будда, Ипостась Изначально Вышестоящего Отца, Глава Иерархии ИВО ИВДИВО 255 Изначальности, Управления Синтеза Яромира"}]
[241,"Казань","Казани","Р","Изначального Праведника","Изначального Праведника","Метагалактика ИВО",null,null,"Метагалактика ИВО ИВДИВО","Метагалактики ИВО ИВДИВО","Серапис      ","Сераписа",null,null,{"$f":"\"Владыка, Ипостась \"&IFERROR(INDEX(Ипостась_Изначального_,257-Изначальность),\"ошибка\")&\", Глава Высшей Школы Синтеза ИДИВО \"&Изначальность&\" Изначальности, Управления Синтеза \"&IFERROR(INDEX(ИВладыки_родит_падеж,O17),\"ошибка\")","v":"Владыка, Ипостась Изначальной Матери, Глава Высшей Школы Синтеза ИДИВО 255 Изначальности, Управления Синтеза Сераписа"}]
[240,"Севастополь","Севастополя","Р","Изначального Неизречённого","Изначального Неизречённого","Синтез ИВДИВО Изначального Неизречённого",null,null,"Синтез ИВДИВО Изначального Неизречённого","Синтеза ИВДИВО Изначального Неизречённого","Эдуард        ","Эдуарда",null,null,{"$f":"\"Владычица, Ипостась Основы \"&IFERROR(INDEX(Ипостась_Основы_,257-Изначальность),\"ошибка\")&\", Глава Метагалактической Академии Наук \"&Территории&\", Управления Синтеза \"&IFERROR(INDEX(ИВладыки_родит_падеж,O18),\"ошибка\")","v":"Владычица, Ипостась Основы Изначальной Матери, Глава Метагалактической Академии Наук Санкт-Петербурга, Управления Синтеза Эдуарда"}]
[239,"Балтия","Балтии","Р","Изначального Предвечного","Изначального Предвечного","Синтез Изначального Предвечного ИВО",null,null,"Синтез Изначального Предвечного ИВО ИВДИВО","Синтеза Изначального Предвечного ИВО ИВДИВО","Фадей          ","Фадея",null,null,{"$f":"\"Учитель, Ипостась Синтеза Кут Хуми, Глава Дома Статусного Синтеза \"&Территории&\", Управления Синтеза \"&IFERROR(INDEX(ИВладыки_родит_падеж,O19),\"ошибка\")","v":"Учитель, Ипостась Синтеза Кут Хуми, Глава Дома Статусного Синтеза Санкт-Петербурга, Управления Синтеза Фадея"}]
[238,"Бородино","Бородино","М","Изначального Всемогущего","Изначального Всемогущего","Синтез Изначального Всемогущего ИВО",null,null,"Синтез Изначального Всемогущего ИВО ИВДИВО","Синтеза Изначального Всемогущего ИВО ИВДИВО","Серафим     ","Серафима",null,null,{"$f":"\"Учитель, Ипостась Синтеза Фаинь, Глава Дома Посвящений \"&Территории&\", Управления Синтеза \"&IFERROR(INDEX(ИВладыки_родит_падеж,O20),\"ошибка\")","v":"Учитель, Ипостась Синтеза Фаинь, Глава Дома Посвящений Санкт-Петербурга, Управления Синтеза Серафима"}]
[237,"Волгоград","Волгограда","Р","Изначального Творца","Изначального Творца","Синтез Изначального Творца ИВО",null,null,"Синтез Изначального Творца ИВО ИВДИВО","Синтеза Изначального Творца ИВО ИВДИВО","Святослав  ","Святослава",null,null,{"$f":"\"Учитель, Ипостась Синтеза \"&Владыка&\", Глава Метагалактической Гражданской Конфедерации \"&Территории&\", Управления Синтеза \"&IFERROR(INDEX(ИВладыки_родит_падеж,O21),\"ошибка\")","v":"Учитель, Ипостась Синтеза Иосифа, Глава Метагалактической Гражданской Конфедерации Санкт-Петербурга, Управления Синтеза Святослава"}]
[236,"Вологодск","Вологодской области","Р","Изначального Теурга","Изначального Теурга","Синтез Изначального Теурга ИВО",null,null,"Синтез Изначального Теурга ИВО ИВДИВО","Синтеза Изначального Теурга ИВО ИВДИВО","Эоан            ","Эоана",null,null,{"$f":"\"Учитель, Ипостась Синтеза  \"&Владычица&\", Глава Изначального Центра Ипостаси Синтеза \"&Владыка&\" \"&Владычица&\", Управления Синтеза \"&IFERROR(INDEX(ИВладыки_родит_падеж,O22),\"ошибка\")","v":"Учитель, Ипостась Синтеза  Славии, Глава Изначального Центра Ипостаси Синтеза Иосифа Славии, Управления Синтеза Эоана"}]
[235,"Уфа","Уфы","Р","Изначального Ману","Изначального Ману","Синтез Изначального Ману ИВО",null,null,"Синтез Изначального Ману ИВО ИВДИВО","Синтеза Изначального Ману ИВО ИВДИВО","Сергей         ","Сергея",null,null,{"$f":"\"Учитель, Ипостась Синтеза, Глава Метагалактического Агентства Информации \"&Территории&\", Управления Синтеза \"&IFERROR(INDEX(ИВладыки_родит_падеж,O23),\"ошибка\")","v":"Учитель, Ипостась Синтеза, Глава Метагалактического Агентства Информации Санкт-Петербурга, Управления Синтеза Сергея"}]
[234,"Хакасия","Хакасии","Р","Изначального Всевышнего","Изначального Всевышнего","Синтез Изначального Всевышнего ИВО",null,null,"Синтез Изначального Всевышнего ИВО ИВДИВО","Синтеза Изначального Всевышнего ИВО ИВДИВО","Сулейман   ","Сулеймана"]
[233,"Дагестан","Дагестана","Р","Изначального Предначального","Изначального Предначального","Синтез Изначального ИВО Предначального",null,null,"Синтез Изначального ИВО Предначального ИВДИВО","Синтеза Изначального ИВО Предначального ИВДИВО","Себастьян  ","Себастьяна",null,null,"Логос, Ипостась Изначально Вышестоящей Матери, Глава Дома Отца ИВДИВО Полномочного, Управления Синтеза Владомира"]
[232,"Курск","Курска","Р","Изначального Человека","Изначального Человека","Синтез ИВДИВО Изначально Вышестоящего Человека ИВО ",null,null,"Синтез ИВДИВО Человека ИВО ","Синтеза ИВДИВО Человека ИВО ","Теодор         ","Теодора",null,null,"Логос, Ипостась Изначально Вышестоящей Матери, Глава Дома Отца Статуса ИВО, Управления Синтеза Саввы"]
[231,"Воронеж","Воронежа","Р","Изначального Основного","Изначального Основного","Синтез Основности ИВО",null,null,"Синтез Основности ИВО ИВДИВО","Синтеза Основности ИВО ИВДИВО","Антей          ","Антея",null,null,"Логос, Ипостась Изначально Вышестоящей Матери, Глава Дома Отца Посвящения ИВО, Управления Синтеза Савелия"]
[230,"Королёв","Королёва","М","Изначального Истинного","Изначального Истинного","Синтез Истинности ИВО",null,null,"Синтез Истинности ИВО ИВДИВО","Синтеза Истинности ИВО ИВДИВО","Наум            ","Наума",null,null,"Логос, Ипостась Изначально Вышестоящей Матери, Глава Дома Отца Технологии ИВО, Управления Синтеза Вильгельма"]
[229,"Братск","Братска","Р","Изначального Окского","Изначального Окского","Синтез Окскости ИВО",null,null,"Синтез Окскости ИВО ИВДИВО","Синтеза Окскости ИВО ИВДИВО","Велемир      ","Велемира",null,null,"Логос, Ипостась Изначально Вышестоящей Матери, Глава Дома Отца Изначальности ИВО, Управления Синтеза Юстаса"]
[228,"Чита","Читы","Р","Изначального Человека Изначальной Мг","Изначального Человека Изначальной Мг","Синтез Человека Изначальной Метагалактики ИВО",null,null,"Синтез Человека Изначальной Метагалактики ИВО ИВДИВО","Синтеза Человека Изначальной Метагалактики ИВО ИВДИВО","Георг             ","Георга",null,null,"Логос, Ипостась Изначально Вышестоящей Матери, Глава Дома Отца Присутствия ИВО, Управления Синтеза Александра"]
[227,"Тверь","Твери","Р","Изначального Человека Изначальности","Изначального Человека Изначальности","Синтез Человека Изначальности ИВО",null,null,"Синтез Человека Изначальности ИВО ИВДИВО","Синтеза Человека Изначальности ИВО ИВДИВО","Алексей  ","Алексея",null,null,"Логос, Ипостась Изначально Вышестоящей Матери, Глава Дома Отца Мира ИВО, Управления Синтеза Яромира"]
[226,"Бурятия","Бурятии","Р","Изначального Человека Метагалактики","Изначального Человека Метагалактики","Синтез Человека Метагалактики ИВО",null,null,"Синтез Человека Метагалактики ИВО ИВДИВО","Синтеза Человека Метагалактики ИВО ИВДИВО","Эмиль           ","Эмиля",null,null,"Логос, Ипостась Изначально Вышестоящей Матери, Глава Дома Отца Метагалактики ИВО, Управления Синтеза Сераписа"]
[225,"Алтай","Алтая","Р","Изначального Человека Планеты","Изначального Человека Планеты","Синтез Человека Планеты ИВО",null,null,"Синтез Человека Планеты ИВО ИВДИВО","Синтеза Человека Планеты ИВО ИВДИВО","Дарий     ","Дария",null,null,"Логос, Ипостась Изначально Вышестоящей Матери, Глава Дома Отца ИВДИВО Неизречённого, Управления Синтеза Эдуарда"]
[224,"Югра","Югры","М","Изначальной Ипостаси ИВДИВО Основ ИВО","ИВДИВО Основ","Синтез ИВДИВО Основ",null,null,"Синтез ИВДИВО Основ","Синтеза ИВДИВО Основ","Валентин     ","Валентина",null,null,"Логос, Ипостась Изначально Вышестоящей Матери, Глава Дома Отца Предвечного ИВО, Управления Синтеза Фадея"]
[223,"Тамбов","Тамбова","Р","Изначальной Ипостаси Идей","Идей","Синтез Идеи ИВО",null,null,"Синтез Идеи ИВО ИВДИВО","Синтеза Идеи ИВО ИВДИВО","Савий          ","Савия",null,null,"Логос, Ипостась Изначально Вышестоящей Матери, Глава Дома Отца Всемогущего ИВО, Управления Синтеза Серафима"]
[222,"Чебоксары","Чебоксар","М","Изначальной Ипостаси Сути","Сути","Синтез Сути ИВО",null,null,"Синтез Сути ИВО ИВДИВО","Синтеза Сути ИВО ИВДИВО","Вячеслав    ","Вячеслава",null,null,"Логос, Ипостась Изначально Вышестоящей Матери, Глава Дома Отца Творца ИВО, Управления Синтеза Святослава"]
[221,"Ангарск","Ангарска","М","Изначальной Ипостаси Смыслов","Смыслов","Синтез Смысла ИВО",null,null,"Синтез Смысла ИВО ИВДИВО","Синтеза Смысла ИВО ИВДИВО","Андрей        ","Андрея",null,null,"Логос, Ипостась Изначально Вышестоящей Матери, Глава Дома Отца Теурга ИВО, Управления Синтеза Эоана"]
[220,"Волгодонск","Волгодонска","М","Изначальной Ипостаси Мыслей","Мыслей","Синтез Мысли ИВО",null,null,"Синтез Мысли ИВО ИВДИВО","Синтеза Мысли ИВО ИВДИВО","Давид          ","Давида",null,null,"Логос, Ипостась Изначально Вышестоящей Матери, Глава Дома Отца Ману ИВО, Управления Синтеза Сергея"]
[219,"Зеленогорск","Зеленогорска","М","Изначальной Ипостаси Чувств","Чувств","Синтез Чувства ИВО",null,null,"Синтез Чувства ИВО ИВДИВО","Синтеза Чувства ИВО ИВДИВО","Евгений     ","Евгения",null,null,"Логос, Ипостась Изначально Вышестоящей Матери, Глава Дома Отца Всевышнего ИВО, Управления Синтеза Сулеймана"]
[218,"Порубежье","Порубежья","Р","Изначальной Ипостаси Ощущений","Ощущений","Синтез Ощущения ИВО",null,null,"Синтез Ощущения ИВО ИВДИВО","Синтеза Ощущения ИВО ИВДИВО","Дмитрий     ","Дмитрия",null,null,"Логос, Ипостась Изначально Вышестоящей Матери, Глава Дома Отца Предначального ИВО, Управления Синтеза Себастьяна"]
[217,"Новороссийск","Новороссийска","М","Изначальной Ипостаси Движений","Движений","Синтез Движения ИВО",null,null,"Синтез Движения ИВО ИВДИВО","Синтеза Движения ИВО ИВДИВО","Есений        ","Есения",null,null,"Логос, Ипостась Изначально Вышестоящей Матери, Глава Дома Отца ИВДИВО ИВЧеловека Изначально Вышестоящего Отца, Управления Синтеза Теодора"]
[216,"Донецк","Донецка","Р","Изначальной Ипостаси ИВДИВО Огня","Огня","Синтез ИВДИВО Огня",null,null,"Синтез ИВДИВО Огня","Синтеза ИВДИВО Огня","Константин","Константина",null,null,"Логос, Ипостась Изначально Вышестоящей Матери, Глава Дома Отца Основности ИВО, Управления Синтеза Антея"]
[215,"Омск","Омска","Р","Изначальной Ипостаси Духа","Духа","Синтез Духа ИВО",null,null,"Синтез Духа ИВО ИВДИВО","Синтеза Духа ИВО ИВДИВО","Ростислав   ","Ростислава",null,null,"Логос, Ипостась Изначально Вышестоящей Матери, Глава Дома Отца Истинности ИВО, Управления Синтеза Наума"]
[214,"Астана","Астаны","Р","Изначальной Ипостаси Света","Света","Синтез Света ИВО",null,null,"Синтез Света ИВО ИВДИВО","Синтеза Света ИВО ИВДИВО","Ян                ","Яна",null,null,"Логос, Ипостась Изначально Вышестоящей Матери, Глава Дома Отца Окскости ИВО, Управления Синтеза Велемира"]
[213,"Киев","Киева","Р","Изначальной Ипостаси Энергии","Энергии","Синтез Энергии ИВО",null,null,"Синтез Энергии ИВО ИВДИВО","Синтеза Энергии ИВО ИВДИВО","Василий       ","Василия",null,null,"Логос, Ипостась Изначально Вышестоящей Матери, Глава Дома Отца Человека Изначальной Метагалактики ИВО, Управления Синтеза Георга"]
[212,"Минск","Минска","Р","Изначальной Ипостаси Субъядерности","Субъядерности","Синтез Субъядерности ИВО",null,null,"Синтез Субъядерности ИВО ИВДИВО","Синтеза Субъядерности ИВО ИВДИВО","Арсений      ","Арсения",null,null,"Логос, Ипостась Изначально Вышестоящей Матери, Глава Дома Отца Человека Изначальности ИВО, Управления Синтеза Алексея"]
[211,"Одесса","Одессы","Р","Изначальной Ипостаси Формы","Формы","Синтез Формы ИВО",null,null,"Синтез Формы ИВО ИВДИВО","Синтеза Формы ИВО ИВДИВО","Огюст          ","Огюста",null,null,"Логос, Ипостась Изначально Вышестоящей Матери, Глава Дома Отца Человека Метагалактики ИВО, Управления Синтеза Эмиля"]
[210,"Днепр","Днепр","Р","Изначальной Ипостаси Содержания","Содержания","Синтез Содержания ИВО",null,null,"Синтез Содержания ИВО ИВДИВО","Синтеза Содержания ИВО ИВДИВО","Илий           ","Илия"]
[209,"Германия","Германии","Р","Изначальной Ипостаси Поля","Поля","Синтез Поля ИВО",null,null,"Синтез Поля ИВО ИВДИВО","Синтеза Поля ИВО ИВДИВО","Геральд      ","Геральда",null,null,"Аспект, Ипостась Синтеза Человека Планеты ИВО, Управления Синтеза Дария, Посвящённый Ипостасного Синтеза ВШС"]
[208,"Азнакаево","Азнакаево","М","Изначальной Ипостаси ИВДИВО Изначальной Метагалактики","ИВДИВО Изначальной Метагалактики","Синтез ИВДИВО Изначальной Метагалактики",null,null,"Синтез ИВДИВО Изначальной Метагалактики","Синтеза ИВДИВО Изначальной Метагалактики","Платон        ","Платона",null,null,"Аспект, Ипостась Синтеза ИВДИВО Основ, Управления Синтеза Валентина, Посвящённый Профессионального Синтеза ВШС"]
[207," Харьков","Харькова","Р","Изначальной Ипостаси Свойств","Свойств","Синтез Свойства ИВО",null,null,"Синтез Свойства ИВО ИВДИВО","Синтеза Свойства ИВО ИВДИВО","Николай     ","Николая",null,null,"Аспект, Ипостась Синтеза Идеи ИВО, Управления Синтеза Савия, Посвящённый Синтеза Изначально Вышестоящего Отца ВШС"]
[206,"Витебск","Витебска","Р","Изначальной Ипостаси Качеств","Качеств","Синтез Качества ИВО",null,null,"Синтез Качества ИВО ИВДИВО","Синтеза Качества ИВО ИВДИВО","Игорь         ","Игоря",null,null,"Аспект, Ипостась Синтеза Сути ИВО, Управления Синтеза Вячеслава, Философский Секретарь ВШС"]
[205,"Херсон","Херсона","Р","Изначальной Ипостаси Функций","Функций","Синтез Функции ИВО",null,null,"Синтез Функции ИВО ИВДИВО","Синтеза Функции ИВО ИВДИВО","Яр                ","Яра",null,null,"Аспект, Ипостась Синтеза Смысла ИВО, Управления Синтеза Андрея, Член-Посвящённый Сиаматического Совета МАН "]
[204,"Невинномыск","Невинномысска","Р","Изначальной Ипостаси Процессов","Процессов","Синтез Процесса ИВО",null,null,"Синтез Процесса ИВО ИВДИВО","Синтеза Процесса ИВО ИВДИВО","Вадим          ","Вадима",null,null,"Аспект, Ипостась Синтеза Мысли ИВО, Управления Синтеза Давида, Член-Посвящённый Философского Совета МАН"]
[203,"Молдова","Молдовы","Р","Изначальной Ипостаси Активностей","Активностей","Синтез Активности ИВО",null,null,"Синтез Активности ИВО ИВДИВО","Синтеза Активности ИВО ИВДИВО","Огнеслав    ","Огнеслава",null,null,"Аспект, Ипостась Синтеза Чувства ИВО, Управления Синтеза Евгения, Член-Посвящённый Учёного Совета МАН"]
[202,"Запорожье","Запорожья","Р","Изначальной Ипостаси Заряженностей","Заряженностей","Синтез Заряженности ИВО",null,null,"Синтез Заряженности ИВО ИВДИВО","Синтеза Заряженности ИВО ИВДИВО","Марк           ","Марка",null,null,"Аспект, Ипостась Синтеза Ощущения ИВО, Управления Синтеза Дмитрия, Академический Секретарь МАН"]
[201,"Темиртау","Темиртау","Р","Изначальной Ипостаси Мощи","Мощи","Синтез Мощи ИВО",null,null,"Синтез Мощи ИВО ИВДИВО","Синтеза Мощи ИВО ИВДИВО","Теон             ","Теона",null,null,"Аспект, Ипостась Синтеза Движения ИВО, Управления Синтеза Есения, Посвящённый Статусного Синтеза"]
[200,"Могилёв","Могилёва","М","Изначальной Ипостаси ИВДИВО Метагалактики","ИВДИВО Метагалактики","Синтез ИВДИВО Метагалактики",null,null,"Синтез ИВДИВО Метагалактики","Синтеза ИВДИВО Метагалактики","Трофим   ","Трофима",null,null,"Аспект, Ипостась Синтеза ИВДИВО Огня, Управления Синтеза Константина, Посвящённый Синтез-Генезиса"]
[199,"Алматы","Алматы","Р","Изначальной Ипостаси Планеты","Планеты","Синтез Планеты ИВО",null,null,"Синтез Планеты ИВО ИВДИВО","Синтеза Планеты ИВО ИВДИВО","Емельян     ","Емельяна",null,null,"Аспект, Ипостась Синтеза Духа ИВО, Управления Синтеза Ростислава, Посвящённый Синтез - Стяжаний"]
[198,"Энергодар","Энергодара","М","Изначальной Ипостаси Буддичности Человека","Буддичности Человека","Синтез Буддичности Человека ИВО",null,null,"Синтез Буддичности Человека ИВО ИВДИВО","Синтеза Буддичности Человека ИВО ИВДИВО","Ефрем       ","Ефрема",null,null,"Аспект, Ипостась Синтеза Света ИВО, Управления Синтеза Яна, Праздничный Секретарь ДСС"]
[197,"Черкассы","Черкассы","Р","Изначальной Ипостаси Всеединства Супергалактики","Всеединства Супергалактики","Синтез Всеединства Супергалактики ИВО",null,null,"Синтез Всеединства Супергалактики ИВО ИВДИВО","Синтеза Всеединства Супергалактики ИВО ИВДИВО","Натан          ","Натана",null,null,"Аспект, Ипостась Синтеза Энергии ИВО, Управления Синтеза Василия, Посвящённый Синтеза Посвящений"]
[196,"Канск","Канска","М","Изначальной Ипостаси Единства Галактики","Единства Галактики","Синтез Единства Галактики ИВО",null,null,"Синтез Единства Галактики ИВО ИВДИВО","Синтеза Единства Галактики ИВО ИВДИВО","Артём          ","Артёма",null,null,"Аспект, Ипостась Синтеза Субъядерности ИВО, Управления Синтеза Арсения, Посвящённый Синтез-Практик"]
[195,"Уральск","Уральска","М","Изначальной Ипостаси Универсума Солнца","Универсума Солнца","Синтез Универсума Солнца ИВО",null,null,"Синтез Универсума Солнца ИВО ИВДИВО","Синтеза Универсума Солнца ИВО ИВДИВО","Игнатий      ","Игнатия",null,null,"Аспект, Ипостась Синтеза Формы ИВО, Управления Синтеза Огюста, Посвящённый Синтез - Инструментов"]
[194,"Причерноморье","Причерноморья","М","Изначальной Ипостаси Звёздной Вселенной","Звёздной Вселенной","Синтез Звёздной Вселенной ИВО",null,null,"Синтез Звёздной Вселенной ИВО ИВДИВО","Синтеза Звёздной Вселенной ИВО ИВДИВО","Юлиан        ","Юлиана",null,null,"Аспект, Ипостась Синтеза Содержания ИВО, Управления Синтеза Илия, Энергопотенциальный Секретарь ДП"]
[193,"Полесье","Полесья","М","Изначальной Ипостаси Физичности","Физичности","Синтез Физичности ИВО",null,null,"Синтез Физичности ИВО ИВДИВО","Синтеза Физичности ИВО ИВДИВО","Аркадий     ","Аркадия",null,null,{"$f":"\"Аспект, Ипостась Синтеза Поля ИВО, Управления Синтеза Геральда, Член-Посвящённый \"&Р_М_Совета&\" Совета МГК\"","v":"Аспект, Ипостась Синтеза Поля ИВО, Управления Синтеза Геральда, Член-Посвящённый Регионального Совета МГК"}]
[192,"США","США","Р","Изначальной Ипостаси ИВДИВО Отца","ИВДИВО Отца","Синтез ИВДИВО Отца",null,null,"Синтез ИВДИВО Отца","Синтеза ИВДИВО Отца","Никита","Никиты",null,null,{"$f":"\"Аспект, Ипостась Синтеза ИВДИВО Изначальной Метагалактики, Управления Синтеза Платона, Член-Посвящённый  \"&Р_М_Совета&\" Совета МГК\"","v":"Аспект, Ипостась Синтеза ИВДИВО Изначальной Метагалактики, Управления Синтеза Платона, Член-Посвящённый  Регионального Совета МГК"}]
[191,"Елабуга","Елабуги","М","Изначальной Ипостаси Матери","Матери","Синтез Матери ИВО",null,null,"Синтез Матери ИВО ИВДИВО","Синтеза Матери ИВО ИВДИВО","Олег","Олега",null,null,{"$f":"\"Аспект, Ипостась Синтеза Свойства ИВО, Управления Синтеза Николая,  \"&Р_М_Совет&\"  Ревизор-Посвящённый МГК\"","v":"Аспект, Ипостась Синтеза Свойства ИВО, Управления Синтеза Николая,  Региональный  Ревизор-Посвящённый МГК"}]
[190,"Вишнёвое","Вишнёвого","М","Изначальной Ипостаси Сына","Сына","Синтез Сына ИВО",null,null,"Синтез Сына ИВО ИВДИВО","Синтеза Сына ИВО ИВДИВО","Владимир","Владимира",null,null,{"$f":"\"Аспект, Ипостась Синтеза Качества ИВО, Управления Синтеза Игоря, \"&Р_М_Совет&\" Секретарь МГК\"","v":"Аспект, Ипостась Синтеза Качества ИВО, Управления Синтеза Игоря, Региональный Секретарь МГК"}]
[189,"Белая Церковь","Белой Церкви","М","Изначальной Ипостаси Дочери","Дочери","Синтез Дочери ИВО",null,null,"Синтез Дочери ИВО ИВДИВО","Синтеза Дочери ИВО ИВДИВО","Стефан","Стефана",null,null,"Аспект, Ипостась Синтеза Функции ИВО, Управления Синтеза Яра, Посвящённый Синтеза Частей"]
[188,"Ялта","Ялты","М","Изначальной Ипостаси Аватара","Аватара","Синтез Аватара ИВО",null,null,"Синтез Аватара ИВО ИВДИВО","Синтеза Аватара ИВО ИВДИВО","Горислав","Горислава",null,null,"Аспект, Ипостась Синтеза Процесса ИВО, Управления Синтеза Вадима, Посвящённый Пламени Изначальных Владык"]
[187,"Адыгея","Адыгеи","Р","Изначальной Ипостаси Майтрейи","Майтрейи","Синтез Майтрейи ИВО",null,null,"Синтез Майтрейи ИВО ИВДИВО","Синтеза Майтрейи ИВО ИВДИВО","Никон","Никона",null,null,"Аспект, Ипостась Синтеза Активности ИВО, Управления Синтеза Огнеслава, Посвященный Синтез-Метагалактичности"]
[186,"Караганда","Караганды","Р","Изначальной Ипостаси Христа","Христа","Синтез Христа ИВО",null,null,"Синтез Христа ИВО ИВДИВО","Синтеза Христа ИВО ИВДИВО","Эрик","Эрика",null,null,"Аспект, Ипостась Синтеза Заряженности ИВО, Управления Синтеза Марка, Офис-секретарь ИЦИС"]
[185,"Североуральск","Североуральска","М","Изначальной Ипостаси Будды","Будды","Синтез Будды ИВО",null,null,"Синтез Будды ИВО ИВДИВО","Синтеза Будды ИВО ИВДИВО","Олаф","Олафа",null,null,"Аспект, Ипостась Синтеза Мощи ИВО, Управления Синтеза Теона, Посвящённый Синтеза Сайта"]
[184,"Чувашия","Чувашии","Р","Изначальной Ипостаси ИВДИВО Владыки","ИВДИВО Владыки","Синтез ИВДИВО Владыки",null,null,"Синтез ИВДИВО Владыки","Синтеза ИВДИВО Владыки","Вацлав","Вацлава",null,null,"Аспект, Ипостась Синтеза ИВДИВО Метагалактики, Управления Синтеза Трофима, Посвящённый Синтез - Мышления"]
[183,"Житомир","Житомира","М","Изначальной Ипостаси Учителя","Учителя","Синтез Учителя ИВО",null,null,"Синтез Учителя ИВО ИВДИВО","Синтеза Учителя ИВО ИВДИВО","Левий","Левия",null,null,"Аспект, Ипостась Синтеза Планеты ИВО, Управления Синтеза Емельяна, Посвящённый Инфопроектов "]
[182,"Шымкент","Шымкента","М","Изначальной Ипостаси Логоса","Логоса","Синтез Логоса ИВО",null,null,"Синтез Логоса ИВО ИВДИВО","Синтеза Логоса ИВО ИВДИВО","Руслан","Руслана",null,null,"Аспект, Ипостась Синтеза Буддичности Человека ИВО, Управления Синтеза Ефрема, Пресс-секретарь МАИ"]
[181,"Европа","Европы","Р","Изначальной Ипостаси Аспекта","Аспекта","Синтез Аспекта ИВО",null,null,"Синтез Аспекта ИВО ИВДИВО","Синтеза Аспекта ИВО ИВДИВО","Генрих","Генриха",null,null,"Аспект, Ипостась Синтеза Всеединой Супергалактики ИВО, Управления Синтеза Натана, Посвящённый Дома Отца ИВДИВО Полномочного"]
[180,"Италия","Италии","Р","Изначальной Ипостаси Ипостаси","Ипостаси","Синтез Ипостаси ИВО",null,null,"Синтез Ипостаси ИВО ИВДИВО","Синтеза Ипостаси ИВО ИВДИВО","Владлен","Владлена",null,null,"Аспект, Ипостась Синтеза Единой Галактики ИВО, Управления Синтеза Артёма, Посвящённый Дома Отца ИВДИВО Полномочного"]
[179,"Усолье-Сибирское","Усолья-Сибирского","М","Изначальной Ипостаси Служащего","Служащего","Синтез Служащего ИВО",null,null,"Синтез Служащего ИВО ИВДИВО","Синтеза Служащего ИВО ИВДИВО","Борислав","Борислава",null,null,"Аспект, Ипостась Синтеза Универсума Солнца ИВО, Управления Синтеза Игнатия, Посвящённый Дома Отца ИВДИВО Полномочного"]
[178,"Петропавловск","Петропавловска","Р","Изначальной Ипостаси Посвящённого","Посвящённого","Синтез Посвящённого ИВО",null,null,"Синтез Посвящённого ИВО ИВДИВО","Синтеза Посвящённого ИВО ИВДИВО","Нестор","Нестора",null,null,"Аспект, Ипостась Синтеза Звёздной Вселенной ИВО, Управления Синтеза Юлиана, Посвящённый Дома Отца Статуса ИВО "]
[177,"Приднепровье","Приднепровья","Р","Изначальной Ипостаси Праведника","Праведника","Синтез Праведника ИВО",null,null,"Синтез Праведника ИВО ИВДИВО","Синтеза Праведника ИВО ИВДИВО","Аристарх","Аристарха",null,null,"Аспект, Ипостась Синтеза Физичности ИВО, Управления Синтеза Аркадия, Посвящённый Дома Отца Статуса ИВО "]
[176,"Стерлитамак","Стерлитамака","М","Изначальной Ипостаси ИВДИВО Неизречённого","ИВДИВО Неизречённого","Синтез ИВДИВО Неизречённого",null,null,"Синтез ИВДИВО Неизречённого","Синтеза ИВДИВО Неизречённого","Альфред","Альфреда",null,null,"Аспект, Ипостась Синтеза ИВДИВО Отца, Управления Синтеза Никиты, Посвящённый Дома Отца Статуса ИВО "]
[175,"Измаил","Измаила","М","Изначальной Ипостаси Предвечного","Предвечного","Синтез Предвечного ИВО",null,null,"Синтез Предвечного ИВО ИВДИВО","Синтеза Предвечного ИВО ИВДИВО","Егор","Егора",null,null,"Аспект, Ипостась Синтеза Матери ИВО, Управления Синтеза Олега, Посвящённый Дома Отца Посвящения ИВО"]
[174,"Актау","Актау","М","Изначальной Ипостаси Всемогущего","Всемогущего","Синтез Всемогущего ИВО",null,null,"Синтез Всемогущего ИВО ИВДИВО","Синтеза Всемогущего ИВО ИВДИВО","Витольд","Витольда",null,null,"Аспект, Ипостась Синтеза Сына ИВО, Управления Синтеза Владимира, Посвящённый Дома Отца Посвящения ИВО"]
[173,null,null,null,"Изначальной Ипостаси Творца","Творца","Синтез Творца ИВДИВО",null,null,null,null,"Стократ","Стократа",null,null,"Аспект, Ипостась Синтеза Дочери ИВО, Управления Синтеза Стефана, Посвящённый Дома Отца Посвящения ИВО"]
[172,null,null,null,"Изначальной Ипостаси Теурга","Теурга","Синтез Теурга ИВДИВО",null,null,null,null,"Глеб","Глеба",null,null,"Аспект, Ипостась Синтеза Аватара ИВО, Управления Синтеза Горислава, Посвящённый Дома Отца Технологии ИВО "]
[171,null,null,null,"Изначальной Ипостаси Ману","Ману","Синтез Ману ИВДИВО",null,null,null,null,"Клавдий","Клавдия",null,null,"Аспект, Ипостась Синтеза Майтрейи ИВО, Управления Синтеза Никона, Посвящённый Дома Отца Технологии ИВО "]
[170,null,null,null,"Изначальной Ипостаси Всевышнего","Всевышнего","Синтез Всевышнего ИВДИВО",null,null,null,null,"Теонис","Теониса",null,null,"Аспект, Ипостась Синтеза Христа ИВО, Управления Синтеза Эрика, Посвящённый Дома Отца Технологии ИВО "]
[169,null,null,null,"Изначальной Ипостаси Предначального","Предначального","Синтез Предначального ИВДИВО",null,null,null,null,"Донан","Донана",null,null,"Аспект, Ипостась Синтеза Будды ИВО, Управления Синтеза Олафа, Посвящённый Дома Отца Изначальности ИВО"]
[168,null,null,null,"Изначальной Ипостаси ИВДИВО Человека","ИВДИВО Человека","Синтез ИВДИВО Человека ИВО ",null,null,null,null,"Альберт","Альберта",null,null,"Аспект, Ипостась Синтеза ИВДИВО Владыки, Управления Синтеза Вацлава, Посвящённый Дома Отца Изначальности ИВО"]
[167,null,null,null,"Изначальной Ипостаси Основного Тело","Основного Тело","Синтез Основного Тела ИВДИВО",null,null,null,null,"Степан","Степана",null,null,"Аспект, Ипостась Синтеза Учителя ИВО, Управления Синтеза Левия, Посвящённый Дома Отца Изначальности ИВО"]
[166,null,null,null,"Изначальной Ипостаси Истины","Истины","Синтез Истины ИВДИВО",null,null,null,null,"Арсан","Арсана",null,null,"Аспект, Ипостась Синтеза Логоса ИВО, Управления Синтеза Руслана, Посвящённый Дома Отца Присутствия ИВО"]
[165,null,null,null,"Изначальной Ипостаси Ока","Ока","Синтез Ока ИВДИВО",null,null,null,null,"Остап","Остапа",null,null,"Аспект, Ипостась Синтеза Аспекта ИВО, Управления Синтеза Генриха, Посвящённый Дома Отца Присутствия ИВО"]
[164,null,null,null,"Изначальной Ипостаси Хум","Хум","Синтез Хум ИВДИВО",null,null,null,null,"Роман","Романа",null,null,"Аспект, Ипостась Синтеза Ипостаси ИВО, Управления Синтеза Владлена, Посвящённый Дома Отца Присутствия ИВО"]
[163,null,null,null,"Изначальной Ипостаси Абсолюта","Абсолюта","Синтез Абсолюта ИВДИВО",null,null,null,null,"Клим","Клима",null,null,"Аспект, Ипостась Синтеза Служащего ИВО, Управления Синтеза Борислава, Посвящённый Дома Отца Мира ИВО"]
[162,null,null,null,"Изначальной Ипостаси Омеги","Омеги","Синтез Омеги ИВДИВО",null,null,null,null,"Пётр","Петра",null,null,"Аспект, Ипостась Синтеза Посвящённого ИВО, Управления Синтеза Нестора, Посвящённый Дома Отца Мира ИВО"]
[161,null,null,null,"Изначальной Ипостаси Монады","Монады","Синтез Монады ИВДИВО",null,null,null,null,"Макей","Макея",null,null,"Аспект, Ипостась Синтеза Праведника ИВО, Управления Синтеза Аристарха, Посвящённый Дома Отца Мира ИВО"]
[160,null,null,null,"Изначальной Ипостаси ИВДИВО Человека Изн.Мг","ИВДИВО Человека Изн-ной Мг","Синтез ИВДИВО Человека Изначальной Мг ",null,null,null,null,"Анис","Аниса",null,null,"Аспект, Ипостась Синтеза ИВДИВО Неизречённого, Управления Синтеза Альфреда, Посвящённый Дома Отца Метагалактики ИВО"]
[159,null,null,null,"Изначальной Ипостаси Физического Тела","Физического Тела","Синтез Физического Тела ИВДИВО",null,null,null,null,"Ар","Ара",null,null,"Аспект, Ипостась Синтеза Предвечного ИВО, Управления Синтеза Егора, Посвящённый Дома Отца Метагалактики ИВО"]
[158,null,null,null,"Изначальной Ипостаси Разума","Разума","Синтез Разума ИВДИВО",null,null,null,null,"Дорадий","Дорадия",null,null,"Аспект, Ипостась Синтеза Всемогущего ИВО, Управления Синтеза Витольда, Посвящённый Дома Отца Метагалактики ИВО"]
[157,null,null,null,"Изначальной Ипостаси Сердца","Сердца","Синтез Сердца ИВДИВО",null,null,null,null,"Дор","Дор",null,null,"Аспект, Ипостась Синтеза Творца ИВО, Управления Синтеза Стократа, Посвящённый Дома Отца ИВДИВО Неизречённого"]
[156,null,null,null,"Изначальной Ипостаси Мышления","Мышления","Синтез Мышления ИВДИВО",null,null,null,null,"Понтелей","Понтелея",null,null,"Аспект, Ипостась Синтеза Теурга ИВО, Управления Синтеза Глеба, Посвящённый Дома Отца ИВДИВО Неизречённого"]
[155,null,null,null,"Изначальной Ипостаси Головерсума","Головерсума","Синтез Головерсума ИВДИВО",null,null,null,null,"Явир","Явира",null,null,"Аспект, Ипостась Синтеза Ману ИВО, Управления Синтеза Клавдия, Посвящённый Дома Отца ИВДИВО Неизречённого"]
[154,null,null,null,"Изначальной Ипостаси Восприятия","Восприятия","Синтез Восприятия ИВДИВО",null,null,null,null,"Трис","Триса",null,null,"Аспект, Ипостась Синтеза Всевышнего ИВО, Управления Синтеза Теониса, Посвящённый Дома Отца Предвечного ИВО"]
[153,null,null,null,"Изначальной Ипостаси Вечности Отца","Вечности Отца","Синтез Вечности Отца ИВДИВО",null,null,null,null,"Виктор","Виктора",null,null,"Аспект, Ипостась Синтеза Предначального ИВО, Управления Синтеза Донана, Посвящённый Дома Отца Предвечного ИВО"]
[152,null,null,null,"Изначальной Ипостаси ИВДИВО Человека Изн-ти","ИВДИВО Человека Изн-ти","Синтез ИВДИВО Человека Изначальности ",null,null,null,null,"Визар","Визара",null,null,"Аспект, Ипостась Синтеза ИВДИВО Человека ИВО, Управления Синтеза Альберта, Посвящённый Дома Отца Предвечного ИВО"]
[151,null,null,null,"Изначальной Ипостаси Синтезтела","Синтезтела","Синтез Синтезтела ИВДИВО",null,null,null,null,"Ерёма","Ерёмы",null,null,"Аспект, Ипостась Синтеза Основного Тела ИВО, Управления Синтеза Степана, Посвящённый Дома Отца Всемогущего ИВО"]
[150,null,null,null,"Изначальной Ипостаси Сообразительности","Сообразительности","Синтез Сообразительности ИВДИВО",null,null,null,null,"Ираклий","Ираклия",null,null,"Аспект, Ипостась Синтеза Истины ИВО, Управления Синтеза Арсана, Посвящённый Дома Отца Всемогущего ИВО"]
[149,null,null,null,"Изначальной Ипостаси Осмысленности","Осмысленности","Синтез Осмысленности ИВДИВО",null,null,null,null,"Елизар","Елизара",null,null,"Аспект, Ипостась Синтеза Ока ИВО, Управления Синтеза Остапа, Посвящённый Дома Отца Всемогущего ИВО"]
[148,null,null,null,"Изначальной Ипостаси Ума","Ума","Синтез Ума ИВДИВО",null,null,null,null,"Градимир","Градимира",null,null,"Аспект, Ипостась Синтеза Хум ИВО, Управления Синтеза Романа, Посвящённый Дома Отца Творца ИВО"]
[147,null,null,null,"Изначальной Ипостаси Провидения","Провидения","Синтез Провидения ИВДИВО",null,null,null,null,"Рустам","Рустама",null,null,"Аспект, Ипостась Синтеза Абсолют ИВО, Управления Синтеза Клима, Посвящённый Дома Отца Творца ИВО"]
[146,null,null,null,"Изначальной Ипостаси Огненной Нити","Огненной Нити","Синтез Огненной Нити ИВДИВО",null,null,null,null,"Октан","Октана",null,null,"Аспект, Ипостась Синтеза Омеги ИВО, Управления Синтеза Петра, Посвящённый Дома Отца Творца ИВО"]
[145,null,null,null,"Изначальной Ипостаси Пламени Отца","Пламени Отца","Синтез Пламени Отца ИВДИВО",null,null,null,null,"Силуан","Силуана",null,null,"Аспект, Ипостась Синтеза Монады ИВО, Управления Синтеза Макея, Посвящённый Дома Отца Теурга ИВО"]
[144,null,null,null,"Изначальной Ипостаси ИВДИВО Человека Мг","ИВДИВО Человека Мг","Синтез ИВДИВОЧеловека Мг ",null,null,null,null,"Лукьян","Лукьяна",null,null,"Аспект, Ипостась Синтеза ИВДИВО Человека Изначальной Метагалактики, Управления Синтеза Аниса, Посвящённый Дома Отца Теурга ИВО"]
[143,null,null,null,"Изначальной Ипостаси Трансвизора","Трансвизора","Синтез Трансвизора ИВДИВО",null,null,null,null,"Люсьен","Люсьена",null,null,"Аспект, Ипостась Синтеза Физического Тела ИВО, Управления Синтеза Ара, Посвящённый Дома Отца Теурга ИВО"]
[142,null,null,null,"Изначальной Ипостаси Интеллекта","Интеллекта","Синтез Интеллекта ИВДИВО",null,null,null,null,"Андриан","Андриана",null,null,"Аспект, Ипостась Синтеза Разума ИВО, Управления Синтеза Дорадия, Посвящённый Дома Отца Ману ИВО"]
[141,null,null,null,"Изначальной Ипостаси Престола","Престола","Синтез Престола ИВДИВО",null,null,null,null,"Прокофий","Прокофия",null,null,"Аспект, Ипостась Синтеза Сердца ИВО, Управления Синтеза Дора, Посвящённый Дома Отца Ману ИВО"]
[140,null,null,null,"Изначальной Ипостаси Веры","Веры","Синтез Веры ИВДИВО",null,null,null,null,"Зарк","Зарка",null,null,"Аспект, Ипостась Синтеза Мышления ИВО, Управления Синтеза Понтелея, Посвящённый Дома Отца Ману ИВО"]
[139,null,null,null,"Изначальной Ипостаси Чувствознания","Чувствознания","Синтез Чувствознания ИВДИВО",null,null,null,null,"Станис","Станиса",null,null,"Аспект, Ипостась Синтеза Головерсума ИВО, Управления Синтеза Явира, Посвящённый Дома Отца Всевышнего ИВО"]
[138,null,null,null,"Изначальной Ипостаси Потенциала","Потенциала","Синтез Потенциала ИВДИВО",null,null,null,null,"Панкрат","Панкрата",null,null,"Аспект, Ипостась Синтеза Восприятия ИВО, Управления Синтеза Триса, Посвящённый Дома Отца Всевышнего ИВО"]
[137,null,null,null,"Изначальной Ипостаси Мощи Отца","Мощи Отца","Синтез Мощи Отца ИВДИВО",null,null,null,null,"Старк","Старка",null,null,"Аспект, Ипостась Синтеза Вечности Отца ИВО, Управления Синтеза Виктора, Посвящённый Дома Отца Всевышнего ИВО"]
[136,null,null,null,"Изначальной Ипостаси ИВДИВО Человеа Планеты","ИВДИВО Человеа Планеты","Синтез ИВДИВО Человека Планеты ",null,null,null,null,"Дорофей","Дорофея",null,null,"Аспект, Ипостась Синтеза ИВДИВО Человека Изначальности, Управления Синтеза Визара, Посвящённый Дома Отца Предначального ИВО"]
[135,null,null,null,"Изначальной Ипостаси Столпа","Столпа","Синтез Столпа ИВДИВО",null,null,null,null,"Яков","Якова",null,null,"Аспект, Ипостась Синтеза Синтезтела ИВО, Управления Синтеза Ерёмы, Посвящённый Дома Отца Предначального ИВО"]
[134,null,null,null,"Изначальной Ипостаси Сознания","Сознания","Синтез Сознания ИВДИВО",null,null,null,null,"Ульян","Ульяна",null,null,"Аспект, Ипостась Синтеза Сообразительности ИВО, Управления Синтеза Ираклия, Посвящённый Дома Отца Предначального ИВО"]
[133,null,null,null,"Изначальной Ипостаси Грааля","Грааля","Синтез Грааля ИВДИВО",null,null,null,null,"Герман","Германа",null,null,"Аспект, Ипостась Синтеза Осмысленности ИВО, Управления Синтеза Елизара, Посвящённый Дома Отца ИВДИВО ИВ Человека ИВО "]
[132,null,null,null,"Изначальной Ипостаси Синтезобраза","Синтезобраза","Синтез Синтезобраза ИВДИВО",null,null,null,null,"Радомир","Радомира",null,null,"Аспект, Ипостась Синтеза Ума ИВО, Управления Синтеза Градимира, Посвящённый Дома Отца ИВДИВО ИВ Человека ИВО"]
[131,null,null,null,"Изначальной Ипостаси Души","Души","Синтез Души ИВДИВО",null,null,null,null,"Октавий","Октавия",null,null,"Аспект, Ипостась Синтеза Провидения ИВО, Управления Синтеза Рустама, Посвящённый Дома Отца ИВДИВО ИВ Человека ИВО"]
[130,null,null,null,"Изначальной Ипостаси Слова Отца","Слова Отца","Синтез Слова Отца ИВДИВО",null,null,null,null,"Ким","Кима",null,null,"Аспект, Ипостась Синтеза Огненной Нити ИВО, Управления Синтеза Октана, Посвящённый Дома Отца Основности ИВО"]
[129,null,null,null,"Изначальной Ипостаси Образа Отца","Образа Отца","Синтез Образа Отца ИВДИВО",null,null,null,null,"Бонифаций","Бонифация",null,null,"Аспект, Ипостась Синтеза Пламени Отца ИВО, Управления Синтеза Силуана, Посвящённый Дома Отца Основности ИВО"]
[null,null,null,null,null,null,null,null,null,null,null,"Фаинь","Фаинь",null,null,"Аспект, Ипостась Синтеза ИВДИВО Человека Метагалактики, Управления Синтеза Лукьяна, Посвящённый Дома Отца Основности ИВО"]
[null,null,null,null,null,null,null,null,null,null,null,"Славия","Славии",null,null,"Аспект, Ипостась Синтеза Трансвизора ИВО, Управления Синтеза Люсьена, Посвящённый Дома Отца Истинности ИВО"]
[null,null,null,null,null,null,null,null,null,null,null,"Свет","Свет",null,null,"Аспект, Ипостась Синтеза Интеллекта ИВО, Управления Синтеза Андриана, Посвящённый Дома Отца Истинности ИВО"]
[null,null,null,null,null,null,null,null,null,null,null,"Марина","Марины",null,null,"Аспект, Ипостась Синтеза Престола ИВО, Управления Синтеза Прокофия, Посвящённый Дома Отца Истинности ИВО"]
[null,null,null,null,null,null,null,null,null,null,null,"Альбина","Альбины",null,null,"Аспект, Ипостась Синтеза Веры ИВО, Управления Синтеза Зарка, Посвящённый Дома Отца Окскости ИВО"]
[null,null,null,null,null,null,null,null,null,null,null,"Вероника","Вероники",null,null,"Аспект, Ипостась Синтеза Чувствознания ИВО, Управления Синтеза Станиса, Посвящённый Дома Отца Окскости ИВО"]
[null,null,null,null,null,null,null,null,null,null,null,"Сиана","Сианы",null,null,"Аспект, Ипостась Синтеза Потенциала ИВО, Управления Синтеза Панкрата, Посвящённый Дома Отца Окскости ИВО"]
[null,null,null,null,null,null,null,null,null,null,null,"Она","Оны",null,null,"Аспект, Ипостась Синтеза Мощи Отца ИВО, Управления Синтеза Старка, Посвящённый Дома Отца Человека Изначальной Метагалактики ИВО"]
[null,null,null,null,null,null,null,null,null,null,null,"Стефания","Стефании",null,null,"Аспект, Ипостась Синтеза ИВДИВО Человека Планеты, Управления Синтеза Дорофея, Посвящённый Дома Отца Человека Изначальной Мг ИВО"]
[null,null,null,null,null,null,null,null,null,null,null,"Свята","Святы",null,null,"Аспект, Ипостась Синтеза Столпа ИВО, Управления Синтеза Якова, Посвящённый Дома Отца Человека Изначальной Метагалактики ИВО"]
[null,null,null,null,null,null,null,null,null,null,null,"Баяна","Баяны",null,null,"Аспект, Ипостась Синтеза Сознания ИВО, Управления Синтеза Ульяна, Посвящённый Дома Отца Человека Изначальности ИВО"]
[null,null,null,null,null,null,null,null,null,null,null,"Екатерина","Екатерины",null,null,"Аспект, Ипостась Синтеза Грааля ИВО, Управления Синтеза Германа, Посвящённый Дома Отца Человека Изначальности ИВО"]
[null,null,null,null,null,null,null,null,null,null,null,"Сивилла","Сивиллы",null,null,"Аспект, Ипостась Синтеза Синтезобраза ИВО, Управления Синтеза Радомира, Посвящённый Дома Отца Человека Изначальности ИВО"]
[null,null,null,null,null,null,null,null,null,null,null,"Тамила","Тамилы",null,null,"Аспект, Ипостась Синтеза Души ИВО, Управления Синтеза Октавия, Посвящённый Дома Отца Человека Метагалактики ИВО"]
[null,null,null,null,null,null,null,null,null,null,null,"Ника","Ники",null,null,"Аспект, Ипостась Синтеза Слова Отца ИВО, Управления Синтеза Кима, Посвящённый Дома Отца Человека Метагалактики ИВО"]
[null,null,null,null,null,null,null,null,null,null,null,"Велетте","Велетте",null,null,"Аспект, Ипостась Синтеза Образа Отца ИВО, Управления Синтеза Бонифация, Посвящённый Дома Отца Человека Метагалактики ИВО"]
[null,null,null,null,null,null,null,null,null,null,null,"Эмилия","Эмилии"]
[null,null,null,null,null,null,null,null,null,null,null,"Елена","Елены",null,null,"Ипостась Синтезтела Изначального Отца Изначально Вышестоящего Отца 383мерного, Управления Синтеза Фаинь"]
[null,null,null,null,null,null,null,null,null,null,null,"Валерия","Валерии",null,null,"Ипостась Синтезтела Изначальной Матери Изначально Вышестоящего Отца 382мерного, Управления Синтеза Славии"]
[null,null,null,null,null,null,null,null,null,null,null,"Олеся","Олеси",null,null,"Ипостась Синтезтела Изначального Сына Изначально Вышестоящего Отца 381мерного, Управления Синтеза Свет"]
[null,null,null,null,null,null,null,null,null,null,null,"Антуанэтта","Антуанэтты",null,null,"Ипостась Синтезтела Изначальной Дочери Изначально Вышестоящего Отца 380мерного, Управления Синтеза Марины"]
[null,null,null,null,null,null,null,null,null,null,null,"Юлиана","Юлианы",null,null,"Ипостась Синтезтела Изначального Аватара Изначально Вышестоящего Отца 379мерного, Управления Синтеза Альбины"]
[null,null,null,null,null,null,null,null,null,null,null,"Синтия","Синтии",null,null,"Ипостась Синтезтела Изначального Майтрейи Изначально Вышестоящего Отца 378мерного, Управления Синтеза Вероники"]
[null,null,null,null,null,null,null,null,null,null,null,"Виктория","Виктории",null,null,"Ипостась Синтезтела Изначального Христа Изначально Вышестоящего Отца 377мерного, Управления Синтеза Сианы"]
[null,null,null,null,null,null,null,null,null,null,null,"Дарида","Дариды",null,null,"Ипостась Синтезтела Изначального Будды Изначально Вышестоящего Отца 376мерного, Управления Синтеза Оны"]
[null,null,null,null,null,null,null,null,null,null,null,"Алина","Алины",null,null,"Ипостась Синтезтела Изначального Владыки Изначально Вышестоящего Отца 375мерного, Управления Синтеза Стефании"]
[null,null,null,null,null,null,null,null,null,null,null,"Софья","Софьи",null,null,"Ипостась Синтезтела Изначального Учителя Изначально Вышестоящего Отца 374мерного, Управления Синтеза Святы"]
[null,null,null,null,null,null,null,null,null,null,null,"Агафья","Агафьи",null,null,"Ипостась Синтезтела Изначального Логоса Изначально Вышестоящего Отца 373мерного, Управления Синтеза Баяны"]
[null,null,null,null,null,null,null,null,null,null,null,"Дарья","Дарьи",null,null,"Ипостась Синтезтела Изначального Аспекта Изначально Вышестоящего Отца 372мерного, Управления Синтеза Екатерины"]
[null,null,null,null,null,null,null,null,null,null,null,"Илана","Иланы",null,null,"Ипостась Синтезтела Изначальной Ипостаси Изначально Вышестоящего Отца 371мерного, Управления Синтеза Сивиллы"]
[null,null,null,null,null,null,null,null,null,null,null,"Яна","Яны",null,null,"Ипостась Синтезтела Изначального Служащего Изначально Вышестоящего Отца 370мерного, Управления Синтеза Тамилы"]
[null,null,null,null,null,null,null,null,null,null,null,"Давлата","Давлаты",null,null,"Ипостась Синтезтела Изначального Посвящённого Изначально Вышестоящего Отца 369мерного, Управления Синтеза Ники"]
[null,null,null,null,null,null,null,null,null,null,null,"Ирина","Ирины",null,null,"Ипостась Синтезтела Изначального Праведника Изначально Вышестоящего Отца 368мерного, Управления Синтеза Велетте"]
[null,null,null,null,null,null,null,null,null,null,null,"Лина","Лины",null,null,"Ипостась Синтезтела Изначального Неизречённого Изначально Вышестоящего Отца 367мерного, Управления Синтеза Эмилии"]
[null,null,null,null,null,null,null,null,null,null,null,"Анастасия","Анастасии",null,null,"Ипостась Синтезтела Изначального Предвечного Изначально Вышестоящего Отца 366мерного, Управления Синтеза Елены"]
[null,null,null,null,null,null,null,null,null,null,null,"Ома","Омы",null,null,"Ипостась Синтезтела Изначального Всемогущего Изначально Вышестоящего Отца 365мерного, Управления Синтеза Валерии"]
[null,null,null,null,null,null,null,null,null,null,null,"Сольвейг","Сольвейг",null,null,"Ипостась Синтезтела Изначального Творца Изначально Вышестоящего Отца 364мерного, Управления Синтеза Олеси"]
[null,null,null,null,null,null,null,null,null,null,null,"Октавия","Октавии",null,null,"Ипостась Синтезтела Изначального Теурга Изначально Вышестоящего Отца 363мерного, Управления Синтеза Антуанетты"]
[null,null,null,null,null,null,null,null,null,null,null,"Кристина","Кристины",null,null,"Ипостась Синтезтела Изначального Ману Изначально Вышестоящего Отца 362мерного, Управления Синтеза Юлианы"]
[null,null,null,null,null,null,null,null,null,null,null,"Версавия","Версавии",null,null,"Ипостась Синтезтела Изначального Всевышнего Изначально Вышестоящего Отца 361мерного, Управления Синтеза Синтии"]
[null,null,null,null,null,null,null,null,null,null,null,"Ксения","Ксении",null,null,"Ипостась Синтезтела Изначального Предначального Изначально Вышестоящего Отца 360мерного, Управления Синтеза Виктории"]
[null,null,null,null,null,null,null,null,null,null,null,"Эмма","Эммы",null,null,"Ипостась Синтезтела Изначального Человека Изначально Вышестоящего Отца Изначально Вышестоящего Отца 359мерного, Управления Синтеза Дариды"]
[null,null,null,null,null,null,null,null,null,null,null,"Стафия","Стафии",null,null,"Ипостась Синтезтела Изначального Основного Изначально Вышестоящего Отца 358мерного, Управления Синтеза Алины"]
[null,null,null,null,null,null,null,null,null,null,null,"Оксана","Оксаны",null,null,"Ипостась Синтезтела Изначального Истинного Изначально Вышестоящего Отца 357мерного, Управления Синтеза Софьи"]
[null,null,null,null,null,null,null,null,null,null,null,"Ульяна","Ульяны",null,null,"Ипостась Синтезтела Изначального Окского Изначально Вышестоящего Отца 356мерного, Управления Синтеза Агафьи"]
[null,null,null,null,null,null,null,null,null,null,null,"Беатрисс","Беатрисс",null,null,"Ипостась Синтезтела Изначального Человека Изначальной Метагалактики Изначально Вышестоящего Отца 355мерного, Управления Синтеза Дарьи"]
[null,null,null,null,null,null,null,null,null,null,null,"Оливия","Оливии",null,null,"Ипостась Синтезтела Изначального Человека Изначальности Изначально Вышестоящего Отца 354мерного, Управления Синтеза Иланы"]
[null,null,null,null,null,null,null,null,null,null,null,"Алла","Аллы",null,null,"Ипостась Синтезтела Изначального Человека Метагалактики Изначально Вышестоящего Отца 353мерного, Управления Синтеза Яны"]
[null,null,null,null,null,null,null,null,null,null,null,"Натали","Натали",null,null,"Ипостась Синтезтела Изначального Человека Планеты Изначально Вышестоящего Отца 352мерного, Управления Синтеза Давлаты"]
[null,null,null,null,null,null,null,null,null,null,null,"Эва","Эвы",null,null,"Ипостась Синтезтела ИВДИВО Основ Изначально Вышестоящего Отца 351мерного, Управления Синтеза Ирины"]
[null,null,null,null,null,null,null,null,null,null,null,"Лана","Ланы",null,null,"Ипостась Синтезтела Идей Изначально Вышестоящего Отца 350мерного, Управления Синтеза Лины"]
[null,null,null,null,null,null,null,null,null,null,null,"Одель","Одель",null,null,"Ипостась Синтезтела Сути Изначально Вышестоящего Отца 349мерного, Управления Синтеза Анастасии"]
[null,null,null,null,null,null,null,null,null,null,null,"Тамара","Тамары",null,null,"Ипостась Синтезтела Смыслов Изначально Вышестоящего Отца 348мерного, Управления Синтеза Омы"]
[null,null,null,null,null,null,null,null,null,null,null,"Нина","Нины",null,null,"Ипостась Синтезтела Мыслей Изначально Вышестоящего Отца 347мерного, Управления Синтеза Сольвейг"]
[null,null,null,null,null,null,null,null,null,null,null,"Орфея","Орфеи",null,null,"Ипостась Синтезтела Чувств Изначально Вышестоящего Отца 346мерного, Управления Синтеза Октавии"]
[null,null,null,null,null,null,null,null,null,null,null,"Вергилия","Вергилии",null,null,"Ипостась Синтезтела Ощущений Изначально Вышестоящего Отца 345мерного, Управления Синтеза Кристины"]
[null,null,null,null,null,null,null,null,null,null,null,"Василиса","Василисы",null,null,"Ипостась Синтезтела Движений Изначально Вышестоящего Отца 344мерного, Управления Синтеза Версавии"]
[null,null,null,null,null,null,null,null,null,null,null,"Варвара","Варвары",null,null,"Ипостась Синтезтела ИВДИВО Огня Изначально Вышестоящего Отца 343мерного, Управления Синтеза Ксении"]
[null,null,null,null,null,null,null,null,null,null,null,"Арина","Арины",null,null,"Ипостась Синтезтела Духа Изначально Вышестоящего Отца 342мерного, Управления Синтеза Эммы"]
[null,null,null,null,null,null,null,null,null,null,null,"Амалия","Амалии",null,null,"Ипостась Синтезтела Света Изначально Вышестоящего Отца 341мерного, Управления Синтеза Стафии"]
[null,null,null,null,null,null,null,null,null,null,null,"Елизавета","Елизаветы",null,null,"Ипостась Синтезтела Энергии Изначально Вышестоящего Отца 340мерного, Управления Синтеза Оксаны"]
[null,null,null,null,null,null,null,null,null,null,null,"Вера","Веры",null,null,"Ипостась Синтезтела Субъядерности Изначально Вышестоящего Отца 339мерного, Управления Синтеза Ульяны"]
[null,null,null,null,null,null,null,null,null,null,null,"Мирослава","Мирославы",null,null,"Ипостась Синтезтела Формы Изначально Вышестоящего Отца 338мерного, Управления Синтеза Беатрисс"]
[null,null,null,null,null,null,null,null,null,null,null,"Даяна","Даяны",null,null,"Ипостась Синтезтела Содержания Изначально Вышестоящего Отца 337мерного, Управления Синтеза Оливии"]
[null,null,null,null,null,null,null,null,null,null,null,"Стелла","Стеллы",null,null,"Ипостась Синтезтела Поля Изначально Вышестоящего Отца 336мерного, Управления Синтеза Аллы"]
[null,null,null,null,null,null,null,null,null,null,null,"Дора","Доры",null,null,"Ипостась Синтезтела ИВДИВО Изначальной Метагалактики Изначально Вышестоящего Отца 335мерного, Управления Синтеза Натали"]
[null,null,null,null,null,null,null,null,null,null,null,"Клавдия","Клавдии",null,null,"Ипостась Синтезтела Свойств Изначально Вышестоящего Отца 334мерного, Управления Синтеза Эвы"]
[null,null,null,null,null,null,null,null,null,null,null,"Лада","Лады",null,null,"Ипостась Синтезтела Качеств Изначально Вышестоящего Отца 333мерного, Управления Синтеза Ланы"]
[null,null,null,null,null,null,null,null,null,null,null,"Ветта","Ветты",null,null,"Ипостась Синтезтела Функций Изначально Вышестоящего Отца 332мерного, Управления Синтеза Одель"]
[null,null,null,null,null,null,null,null,null,null,null,"Власта","Власты",null,null,"Ипостась Синтезтела Процессов Изначально Вышестоящего Отца 331мерного, Управления Синтеза Тамары"]
[null,null,null,null,null,null,null,null,null,null,null,"Офелия","Офелии",null,null,"Ипостась Синтезтела Активностей Изначально Вышестоящего Отца 330мерного, Управления Синтеза Нины"]
[null,null,null,null,null,null,null,null,null,null,null,"Даная","Данаи",null,null,"Ипостась Синтезтела Заряженностей Изначально Вышестоящего Отца 329мерного, Управления Синтеза Орфеи"]
[null,null,null,null,null,null,null,null,null,null,null,"Ханна","Ханны",null,null,"Ипостась Синтезтела Мощи Изначально Вышестоящего Отца 328мерного, Управления Синтеза Вергилии"]
[null,null,null,null,null,null,null,null,null,null,null,"Хлоя","Хлои",null,null,"Ипостась Синтезтела ИВДИВО Метагалактики Изначально Вышестоящего Отца 327мерного, Управления Синтеза Василисы"]
[null,null,null,null,null,null,null,null,null,null,null,"Надежда","Надежды",null,null,"Ипостась Синтезтела Планеты Изначально Вышестоящего Отца 326мерного, Управления Синтеза Варвары"]
[null,null,null,null,null,null,null,null,null,null,null,"Олла","Оллы",null,null,"Ипостась Синтезтела Буддичности Человека Изначально Вышестоящего Отца 325мерного, Управления Синтеза Арины"]
[null,null,null,null,null,null,null,null,null,null,null,"Илона","Илоны",null,null,"Ипостась Синтезтела Всеединой Супергалактики Изначально Вышестоящего Отца 324мерного, Управления Синтеза Амалии"]
[null,null,null,null,null,null,null,null,null,null,null,"Генриетта","Генриетты",null,null,"Ипостась Синтезтела Единой Галактики Изначально Вышестоящего Отца 323мерного, Управления Синтеза Елизаветы"]
[null,null,null,null,null,null,null,null,null,null,null,"Мария","Марии",null,null,"Ипостась Синтезтела Универсума Солнца Изначально Вышестоящего Отца 322мерного, Управления Синтеза Веры"]
[null,null,null,null,null,null,null,null,null,null,null,"Глория","Глории",null,null,"Ипостась Синтезтела Звёздной Вселенной Изначально Вышестоящего Отца 321мерного, Управления Синтеза Мирославы"]
[null,null,null,null,null,null,null,null,null,null,null,"Констанция","Констанции",null,null,"Ипостась Синтезтела Физичности Изначально Вышестоящего Отца 320мерного, Управления Синтеза Даяны"]
[null,null,null,null,null,null,null,null,null,null,null,"Стэвия","Стэвии",null,null,"Ипостась Синтезтела ИВДИВО Отца Изначально Вышестоящего Отца 319мерного, Управления Синтеза Стеллы"]
[null,null,null,null,null,null,null,null,null,null,null,"Полина","Полины",null,null,"Ипостась Синтезтела Матери Изначально Вышестоящего Отца 318мерного, Управления Синтеза Доры"]
[null,null,null,null,null,null,null,null,null,null,null,"Виру","Виру",null,null,"Ипостась Синтезтела Сына Изначально Вышестоящего Отца 317мерного, Управления Синтеза Клавдии"]
[null,null,null,null,null,null,null,null,null,null,null,"Фанна","Фанны",null,null,"Ипостась Синтезтела Дочери Изначально Вышестоящего Отца 316мерного, Управления Синтеза Лады"]
[null,null,null,null,null,null,null,null,null,null,null,"Евгения","Евгении",null,null,"Ипостась Синтезтела Аватара Изначально Вышестоящего Отца 315мерного, Управления Синтеза Ветты"]
[null,null,null,null,null,null,null,null,null,null,null,"Элина","Элины",null,null,"Ипостась Синтезтела Майтрейи Изначально Вышестоящего Отца 314мерного, Управления Синтеза Власты"]
[null,null,null,null,null,null,null,null,null,null,null,"Сара","Сары",null,null,"Ипостась Синтезтела Христа Изначально Вышестоящего Отца 313мерного, Управления Синтеза Офелии"]
[null,null,null,null,null,null,null,null,null,null,null,"Алевтина","Алевтины",null,null,"Ипостась Синтезтела Будды Изначально Вышестоящего Отца 312мерного, Управления Синтеза Данаи"]
[null,null,null,null,null,null,null,null,null,null,null,"Раиса","Раисы",null,null,"Ипостась Синтезтела ИВДИВО Владыки Изначально Вышестоящего Отца 311мерного, Управления Синтеза Ханны"]
[null,null,null,null,null,null,null,null,null,null,null,"Аврора","Авроры",null,null,"Ипостась Синтезтела Учителя Изначально Вышестоящего Отца 310мерного, Управления Синтеза Хлои"]
[null,null,null,null,null,null,null,null,null,null,null,"Дилана","Диланы",null,null,"Ипостась Синтезтела Логоса Изначально Вышестоящего Отца 309мерного, Управления Синтеза Надежды"]
[null,null,null,null,null,null,null,null,null,null,null,"Яся","Яси",null,null,"Ипостась Синтезтела Аспекта Изначально Вышестоящего Отца 308мерного, Управления Синтеза Оллы"]
[null,null,null,null,null,null,null,null,null,null,null,"Фира","Фиры",null,null,"Ипостась Синтезтела Ипостаси Изначально Вышестоящего Отца 307мерного, Управления Синтеза Илоны"]
[null,null,null,null,null,null,null,null,null,null,null,"Омелия","Омелии",null,null,"Ипостась Синтезтела Служащего Изначально Вышестоящего Отца 306мерного, Управления Синтеза Генриетты"]
[null,null,null,null,null,null,null,null,null,null,null,"Мадлен","Мадлен",null,null,"Ипостась Синтезтела Посвящённого Изначально Вышестоящего Отца 305мерного, Управления Синтеза Марии"]
[null,null,null,null,null,null,null,null,null,null,null,"Римма","Риммы",null,null,"Ипостась Синтезтела Праведника Изначально Вышестоящего Отца 304мерного, Управления Синтеза Глории"]
[null,null,null,null,null,null,null,null,null,null,null,"Белла","Беллы",null,null,"Ипостась Синтезтела ИВДИВО Неизречённого Изначально Вышестоящего Отца 303мерного, Управления Синтеза Констанции"]
[null,null,null,null,null,null,null,null,null,null,null,"Агния","Агнии",null,null,"Ипостась Синтезтела Предвечного Изначально Вышестоящего Отца 302мерного, Управления Синтеза Стэвии"]
[null,null,null,null,null,null,null,null,null,null,null,"Фелиция","Фелиции",null,null,"Ипостась Синтезтела Всемогущего Изначально Вышестоящего Отца 301мерного, Управления Синтеза Полины"]
[null,null,null,null,null,null,null,null,null,null,null,"Виталина","Виталины",null,null,"Ипостась Синтезтела Творца Изначально Вышестоящего Отца 300мерного, Управления Синтеза Виры"]
[null,null,null,null,null,null,null,null,null,null,null,"Нона","Ноны",null,null,"Ипостась Синтезтела Теурга Изначально Вышестоящего Отца 299мерного, Управления Синтеза Фанны"]
[null,null,null,null,null,null,null,null,null,null,null,"Клементина","Клементины",null,null,"Ипостась Синтезтела Ману Изначально Вышестоящего Отца 298мерного, Управления Синтеза Евгении"]
[null,null,null,null,null,null,null,null,null,null,null,"Лира","Лиры",null,null,"Ипостась Синтезтела Всевышнего Изначально Вышестоящего Отца 297мерного, Управления Синтеза Элины"]
[null,null,null,null,null,null,null,null,null,null,null,"Ванесса","Ванессы",null,null,"Ипостась Синтезтела Предначального Изначально Вышестоящего Отца 296мерного, Управления Синтеза Сары"]
[null,null,null,null,null,null,null,null,null,null,null,"Евдокия","Евдокии",null,null,"Ипостась Синтезтела ИВДИВО Человека Изначально Вышестоящего Отца 295мерного, Управления Синтеза Алевтины"]
[null,null,null,null,null,null,null,null,null,null,null,"Клара","Клары",null,null,"Ипостась Синтезтела Основного Тела Изначально Вышестоящего Отца 294мерного, Управления Синтеза Раисы"]
[null,null,null,null,null,null,null,null,null,null,null,"Лиза","Лизы",null,null,"Ипостась Синтезтела Истины Изначально Вышестоящего Отца 293мерного, Управления Синтеза Авроры"]
[null,null,null,null,null,null,null,null,null,null,null,"Сюзанна","Сюзанны",null,null,"Ипостась Синтезтела Ока Изначально Вышестоящего Отца 292мерного, Управления Синтеза Диланы"]
[null,null,null,null,null,null,null,null,null,null,null,"Сейла","Сейлы",null,null,"Ипостась Синтезтела Хум Изначально Вышестоящего Отца 291мерного, Управления Синтеза Яси"]
[null,null,null,null,null,null,null,null,null,null,null,"Руслана","Русланы",null,null,"Ипостась Синтезтела Абсолют Изначально Вышестоящего Отца 290мерного, Управления Синтеза Фиры"]
[null,null,null,null,null,null,null,null,null,null,null,"Устина","Устины",null,null,"Ипостась Синтезтела Омеги Изначально Вышестоящего Отца 289мерного, Управления Синтеза Омелии"]
[null,null,null,null,null,null,null,null,null,null,null,"Марика","Марики",null,null,"Ипостась Синтезтела Монады Изначально Вышестоящего Отца 288мерного, Управления Синтеза Мадлен"]
[null,null,null,null,null,null,null,null,null,null,null,"Франсуаза","Франсуазы",null,null,"Ипостась Синтезтела ИВДИВО Человека Изначальной Метагалактики Изначально Вышестоящего Отца 287мерного, Управления Синтеза Риммы"]
[null,null,null,null,null,null,null,null,null,null,null,"Христина","Христины",null,null,"Ипостась Синтезтела Физического Тела Изначально Вышестоящего Отца 286мерного, Управления Синтеза Беллы"]
[null,null,null,null,null,null,null,null,null,null,null,"Иолана","Иоланы",null,null,"Ипостась Синтезтела Разума Изначально Вышестоящего Отца 285мерного, Управления Синтеза Агнии"]
[null,null,null,null,null,null,null,null,null,null,null,"Джесика","Джесики",null,null,"Ипостась Синтезтела Сердца Изначально Вышестоящего Отца 284мерного, Управления Синтеза Фелиции"]
[null,null,null,null,null,null,null,null,null,null,null,"Сабина","Сабины",null,null,"Ипостась Синтезтела Мышления Изначально Вышестоящего Отца 283мерного, Управления Синтеза Виталины"]
[null,null,null,null,null,null,null,null,null,null,null,"Нелли","Нелли",null,null,"Ипостась Синтезтела Головерсума Изначально Вышестоящего Отца 282мерного, Управления Синтеза Ноны"]
[null,null,null,null,null,null,null,null,null,null,null,"Санта","Санты",null,null,"Ипостась Синтезтела Восприятия Изначально Вышестоящего Отца 281мерного, Управления Синтеза Клементины"]
[null,null,null,null,null,null,null,null,null,null,null,"Доротея","Доротеи",null,null,"Ипостась Синтезтела Вечности Отца Изначально Вышестоящего Отца 280мерного, Управления Синтеза Лиры"]
[null,null,null,null,null,null,null,null,null,null,null,"Янина","Янины",null,null,"Ипостась Синтезтела ИВДИВО Человека Изначальности Изначально Вышестоящего Отца 279мерного, Управления Синтеза Ванессы"]
[null,null,null,null,null,null,null,null,null,null,null,"Люция","Люции",null,null,"Ипостась Синтезтела Изначально Вышестоящего Отца 278мерного, Управления Синтеза Евдокии"]
[null,null,null,null,null,null,null,null,null,null,null,"Ирэн","Ирэн",null,null,"Ипостась Синтезтела Сообразительности Изначально Вышестоящего Отца 277мерного, Управления Синтеза Клары"]
[null,null,null,null,null,null,null,null,null,null,null,"Сесилия","Сесилии",null,null,"Ипостась Синтезтела Осмысленности Изначально Вышестоящего Отца 276мерного, Управления Синтеза Лизы"]
[null,null,null,null,null,null,null,null,null,null,null,"Верислава","Вериславы",null,null,"Ипостась Синтезтела Ума Изначально Вышестоящего Отца 275мерного, Управления Синтеза Сюзанны"]
[null,null,null,null,null,null,null,null,null,null,null,"Станислава","Станиславы",null,null,"Ипостась Синтезтела Провидения Изначально Вышестоящего Отца 274мерного, Управления Синтеза Сейлы"]
[null,null,null,null,null,null,null,null,null,null,null,"Милослава","Милославы",null,null,"Ипостась Синтезтела Огненной Нити Изначально Вышестоящего Отца 273мерного, Управления Синтеза Русланы"]
[null,null,null,null,null,null,null,null,null,null,null,null,null,null,null,"Ипостась Синтезтела Пламени Отца Изначально Вышестоящего Отца 272мерного, Управления Синтеза Устины"]
[null,null,null,null,null,null,null,null,null,null,null,null,null,null,null,"Ипостась Синтезтела ИВДИВО Человека Метагалактики Изначально Вышестоящего Отца 271мерного, Управления Синтеза Марики"]
[null,null,null,null,null,null,null,null,null,null,null,null,null,null,null,"Ипостась Синтезтела Трансвизора Изначально Вышестоящего Отца 270мерного, Управления Синтеза Франсуазы"]
[null,null,null,null,null,null,null,null,null,null,null,null,null,null,null,"Ипостась Синтезтела Интеллекта Изначально Вышестоящего Отца 269мерного, Управления Синтеза Христины"]
[null,null,null,null,null,null,null,null,null,null,null,null,null,null,null,"Ипостась Синтезтела Престола Изначально Вышестоящего Отца 268мерного, Управления Синтеза Иоланы"]
[null,null,null,null,null,null,null,null,null,null,null,null,null,null,null,"Ипостась Синтезтела Веры Изначально Вышестоящего Отца 267мерного, Управления Синтеза Джесики"]
[null,null,null,null,null,null,null,null,null,null,null,null,null,null,null,"Ипостась Синтезтела Чувствознания Изначально Вышестоящего Отца 266мерного, Управления Синтеза Сабины"]
[null,null,null,null,null,null,null,null,null,null,null,null,null,null,null,"Ипостась Синтезтела Потенциала Изначально Вышестоящего Отца 265мерного, Управления Синтеза Нелли"]
[null,null,null,null,null,null,null,null,null,null,null,null,null,null,null,"Ипостась Синтезтела Мощи Отца Изначально Вышестоящего Отца 264мерного, Управления Синтеза Санты"]
[null,null,null,null,null,null,null,null,null,null,null,null,null,null,null,"Ипостась Синтезтела ИВДИВО Человека Планеты Изначально Вышестоящего Отца 263мерного, Управления Синтеза Доротеи"]
[null,null,null,null,null,null,null,null,null,null,null,null,null,null,null,"Ипостась Синтезтела Столпа Изначально Вышестоящего Отца 262мерного, Управления Синтеза Янины"]
[null,null,null,null,null,null,null,null,null,null,null,null,null,null,null,"Ипостась Синтезтела Сознания Изначально Вышестоящего Отца 261мерного, Управления Синтеза Люции"]
[null,null,null,null,null,null,null,null,null,null,null,null,null,null,null,"Ипостась Синтезтела Грааля Изначально Вышестоящего Отца 260мерного, Управления Синтеза Ирэн"]
[null,null,null,null,null,null,null,null,null,null,null,null,null,null,null,"Ипостась Синтезтела Синтезобраза Изначально Вышестоящего Отца 259мерного, Управления Синтеза Сесилии"]
[null,null,null,null,null,null,null,null,null,null,null,null,null,null,null,"Ипостась Синтезтела Души Изначально Вышестоящего Отца 258мерного, Управления Синтеза Вериславы"]
[null,null,null,null,null,null,null,null,null,null,null,null,null,null,null,"Ипостась Синтезтела Слова Отца Изначально Вышестоящего Отца 257мерного, Управления Синтеза Станиславы"]
[null,null,null,null,null,null,null,null,null,null,null,null,null,null,null,"Ипостась Синтезтела Образа Отца Изначально Вышестоящего Отца 256мерного, Управления Синтеза Милославы"]